Workbook

Sheet KLASYCZNY
J1: Załącznik Nr 1
J2: do uchwały Nr 217/2025
J3: Zarządu Dzielnicy Bemowo m.st. Warszawy
J4: z dnia 8 stycznia 2025 r.
A5: PLAN WYDATKÓW w UKŁADZIE KLASYCZNYM | Q5: 9267
D7: =IF(OR(P8<>"",O8<>""),"Istnieją błędy","") ->  | E7: =E9261 -> 572829232 | F7: 238361545 | G7: 732 | H7: 732 | I7: 732 | J7: 732 | K7: 572829232 | L7: 238361545
A8: Dział | B8: Rozdział | C8: § | D8: Wyszczególnienie | E8: PLAN | F8: w tym Urząd m.st. Warszawy | G8: PLAN Zmiana[-] | H8: PLAN Zmiana[+] | I8: w tym Urząd Zmiana[-] | J8: w tym Urząd Zmiana[+] | K8: PLAN PO ZMIANIE | L8: w tym Urząd PO ZMIANIE | M8: Pozycja wypełniona | N8: Zmiany wypełnione | O8: =IF(COUNTIF(O9:O168,"błędny urząd")<>0,"ŹLE","") ->  | P8: =IF(COUNTIF(P9:P168,"ujemny plan")<>0,"ŹLE","") -> 
A9: 010 | D9: Rolnictwo i łowiectwo | E9: =SUM(E10,E19) -> 0 | F9: 0 | G9: 0 | H9: 0 | I9: 0 | J9: 0 | K9: 0 | L9: 0 | M9: =IF(SUM(E9:L9)>0,"Tak","") ->  | N9: =IF(SUM(G9:J9)>0,"Tak","") ->  | O9: =IF(OR(E9<F9,K9<L9,G9<I9,H9<J9),"błędny urząd","") ->  | P9: =IF(OR(E9<0,F9<0,K9<0,L9<0),"ujemny plan","") -> 
D10: WYDATKI BIEŻĄCE | E10: =SUM(E11,E14:E18) -> 0 | F10: 0 | G10: 0 | H10: 0 | I10: 0 | J10: 0 | K10: 0 | L10: 0
D11: Wydatki jednostek budżetowych w tym na: | E11: =SUM(E12:E13) -> 0 | F11: 0 | G11: 0 | H11: 0 | I11: 0 | J11: 0 | K11: 0 | L11: 0
D12: wynagrodzenia i składki od nich naliczane | E12: =SUM(E23,E37,E49,E61) -> 0 | F12: 0 | G12: 0 | H12: 0 | I12: 0 | J12: 0 | K12: 0 | L12: 0
D13: wydatki związane z realizacją ich zadań statutowych | E13: 0 | F13: 0 | G13: 0 | H13: 0 | I13: 0 | J13: 0 | K13: 0 | L13: 0
D14: Dotacje na zadania bieżące | E14: 0 | F14: 0 | G14: 0 | H14: 0 | I14: 0 | J14: 0 | K14: 0 | L14: 0
D15: Świadczenia na rzecz osób fizycznych | E15: 0 | F15: 0 | G15: 0 | H15: 0 | I15: 0 | J15: 0 | K15: 0 | L15: 0
D16: Wydatki na programy finansowane z UE | E16: 0 | F16: 0 | G16: 0 | H16: 0 | I16: 0 | J16: 0 | K16: 0 | L16: 0
D17: Obsługa długu | E17: 0 | F17: 0 | G17: 0 | H17: 0 | I17: 0 | J17: 0 | K17: 0 | L17: 0
D18: Poręczenia i gwarancje | E18: 0 | F18: 0 | G18: 0 | H18: 0 | I18: 0 | J18: 0 | K18: 0 | L18: 0
D19: WYDATKI MAJĄTKOWE | E19: 0 | F19: 0 | G19: 0 | H19: 0 | I19: 0 | J19: 0 | K19: 0 | L19: 0
B20: 01005 | D20: Prace geodezyjno - urządzeniowe na potrzeby rolnictwa | E20: =SUM(E21,E30) -> 0 | F20: 0 | G20: 0 | H20: 0 | I20: 0 | J20: 0 | K20: 0 | L20: 0
D21: WYDATKI BIEŻĄCE | E21: =SUM(E22,E25:E29) -> 0 | F21: 0 | G21: 0 | H21: 0 | I21: 0 | J21: 0 | K21: 0 | L21: 0
D22: Wydatki jednostek budżetowych w tym na: | E22: =SUM(E23:E24) -> 0 | F22: 0 | G22: 0 | H22: 0 | I22: 0 | J22: 0 | K22: 0 | L22: 0
D23: wynagrodzenia i składki od nich naliczane
D24: wydatki związane z realizacją ich zadań statutowych | E24: =SUM(E31) -> 0 | F24: 0 | G24: 0 | H24: 0 | I24: 0 | J24: 0 | K24: 0 | L24: 0
D25: Dotacje na zadania bieżące
D26: Świadczenia na rzecz osób fizycznych
D27: Wydatki na programy finansowane z UE
D28: Obsługa długu
D29: Poręczenia i gwarancje
D30: WYDATKI MAJĄTKOWE
C31: 4300 | D31: Zakup usług pozostałych | E31: =SUM(E32:E33) -> 0 | F31: 0 | G31: 0 | H31: 0 | I31: 0 | J31: 0 | K31: 0 | L31: 0
D32: Środki z budżetu państwa | E32: =0 -> 0 | F32: =0 -> 0 | G32: =0 -> 0 | H32: =0 -> 0 | I32: =0 -> 0 | J32: =0 -> 0 | K32: =E32-G32+H32 -> 0 | L32: =F32-I32+J32 -> 0 | M32: =IF(SUM(E32:L32)>0,"Tak","") ->  | N32: =IF(SUM(G32:J32)>0,"Tak","") ->  | O32: =IF(OR(E32<F32,K32<L32,G32<I32,H32<J32),"błędny urząd","") ->  | P32: =IF(OR(E32<0,F32<0,K32<0,L32<0),"ujemny plan","") -> 
D33: Środki z budżetu miasta | E33: =0 -> 0 | F33: =0 -> 0 | G33: =0 -> 0 | H33: =0 -> 0 | I33: =0 -> 0 | J33: =0 -> 0 | K33: =E33-G33+H33 -> 0 | L33: =F33-I33+J33 -> 0 | M33: =IF(SUM(E33:L33)>0,"Tak","") ->  | N33: =IF(SUM(G33:J33)>0,"Tak","") ->  | O33: =IF(OR(E33<F33,K33<L33,G33<I33,H33<J33),"błędny urząd","") ->  | P33: =IF(OR(E33<0,F33<0,K33<0,L33<0),"ujemny plan","") -> 
B34: 01030 | D34: Izby rolnicze | E34: =SUM(E35,E44) -> 0 | F34: 0 | G34: 0 | H34: 0 | I34: 0 | J34: 0 | K34: 0 | L34: 0
D35: WYDATKI BIEŻĄCE | E35: =SUM(E36,E39:E43) -> 0 | F35: 0 | G35: 0 | H35: 0 | I35: 0 | J35: 0 | K35: 0 | L35: 0
D36: Wydatki jednostek budżetowych w tym na: | E36: =SUM(E37:E38) -> 0 | F36: 0 | G36: 0 | H36: 0 | I36: 0 | J36: 0 | K36: 0 | L36: 0
D37: wynagrodzenia i składki od nich naliczane
D38: wydatki związane z realizacją ich zadań statutowych | E38: =SUM(E45) -> 0 | F38: 0 | G38: 0 | H38: 0 | I38: 0 | J38: 0 | K38: 0 | L38: 0
D39: Dotacje na zadania bieżące
D40: Świadczenia na rzecz osób fizycznych
D41: Wydatki na programy finansowane z UE
D42: Obsługa długu
D43: Poręczenia i gwarancje
D44: WYDATKI MAJĄTKOWE
C45: 2850 | D45: Wpłaty gmin na rzecz izb rolniczych w wysokości 2% uzyskanych wpływów z podatku rolnego | E45: =0+ZADANIOWY!J2020 -> 0 | F45: =0+ZADANIOWY!K2020 -> 0 | G45: =0+ZADANIOWY!L2020 -> 0 | H45: =0+ZADANIOWY!M2020 -> 0 | I45: =0+ZADANIOWY!N2020 -> 0 | J45: =0+ZADANIOWY!O2020 -> 0 | K45: 0 | L45: 0
B46: 01078 | D46: Izby rolnicze | E46: =SUM(E47,E56) -> 0 | F46: 0 | G46: 0 | H46: 0 | I46: 0 | J46: 0 | K46: 0 | L46: 0
D47: WYDATKI BIEŻĄCE | E47: =SUM(E48,E51:E55) -> 0 | F47: 0 | G47: 0 | H47: 0 | I47: 0 | J47: 0 | K47: 0 | L47: 0
D48: Wydatki jednostek budżetowych w tym na: | E48: =SUM(E49:E50) -> 0 | F48: 0 | G48: 0 | H48: 0 | I48: 0 | J48: 0 | K48: 0 | L48: 0
D49: wynagrodzenia i składki od nich naliczane
D50: wydatki związane z realizacją ich zadań statutowych
D51: Dotacje na zadania bieżące | E51: =SUM(E57) -> 0 | F51: 0 | G51: 0 | H51: 0 | I51: 0 | J51: 0 | K51: 0 | L51: 0
D52: Świadczenia na rzecz osób fizycznych
D53: Wydatki na programy finansowane z UE
D54: Obsługa długu
D55: Poręczenia i gwarancje
D56: WYDATKI MAJĄTKOWE
C57: 2710 | D57: Dotacja celowa na pomoc finansową udzielaną między jednostkami samorządu terytorialnego na dofinansowanie własnych zadań bieżących | E57: =0 -> 0 | F57: =0 -> 0 | G57: =0 -> 0 | H57: =0 -> 0 | I57: =0 -> 0 | J57: =0 -> 0 | K57: 0 | L57: 0
B58: 01095 | D58: Pozostała działalność | E58: =SUM(E59,E68) -> 0 | F58: 0 | G58: 0 | H58: 0 | I58: 0 | J58: 0 | K58: 0 | L58: 0
D59: WYDATKI BIEŻĄCE | E59: =SUM(E60,E63:E67) -> 0 | F59: 0 | G59: 0 | H59: 0 | I59: 0 | J59: 0 | K59: 0 | L59: 0
D60: Wydatki jednostek budżetowych w tym na: | E60: =SUM(E61:E62) -> 0 | F60: 0 | G60: 0 | H60: 0 | I60: 0 | J60: 0 | K60: 0 | L60: 0
D61: wynagrodzenia i składki od nich naliczane | E61: =SUM(E69,E72,E75,E84) -> 0 | F61: 0 | G61: 0 | H61: 0 | I61: 0 | J61: 0 | K61: 0 | L61: 0
D62: wydatki związane z realizacją ich zadań statutowych | E62: =SUM(E78,E81) -> 0 | F62: 0 | G62: 0 | H62: 0 | I62: 0 | J62: 0 | K62: 0 | L62: 0
D63: Dotacje na zadania bieżące
D64: Świadczenia na rzecz osób fizycznych
D65: Wydatki na programy finansowane z UE
D66: Obsługa długu
D67: Poręczenia i gwarancje
D68: WYDATKI MAJĄTKOWE
C69: 4010 | D69: Wynagrodzenia osobowe pracowników | E69: =SUM(E70:E71) -> 0 | F69: 0 | G69: 0 | H69: 0 | I69: 0 | J69: 0 | K69: 0 | L69: 0
D70: Środki z budżetu państwa | E70: =0 -> 0 | F70: =0 -> 0 | G70: =0 -> 0 | H70: =0 -> 0 | I70: =0 -> 0 | J70: =0 -> 0 | K70: 0 | L70: 0
D71: Środki z budżetu miasta | E71: =0 -> 0 | F71: =0 -> 0 | G71: =0 -> 0 | H71: =0 -> 0 | I71: =0 -> 0 | J71: =0 -> 0 | K71: 0 | L71: 0
C72: 4110 | D72: Składki na ubezpieczenia społeczne | E72: =SUM(E73:E74) -> 0 | F72: 0 | G72: 0 | H72: 0 | I72: 0 | J72: 0 | K72: 0 | L72: 0
D73: Środki z budżetu państwa | E73: =0 -> 0 | F73: =0 -> 0 | G73: =0 -> 0 | H73: =0 -> 0 | I73: =0 -> 0 | J73: =0 -> 0 | K73: 0 | L73: 0
D74: Środki z budżetu miasta | E74: =0 -> 0 | F74: =0 -> 0 | G74: =0 -> 0 | H74: =0 -> 0 | I74: =0 -> 0 | J74: =0 -> 0 | K74: 0 | L74: 0
C75: 4120 | D75: Składki na Fundusz Pracy oraz Fundusz Solidarnościowy | E75: =SUM(E76:E77) -> 0 | F75: 0 | G75: 0 | H75: 0 | I75: 0 | J75: 0 | K75: 0 | L75: 0
D76: Środki z budżetu państwa | E76: =0 -> 0 | F76: =0 -> 0 | G76: =0 -> 0 | H76: =0 -> 0 | I76: =0 -> 0 | J76: =0 -> 0 | K76: 0 | L76: 0
D77: Środki z budżetu miasta | E77: =0 -> 0 | F77: =0 -> 0 | G77: =0 -> 0 | H77: =0 -> 0 | I77: =0 -> 0 | J77: =0 -> 0 | K77: 0 | L77: 0
C78: 4300 | D78: Zakup usług pozostałych | E78: =SUM(E79:E80) -> 0 | F78: 0 | G78: 0 | H78: 0 | I78: 0 | J78: 0 | K78: 0 | L78: 0
D79: Środki z budżetu państwa | E79: =0+ZADANIOWY!J2013 -> 0 | F79: =0+ZADANIOWY!K2013 -> 0 | G79: =0+ZADANIOWY!L2013 -> 0 | H79: =0+ZADANIOWY!M2013 -> 0 | I79: =0+ZADANIOWY!N2013 -> 0 | J79: =0+ZADANIOWY!O2013 -> 0 | K79: 0 | L79: 0
D80: Środki z budżetu miasta | E80: =0+ZADANIOWY!J2014 -> 0 | F80: =0+ZADANIOWY!K2014 -> 0 | G80: =0+ZADANIOWY!L2014 -> 0 | H80: =0+ZADANIOWY!M2014 -> 0 | I80: =0+ZADANIOWY!N2014 -> 0 | J80: =0+ZADANIOWY!O2014 -> 0 | K80: 0 | L80: 0
C81: 4430 | D81: Różne opłaty i składki | E81: =SUM(E82:E83) -> 0 | F81: 0 | G81: 0 | H81: 0 | I81: 0 | J81: 0 | K81: 0 | L81: 0
D82: Środki z budżetu państwa | E82: =0+ZADANIOWY!J2016 -> 0 | F82: =0+ZADANIOWY!K2016 -> 0 | G82: =0+ZADANIOWY!L2016 -> 0 | H82: =0+ZADANIOWY!M2016 -> 0 | I82: =0+ZADANIOWY!N2016 -> 0 | J82: =0+ZADANIOWY!O2016 -> 0 | K82: 0 | L82: 0
D83: Środki z budżetu miasta | E83: =0+ZADANIOWY!J2017 -> 0 | F83: =0+ZADANIOWY!K2017 -> 0 | G83: =0+ZADANIOWY!L2017 -> 0 | H83: =0+ZADANIOWY!M2017 -> 0 | I83: =0+ZADANIOWY!N2017 -> 0 | J83: =0+ZADANIOWY!O2017 -> 0 | K83: 0 | L83: 0
C84: 4710 | D84: Wpłaty na PPK finansowane przez podmiot zatrudniający | E84: =SUM(E85:E86) -> 0 | F84: 0 | G84: 0 | H84: 0 | I84: 0 | J84: 0 | K84: 0 | L84: 0
D85: Środki z budżetu państwa | E85: =0 -> 0 | F85: =0 -> 0 | G85: =0 -> 0 | H85: =0 -> 0 | I85: =0 -> 0 | J85: =0 -> 0 | K85: 0 | L85: 0
D86: Środki z budżetu miasta | E86: =0 -> 0 | F86: =0 -> 0 | G86: =0 -> 0 | H86: =0 -> 0 | I86: =0 -> 0 | J86: =0 -> 0 | K86: 0 | L86: 0
A87: 020 | D87: Leśnictwo | E87: =SUM(E88,E97) -> 0 | F87: 0 | G87: 0 | H87: 0 | I87: 0 | J87: 0 | K87: 0 | L87: 0
D88: WYDATKI BIEŻĄCE | E88: =SUM(E89,E92:E96) -> 0 | F88: 0 | G88: 0 | H88: 0 | I88: 0 | J88: 0 | K88: 0 | L88: 0
D89: Wydatki jednostek budżetowych w tym na: | E89: =SUM(E90:E91) -> 0 | F89: 0 | G89: 0 | H89: 0 | I89: 0 | J89: 0 | K89: 0 | L89: 0
D90: wynagrodzenia i składki od nich naliczane | E90: =SUM(E101,E151) -> 0 | F90: 0 | G90: 0 | H90: 0 | I90: 0 | J90: 0 | K90: 0 | L90: 0
D91: wydatki związane z realizacją ich zadań statutowych | E91: 0 | F91: 0 | G91: 0 | H91: 0 | I91: 0 | J91: 0 | K91: 0 | L91: 0
D92: Dotacje na zadania bieżące | E92: 0 | F92: 0 | G92: 0 | H92: 0 | I92: 0 | J92: 0 | K92: 0 | L92: 0
D93: Świadczenia na rzecz osób fizycznych | E93: 0 | F93: 0 | G93: 0 | H93: 0 | I93: 0 | J93: 0 | K93: 0 | L93: 0
D94: Wydatki na programy finansowane z UE | E94: 0 | F94: 0 | G94: 0 | H94: 0 | I94: 0 | J94: 0 | K94: 0 | L94: 0
D95: Obsługa długu | E95: 0 | F95: 0 | G95: 0 | H95: 0 | I95: 0 | J95: 0 | K95: 0 | L95: 0
D96: Poręczenia i gwarancje | E96: 0 | F96: 0 | G96: 0 | H96: 0 | I96: 0 | J96: 0 | K96: 0 | L96: 0
D97: WYDATKI MAJĄTKOWE | E97: 0 | F97: 0 | G97: 0 | H97: 0 | I97: 0 | J97: 0 | K97: 0 | L97: 0 | M97: =IF(SUM(E97:L97)>0,"Tak","") ->  | N97: =IF(SUM(G97:J97)>0,"Tak","") ->  | O97: =IF(OR(E97<F97,K97<L97,G97<I97,H97<J97),"błędny urząd","") ->  | P97: =IF(OR(E97<0,F97<0,K97<0,L97<0),"ujemny plan","") -> 
B98: 02001 | D98: Gospodarka leśna | E98: =SUM(E99,E108) -> 0 | F98: 0 | G98: 0 | H98: 0 | I98: 0 | J98: 0 | K98: 0 | L98: 0
D99: WYDATKI BIEŻĄCE | E99: =SUM(E100,E103:E107) -> 0 | F99: 0 | G99: 0 | H99: 0 | I99: 0 | J99: 0 | K99: 0 | L99: 0
D100: Wydatki jednostek budżetowych w tym na: | E100: =SUM(E101:E102) -> 0 | F100: 0 | G100: 0 | H100: 0 | I100: 0 | J100: 0 | K100: 0 | L100: 0
D101: wynagrodzenia i składki od nich naliczane | E101: =SUM(E110:E113,E115,E147) -> 0 | F101: 0 | G101: 0 | H101: 0 | I101: 0 | J101: 0 | K101: 0 | L101: 0
D102: wydatki związane z realizacją ich zadań statutowych | E102: =SUM(E114,E116:E117,E120:E125,E128:E146) -> 0 | F102: 0 | G102: 0 | H102: 0 | I102: 0 | J102: 0 | K102: 0 | L102: 0
D103: Dotacje na zadania bieżące
D104: Świadczenia na rzecz osób fizycznych | E104: =SUM(E109) -> 0 | F104: 0 | G104: 0 | H104: 0 | I104: 0 | J104: 0 | K104: 0 | L104: 0
D105: Wydatki na programy finansowane z UE | E105: =SUM(E118:E119,E126:E127) -> 0 | F105: 0 | G105: 0 | H105: 0 | I105: 0 | J105: 0 | K105: 0 | L105: 0
D106: Obsługa długu
D107: Poręczenia i gwarancje
D108: WYDATKI MAJĄTKOWE
C109: 3020 | D109: Wydatki osobowe niezaliczone do wynagrodzeń | E109: =0+ZADANIOWY!J1923 -> 0 | F109: =0+ZADANIOWY!K1923 -> 0 | G109: =0+ZADANIOWY!L1923 -> 0 | H109: =0+ZADANIOWY!M1923 -> 0 | I109: =0+ZADANIOWY!N1923 -> 0 | J109: =0+ZADANIOWY!O1923 -> 0 | K109: =E109-G109+H109 -> 0 | L109: =F109-I109+J109 -> 0
C110: 4010 | D110: Wynagrodzenia osobowe pracowników | E110: =0+ZADANIOWY!J1924 -> 0 | F110: =0+ZADANIOWY!K1924 -> 0 | G110: =0+ZADANIOWY!L1924 -> 0 | H110: =0+ZADANIOWY!M1924 -> 0 | I110: =0+ZADANIOWY!N1924 -> 0 | J110: =0+ZADANIOWY!O1924 -> 0 | K110: 0 | L110: 0
C111: 4040 | D111: Dodatkowe wynagrodzenie roczne | E111: =0+ZADANIOWY!J1925 -> 0 | F111: =0+ZADANIOWY!K1925 -> 0 | G111: =0+ZADANIOWY!L1925 -> 0 | H111: =0+ZADANIOWY!M1925 -> 0 | I111: =0+ZADANIOWY!N1925 -> 0 | J111: =0+ZADANIOWY!O1925 -> 0 | K111: 0 | L111: 0
C112: 4110 | D112: Składki na ubezpieczenia społeczne | E112: =0+ZADANIOWY!J1926 -> 0 | F112: =0+ZADANIOWY!K1926 -> 0 | G112: =0+ZADANIOWY!L1926 -> 0 | H112: =0+ZADANIOWY!M1926 -> 0 | I112: =0+ZADANIOWY!N1926 -> 0 | J112: =0+ZADANIOWY!O1926 -> 0 | K112: 0 | L112: 0
C113: 4120 | D113: Składki na Fundusz Pracy oraz Fundusz Solidarnościowy | E113: =0+ZADANIOWY!J1927 -> 0 | F113: =0+ZADANIOWY!K1927 -> 0 | G113: =0+ZADANIOWY!L1927 -> 0 | H113: =0+ZADANIOWY!M1927 -> 0 | I113: =0+ZADANIOWY!N1927 -> 0 | J113: =0+ZADANIOWY!O1927 -> 0 | K113: 0 | L113: 0
C114: 4140 | D114: Wpłaty na Państwowy Fundusz Rehabilitacji Osób Niepełnosprawnych | E114: =0+ZADANIOWY!J1928 -> 0 | F114: =0+ZADANIOWY!K1928 -> 0 | G114: =0+ZADANIOWY!L1928 -> 0 | H114: =0+ZADANIOWY!M1928 -> 0 | I114: =0+ZADANIOWY!N1928 -> 0 | J114: =0+ZADANIOWY!O1928 -> 0 | K114: 0 | L114: 0
C115: 4170 | D115: Wynagrodzenia bezosobowe | E115: =0+ZADANIOWY!J1929+ZADANIOWY!J1930+ZADANIOWY!J1931 -> 0 | F115: =0+ZADANIOWY!K1929+ZADANIOWY!K1930+ZADANIOWY!K1931 -> 0 | G115: =0+ZADANIOWY!L1929+ZADANIOWY!L1930+ZADANIOWY!L1931 -> 0 | H115: =0+ZADANIOWY!M1929+ZADANIOWY!M1930+ZADANIOWY!M1931 -> 0 | I115: =0+ZADANIOWY!N1929+ZADANIOWY!N1930+ZADANIOWY!N1931 -> 0 | J115: =0+ZADANIOWY!O1929+ZADANIOWY!O1930+ZADANIOWY!O1931 -> 0 | K115: 0 | L115: 0
C116: 4190 | D116: Nagrody konkursowe | E116: =0 -> 0 | F116: =0 -> 0 | G116: =0 -> 0 | H116: =0 -> 0 | I116: =0 -> 0 | J116: =0 -> 0 | K116: 0 | L116: 0
C117: 4210 | D117: Zakup materiałów i wyposażenia | E117: =0+ZADANIOWY!J1932+ZADANIOWY!J1933+ZADANIOWY!J1934+ZADANIOWY!J1935+ZADANIOWY!J1936+ZADANIOWY!J1937+ZADANIOWY!J1938 -> 0 | F117: =0+ZADANIOWY!K1932+ZADANIOWY!K1933+ZADANIOWY!K1934+ZADANIOWY!K1935+ZADANIOWY!K1936+ZADANIOWY!K1937+ZADANIOWY!K1938 -> 0 | G117: =0+ZADANIOWY!L1932+ZADANIOWY!L1933+ZADANIOWY!L1934+ZADANIOWY!L1935+ZADANIOWY!L1936+ZADANIOWY!L1937+ZADANIOWY!L1938 -> 0 | H117: =0+ZADANIOWY!M1932+ZADANIOWY!M1933+ZADANIOWY!M1934+ZADANIOWY!M1935+ZADANIOWY!M1936+ZADANIOWY!M1937+ZADANIOWY!M1938 -> 0 | I117: =0+ZADANIOWY!N1932+ZADANIOWY!N1933+ZADANIOWY!N1934+ZADANIOWY!N1935+ZADANIOWY!N1936+ZADANIOWY!N1937+ZADANIOWY!N1938 -> 0 | J117: =0+ZADANIOWY!O1932+ZADANIOWY!O1933+ZADANIOWY!O1934+ZADANIOWY!O1935+ZADANIOWY!O1936+ZADANIOWY!O1937+ZADANIOWY!O1938 -> 0 | K117: 0 | L117: 0
C118: 4217 | D118: Zakup materiałów i wyposażenia | E118: =0 -> 0 | F118: =0 -> 0 | G118: =0 -> 0 | H118: =0 -> 0 | I118: =0 -> 0 | J118: =0 -> 0 | K118: 0 | L118: 0
C119: 4219 | D119: Zakup materiałów i wyposażenia | E119: =0 -> 0 | F119: =0 -> 0 | G119: =0 -> 0 | H119: =0 -> 0 | I119: =0 -> 0 | J119: =0 -> 0 | K119: 0 | L119: 0
C120: 4220 | D120: Zakup środków żywności | E120: =0+ZADANIOWY!J1939+ZADANIOWY!J1940 -> 0 | F120: =0+ZADANIOWY!K1939+ZADANIOWY!K1940 -> 0 | G120: =0+ZADANIOWY!L1939+ZADANIOWY!L1940 -> 0 | H120: =0+ZADANIOWY!M1939+ZADANIOWY!M1940 -> 0 | I120: =0+ZADANIOWY!N1939+ZADANIOWY!N1940 -> 0 | J120: =0+ZADANIOWY!O1939+ZADANIOWY!O1940 -> 0 | K120: 0 | L120: 0
C121: 4240 | D121: Zakup środków dydaktycznych i książek | E121: =0 -> 0 | F121: =0 -> 0 | G121: =0 -> 0 | H121: =0 -> 0 | I121: =0 -> 0 | J121: =0 -> 0 | K121: 0 | L121: 0
C122: 4260 | D122: Zakup energii | E122: =0+ZADANIOWY!J1941 -> 0 | F122: =0+ZADANIOWY!K1941 -> 0 | G122: =0+ZADANIOWY!L1941 -> 0 | H122: =0+ZADANIOWY!M1941 -> 0 | I122: =0+ZADANIOWY!N1941 -> 0 | J122: =0+ZADANIOWY!O1941 -> 0 | K122: 0 | L122: 0
C123: 4270 | D123: Zakup usług remontowych | E123: =0+ZADANIOWY!J1942 -> 0 | F123: =0+ZADANIOWY!K1942 -> 0 | G123: =0+ZADANIOWY!L1942 -> 0 | H123: =0+ZADANIOWY!M1942 -> 0 | I123: =0+ZADANIOWY!N1942 -> 0 | J123: =0+ZADANIOWY!O1942 -> 0 | K123: 0 | L123: 0
C124: 4280 | D124: Zakup usług zdrowotnych | E124: =0+ZADANIOWY!J1943 -> 0 | F124: =0+ZADANIOWY!K1943 -> 0 | G124: =0+ZADANIOWY!L1943 -> 0 | H124: =0+ZADANIOWY!M1943 -> 0 | I124: =0+ZADANIOWY!N1943 -> 0 | J124: =0+ZADANIOWY!O1943 -> 0 | K124: 0 | L124: 0
C125: 4300 | D125: Zakup usług pozostałych | E125: =0+ZADANIOWY!J1944+ZADANIOWY!J1945+ZADANIOWY!J1946+ZADANIOWY!J1947+ZADANIOWY!J1948+ZADANIOWY!J1949 -> 0 | F125: =0+ZADANIOWY!K1944+ZADANIOWY!K1945+ZADANIOWY!K1946+ZADANIOWY!K1947+ZADANIOWY!K1948+ZADANIOWY!K1949 -> 0 | G125: =0+ZADANIOWY!L1944+ZADANIOWY!L1945+ZADANIOWY!L1946+ZADANIOWY!L1947+ZADANIOWY!L1948+ZADANIOWY!L1949 -> 0 | H125: =0+ZADANIOWY!M1944+ZADANIOWY!M1945+ZADANIOWY!M1946+ZADANIOWY!M1947+ZADANIOWY!M1948+ZADANIOWY!M1949 -> 0 | I125: =0+ZADANIOWY!N1944+ZADANIOWY!N1945+ZADANIOWY!N1946+ZADANIOWY!N1947+ZADANIOWY!N1948+ZADANIOWY!N1949 -> 0 | J125: =0+ZADANIOWY!O1944+ZADANIOWY!O1945+ZADANIOWY!O1946+ZADANIOWY!O1947+ZADANIOWY!O1948+ZADANIOWY!O1949 -> 0 | K125: 0 | L125: 0
C126: 4307 | D126: Zakup usług pozostałych | E126: =0 -> 0 | F126: =0 -> 0 | G126: =0 -> 0 | H126: =0 -> 0 | I126: =0 -> 0 | J126: =0 -> 0 | K126: 0 | L126: 0
C127: 4309 | D127: Zakup usług pozostałych | E127: =0 -> 0 | F127: =0 -> 0 | G127: =0 -> 0 | H127: =0 -> 0 | I127: =0 -> 0 | J127: =0 -> 0 | K127: 0 | L127: 0
C128: 4360 | D128: Opłaty z tytułu zakupu usług telekomunikacyjnych | E128: =0+ZADANIOWY!J1950 -> 0 | F128: =0+ZADANIOWY!K1950 -> 0 | G128: =0+ZADANIOWY!L1950 -> 0 | H128: =0+ZADANIOWY!M1950 -> 0 | I128: =0+ZADANIOWY!N1950 -> 0 | J128: =0+ZADANIOWY!O1950 -> 0 | K128: 0 | L128: 0
C129: 4380 | D129: Zakup usług obejmujących tłumaczenia | E129: =0 -> 0 | F129: =0 -> 0 | G129: =0 -> 0 | H129: =0 -> 0 | I129: =0 -> 0 | J129: =0 -> 0 | K129: 0 | L129: 0
C130: 4390 | D130: Zakup usług obejmujących wykonanie ekspertyz, analiz i opinii | E130: =0+ZADANIOWY!J1951+ZADANIOWY!J1952 -> 0 | F130: =0+ZADANIOWY!K1951+ZADANIOWY!K1952 -> 0 | G130: =0+ZADANIOWY!L1951+ZADANIOWY!L1952 -> 0 | H130: =0+ZADANIOWY!M1951+ZADANIOWY!M1952 -> 0 | I130: =0+ZADANIOWY!N1951+ZADANIOWY!N1952 -> 0 | J130: =0+ZADANIOWY!O1951+ZADANIOWY!O1952 -> 0 | K130: 0 | L130: 0
C131: 4400 | D131: Opłaty za administrowanie i czynsze za budynki, lokale i pomieszczenia garażowe | E131: =0+ZADANIOWY!J1953 -> 0 | F131: =0+ZADANIOWY!K1953 -> 0 | G131: =0+ZADANIOWY!L1953 -> 0 | H131: =0+ZADANIOWY!M1953 -> 0 | I131: =0+ZADANIOWY!N1953 -> 0 | J131: =0+ZADANIOWY!O1953 -> 0 | K131: 0 | L131: 0
C132: 4410 | D132: Podróże służbowe krajowe | E132: =0+ZADANIOWY!J1954 -> 0 | F132: =0+ZADANIOWY!K1954 -> 0 | G132: =0+ZADANIOWY!L1954 -> 0 | H132: =0+ZADANIOWY!M1954 -> 0 | I132: =0+ZADANIOWY!N1954 -> 0 | J132: =0+ZADANIOWY!O1954 -> 0 | K132: 0 | L132: 0
C133: 4420 | D133: Podróże służbowe zagraniczne | E133: =0 -> 0 | F133: =0 -> 0 | G133: =0 -> 0 | H133: =0 -> 0 | I133: =0 -> 0 | J133: =0 -> 0 | K133: 0 | L133: 0
C134: 4430 | D134: Różne opłaty i składki | E134: =0+ZADANIOWY!J1955 -> 0 | F134: =0+ZADANIOWY!K1955 -> 0 | G134: =0+ZADANIOWY!L1955 -> 0 | H134: =0+ZADANIOWY!M1955 -> 0 | I134: =0+ZADANIOWY!N1955 -> 0 | J134: =0+ZADANIOWY!O1955 -> 0 | K134: 0 | L134: 0
C135: 4440 | D135: Odpisy na zakładowy fundusz świadczeń socjalnych | E135: =0+ZADANIOWY!J1956 -> 0 | F135: =0+ZADANIOWY!K1956 -> 0 | G135: =0+ZADANIOWY!L1956 -> 0 | H135: =0+ZADANIOWY!M1956 -> 0 | I135: =0+ZADANIOWY!N1956 -> 0 | J135: =0+ZADANIOWY!O1956 -> 0 | K135: 0 | L135: 0
C136: 4480 | D136: Podatek od nieruchomości | E136: =0+ZADANIOWY!J1957 -> 0 | F136: =0+ZADANIOWY!K1957 -> 0 | G136: =0+ZADANIOWY!L1957 -> 0 | H136: =0+ZADANIOWY!M1957 -> 0 | I136: =0+ZADANIOWY!N1957 -> 0 | J136: =0+ZADANIOWY!O1957 -> 0 | K136: 0 | L136: 0
C137: 4500 | D137: Pozostałe podatki na rzecz budżetów jednostek samorządu terytorialnego | E137: =0+ZADANIOWY!J1958 -> 0 | F137: =0+ZADANIOWY!K1958 -> 0 | G137: =0+ZADANIOWY!L1958 -> 0 | H137: =0+ZADANIOWY!M1958 -> 0 | I137: =0+ZADANIOWY!N1958 -> 0 | J137: =0+ZADANIOWY!O1958 -> 0 | K137: 0 | L137: 0
C138: 4510 | D138: Opłaty na rzecz budżetu państwa | E138: =0+ZADANIOWY!J1959 -> 0 | F138: =0+ZADANIOWY!K1959 -> 0 | G138: =0+ZADANIOWY!L1959 -> 0 | H138: =0+ZADANIOWY!M1959 -> 0 | I138: =0+ZADANIOWY!N1959 -> 0 | J138: =0+ZADANIOWY!O1959 -> 0 | K138: 0 | L138: 0
C139: 4520 | D139: Opłaty na rzecz budżetów jednostek samorządu terytorialnego | E139: =0+ZADANIOWY!J1960 -> 0 | F139: =0+ZADANIOWY!K1960 -> 0 | G139: =0+ZADANIOWY!L1960 -> 0 | H139: =0+ZADANIOWY!M1960 -> 0 | I139: =0+ZADANIOWY!N1960 -> 0 | J139: =0+ZADANIOWY!O1960 -> 0 | K139: 0 | L139: 0
C140: 4530 | D140: Podatek od towarów i usług (VAT) | E140: =0+ZADANIOWY!J1961 -> 0 | F140: =0+ZADANIOWY!K1961 -> 0 | G140: =0+ZADANIOWY!L1961 -> 0 | H140: =0+ZADANIOWY!M1961 -> 0 | I140: =0+ZADANIOWY!N1961 -> 0 | J140: =0+ZADANIOWY!O1961 -> 0 | K140: 0 | L140: 0
C141: 4580 | D141: Pozostałe odsetki | E141: =0+ZADANIOWY!J1962 -> 0 | F141: =0+ZADANIOWY!K1962 -> 0 | G141: =0+ZADANIOWY!L1962 -> 0 | H141: =0+ZADANIOWY!M1962 -> 0 | I141: =0+ZADANIOWY!N1962 -> 0 | J141: =0+ZADANIOWY!O1962 -> 0 | K141: 0 | L141: 0
C142: 4590 | D142: Kary i odszkodowania wypłacane na rzecz osób fizycznych | E142: =0+ZADANIOWY!J1963 -> 0 | F142: =0+ZADANIOWY!K1963 -> 0 | G142: =0+ZADANIOWY!L1963 -> 0 | H142: =0+ZADANIOWY!M1963 -> 0 | I142: =0+ZADANIOWY!N1963 -> 0 | J142: =0+ZADANIOWY!O1963 -> 0 | K142: 0 | L142: 0
C143: 4600 | D143: Kary, odszkodowania i grzywny wypłacane na rzecz osób prawnych i innych jednostek organizacyjnych | E143: =0 -> 0 | F143: =0 -> 0 | G143: =0 -> 0 | H143: =0 -> 0 | I143: =0 -> 0 | J143: =0 -> 0 | K143: 0 | L143: 0
C144: 4610 | D144: Koszty postępowania sądowego i prokuratorskiego | E144: =0+ZADANIOWY!J1964 -> 0 | F144: =0+ZADANIOWY!K1964 -> 0 | G144: =0+ZADANIOWY!L1964 -> 0 | H144: =0+ZADANIOWY!M1964 -> 0 | I144: =0+ZADANIOWY!N1964 -> 0 | J144: =0+ZADANIOWY!O1964 -> 0 | K144: 0 | L144: 0
C145: 4680 | D145: Odsetki od nieterminowych wpłat podatku od towarów i usług (VAT) | E145: =0 -> 0 | F145: =0 -> 0 | G145: =0 -> 0 | H145: =0 -> 0 | I145: =0 -> 0 | J145: =0 -> 0 | K145: 0 | L145: 0
C146: 4700 | D146: Szkolenia pracowników niebędących członkami korpusu służby cywilnej | E146: =0+ZADANIOWY!J1965 -> 0 | F146: =0+ZADANIOWY!K1965 -> 0 | G146: =0+ZADANIOWY!L1965 -> 0 | H146: =0+ZADANIOWY!M1965 -> 0 | I146: =0+ZADANIOWY!N1965 -> 0 | J146: =0+ZADANIOWY!O1965 -> 0 | K146: 0 | L146: 0
C147: 4710 | D147: Wpłaty na PPK finansowane przez podmiot zatrudniający | E147: =0+ZADANIOWY!J1966 -> 0 | F147: =0+ZADANIOWY!K1966 -> 0 | G147: =0+ZADANIOWY!L1966 -> 0 | H147: =0+ZADANIOWY!M1966 -> 0 | I147: =0+ZADANIOWY!N1966 -> 0 | J147: =0+ZADANIOWY!O1966 -> 0 | K147: 0 | L147: 0
B148: 02095 | D148: Pozostała działalność | E148: =SUM(E149,E158) -> 0 | F148: 0 | G148: 0 | H148: 0 | I148: 0 | J148: 0 | K148: 0 | L148: 0
D149: WYDATKI BIEŻĄCE | E149: =SUM(E150,E153:E157) -> 0 | F149: 0 | G149: 0 | H149: 0 | I149: 0 | J149: 0 | K149: 0 | L149: 0
D150: Wydatki jednostek budżetowych w tym na: | E150: =SUM(E151:E152) -> 0 | F150: 0 | G150: 0 | H150: 0 | I150: 0 | J150: 0 | K150: 0 | L150: 0
D151: wynagrodzenia i składki od nich naliczane | E151: =SUM(E159:E161) -> 0 | F151: 0 | G151: 0 | H151: 0 | I151: 0 | J151: 0 | K151: 0 | L151: 0
D152: wydatki związane z realizacją ich zadań statutowych | E152: =SUM(E162:E164) -> 0 | F152: 0 | G152: 0 | H152: 0 | I152: 0 | J152: 0 | K152: 0 | L152: 0
D153: Dotacje na zadania bieżące
D154: Świadczenia na rzecz osób fizycznych
D155: Wydatki na programy finansowane z UE
D156: Obsługa długu
D157: Poręczenia i gwarancje
D158: WYDATKI MAJĄTKOWE
C159: 4110 | D159: Składki na ubezpieczenia społeczne | E159: =0 -> 0 | F159: =0 -> 0 | G159: =0 -> 0 | H159: =0 -> 0 | I159: =0 -> 0 | J159: =0 -> 0 | K159: 0 | L159: 0
C160: 4120 | D160: Składki na Fundusz Pracy oraz Fundusz Solidarnościowy | E160: =0 -> 0 | F160: =0 -> 0 | G160: =0 -> 0 | H160: =0 -> 0 | I160: =0 -> 0 | J160: =0 -> 0 | K160: 0 | L160: 0
C161: 4170 | D161: Wynagrodzenia bezosobowe | E161: =0 -> 0 | F161: =0 -> 0 | G161: =0 -> 0 | H161: =0 -> 0 | I161: =0 -> 0 | J161: =0 -> 0 | K161: =E161-G161+H161 -> 0 | L161: =F161-I161+J161 -> 0 | M161: =IF(SUM(E161:L161)>0,"Tak","") ->  | N161: =IF(SUM(G161:J161)>0,"Tak","") ->  | O161: =IF(OR(E161<F161,K161<L161,G161<I161,H161<J161),"błędny urząd","") ->  | P161: =IF(OR(E161<0,F161<0,K161<0,L161<0),"ujemny plan","") -> 
C162: 4270 | D162: Zakup usług remontowych | E162: =0 -> 0 | F162: =0 -> 0 | G162: =0 -> 0 | H162: =0 -> 0 | I162: =0 -> 0 | J162: =0 -> 0 | K162: 0 | L162: 0
C163: 4300 | D163: Zakup usług pozostałych | E163: =0 -> 0 | F163: =0 -> 0 | G163: =0 -> 0 | H163: =0 -> 0 | I163: =0 -> 0 | J163: =0 -> 0 | K163: 0 | L163: 0
C164: 4500 | D164: Pozostałe podatki na rzecz budżetów jednostek samorządu terytorialnego | E164: =0 -> 0 | F164: =0 -> 0 | G164: =0 -> 0 | H164: =0 -> 0 | I164: =0 -> 0 | J164: =0 -> 0 | K164: 0 | L164: 0
A165: 400 | D165: Wytwarzanie i zaopatrywanie w energię elektryczną, gaz i wodę | E165: =SUM(E166,E175) -> 740243 | F165: 740243 | G165: 0 | H165: 0 | I165: 0 | J165: 0 | K165: 740243 | L165: 740243 | M165: Tak
D166: WYDATKI BIEŻĄCE | E166: =SUM(E167,E170:E174) -> 740243 | F166: 740243 | G166: 0 | H166: 0 | I166: 0 | J166: 0 | K166: 740243 | L166: 740243 | M166: Tak
D167: Wydatki jednostek budżetowych w tym na: | E167: =SUM(E168:E169) -> 740243 | F167: 740243 | G167: 0 | H167: 0 | I167: 0 | J167: 0 | K167: 740243 | L167: 740243 | M167: Tak
D168: wynagrodzenia i składki od nich naliczane | E168: =SUM(E179,E194,E223) -> 0 | F168: 0 | G168: 0 | H168: 0 | I168: 0 | J168: 0 | K168: 0 | L168: 0
D169: wydatki związane z realizacją ich zadań statutowych | E169: =SUM(E180,E195,E224) -> 740243 | F169: 740243 | G169: 0 | H169: 0 | I169: 0 | J169: 0 | K169: 740243 | L169: 740243 | M169: Tak
D170: Dotacje na zadania bieżące | E170: 0 | F170: 0 | G170: 0 | H170: 0 | I170: 0 | J170: 0 | K170: 0 | L170: 0
D171: Świadczenia na rzecz osób fizycznych | E171: 0 | F171: 0 | G171: 0 | H171: 0 | I171: 0 | J171: 0 | K171: 0 | L171: 0
D172: Wydatki na programy finansowane z UE | E172: 0 | F172: 0 | G172: 0 | H172: 0 | I172: 0 | J172: 0 | K172: 0 | L172: 0
D173: Obsługa długu | E173: 0 | F173: 0 | G173: 0 | H173: 0 | I173: 0 | J173: 0 | K173: 0 | L173: 0
D174: Poręczenia i gwarancje | E174: 0 | F174: 0 | G174: 0 | H174: 0 | I174: 0 | J174: 0 | K174: 0 | L174: 0
D175: WYDATKI MAJĄTKOWE | E175: 0 | F175: 0 | G175: 0 | H175: 0 | I175: 0 | J175: 0 | K175: 0 | L175: 0
B176: 40001 | E176: =SUM(E177,E186) -> 0 | F176: 0 | G176: 0 | H176: 0 | I176: 0 | J176: 0 | K176: 0 | L176: 0
D177: WYDATKI BIEŻĄCE | E177: =SUM(E178,E181:E185) -> 0 | F177: 0 | G177: 0 | H177: 0 | I177: 0 | J177: 0 | K177: 0 | L177: 0
D178: Wydatki jednostek budżetowych w tym na: | E178: =SUM(E179:E180) -> 0 | F178: 0 | G178: 0 | H178: 0 | I178: 0 | J178: 0 | K178: 0 | L178: 0
D179: wynagrodzenia i składki od nich naliczane | E179: =SUM(E188:E190) -> 0 | F179: 0 | G179: 0 | H179: 0 | I179: 0 | J179: 0 | K179: 0 | L179: 0
D180: wydatki związane z realizacją ich zadań statutowych | E180: =SUM(E187) -> 0 | F180: 0 | G180: 0 | H180: 0 | I180: 0 | J180: 0 | K180: 0 | L180: 0
D181: Dotacje na zadania bieżące
D182: Świadczenia na rzecz osób fizycznych
D183: Wydatki na programy finansowane z UE
D184: Obsługa długu
D185: Poręczenia i gwarancje
D186: WYDATKI MAJĄTKOWE
C187: 2970 | E187: =0+ZADANIOWY!J2024 -> 0 | F187: =0+ZADANIOWY!K2024 -> 0 | G187: =0+ZADANIOWY!L2024 -> 0 | H187: =0+ZADANIOWY!M2024 -> 0 | I187: =0+ZADANIOWY!N2024 -> 0 | J187: =0+ZADANIOWY!O2024 -> 0 | K187: 0 | L187: 0
C188: 4010 | E188: =0+ZADANIOWY!J9043 -> 0 | F188: =0+ZADANIOWY!K9043 -> 0 | G188: =0+ZADANIOWY!L9043 -> 0 | H188: =0+ZADANIOWY!M9043 -> 0 | I188: =0+ZADANIOWY!N9043 -> 0 | J188: =0+ZADANIOWY!O9043 -> 0 | K188: 0 | L188: 0
C189: 4110 | E189: =0+ZADANIOWY!J9044 -> 0 | F189: =0+ZADANIOWY!K9044 -> 0 | G189: =0+ZADANIOWY!L9044 -> 0 | H189: =0+ZADANIOWY!M9044 -> 0 | I189: =0+ZADANIOWY!N9044 -> 0 | J189: =0+ZADANIOWY!O9044 -> 0 | K189: 0 | L189: 0
C190: 4120 | E190: =0+ZADANIOWY!J9045 -> 0 | F190: =0+ZADANIOWY!K9045 -> 0 | G190: =0+ZADANIOWY!L9045 -> 0 | H190: =0+ZADANIOWY!M9045 -> 0 | I190: =0+ZADANIOWY!N9045 -> 0 | J190: =0+ZADANIOWY!O9045 -> 0 | K190: 0 | L190: 0
B191: 40002 | D191: Dostarczanie wody | E191: =SUM(E192,E201) -> 740243 | F191: 740243 | G191: 0 | H191: 0 | I191: 0 | J191: 0 | K191: 740243 | L191: 740243 | M191: Tak
D192: WYDATKI BIEŻĄCE | E192: =SUM(E193,E196:E200) -> 740243 | F192: 740243 | G192: 0 | H192: 0 | I192: 0 | J192: 0 | K192: 740243 | L192: 740243 | M192: Tak
D193: Wydatki jednostek budżetowych w tym na: | E193: =SUM(E194:E195) -> 740243 | F193: 740243 | G193: 0 | H193: 0 | I193: 0 | J193: 0 | K193: 740243 | L193: 740243 | M193: Tak
D194: wynagrodzenia i składki od nich naliczane | E194: =SUM(E202:E204) -> 0 | F194: 0 | G194: 0 | H194: 0 | I194: 0 | J194: 0 | K194: 0 | L194: 0
D195: wydatki związane z realizacją ich zadań statutowych | E195: =SUM(E205:E217) -> 740243 | F195: 740243 | G195: 0 | H195: 0 | I195: 0 | J195: 0 | K195: 740243 | L195: 740243 | M195: Tak
D196: Dotacje na zadania bieżące
D197: Świadczenia na rzecz osób fizycznych
D198: Wydatki na programy finansowane z UE
D199: Obsługa długu
D200: Poręczenia i gwarancje
D201: WYDATKI MAJĄTKOWE | E201: =SUM(E218:E219) -> 0 | F201: 0 | G201: 0 | H201: 0 | I201: 0 | J201: 0 | K201: 0 | L201: 0
... 4299 more rows

Sheet ZADANIOWY
O1: Załącznik Nr 2
O2: do uchwały Nr 217/2025
O3: Zarządu Dzielnicy Bemowo m.st. Warszawy
O4: z dnia 8 stycznia 2025 r.
A5: PLAN WYDATKÓW w UKŁADZIE ZADANIOWYM | V5: =IF(COUNTA(V6:V15014)=0,"",COUNTA(V6:V15014)) -> 
A6: D.01.000 | F6: =IF(OR(T7<>"",U7<>""),"Istnieją błędy","") ->  | J6: =J10653 -> 572829232 | K6: 238361545 | L6: 732 | M6: 732 | N6: 732 | O6: 732 | P6: 572829232 | Q6: 238361545
A7: PROGRAM | B7: OPIS | C7: S/P/Z/PZ | D7: Header | E7: DZIAŁ | F7: ROZDZIAŁ | G7: § | H7: NAZWA PARAGRAFU | I7: OBSZAR FUNKCJONALNY | J7: PLAN | K7: w tym Urząd m.st. Warszawy | L7: PLAN Zmiana[-] | M7: PLAN Zmiana[+] | N7: w tym Urząd Zmiana[-] | O7: w tym Urząd Zmiana[+] | P7: PLAN PO ZMIANIE | Q7: w tym Urząd PO ZMIANIE | R7: WYPEŁNIONE POZYCJE | S7: WYPEŁNIONE ZMIANY | T7: =IF(COUNTIF(T8:T10652,"błędny urząd")<>0,"ŹLE","") ->  | U7: =IF(COUNTIF(U8:U10652,"ujemny plan")<>0,"ŹLE","") -> 
A8: I | B8: TRANSPORT I KOMUNIKACJA | C8: I sfera | D8: T | J8: =SUM(J208,J9) -> 6395960 | K8: 6395960 | L8: 0 | M8: 0 | N8: 0 | O8: 0 | P8: 6395960 | Q8: 6395960 | R8: =IF(SUM(J8:Q8)>0,"Tak","") -> Tak | S8: =IF(SUM(L8:O8)>0,"Tak","") ->  | T8: =IF(OR(J8<K8,P8<Q8,L8<N8,M8<O8),"błędny urząd","") ->  | U8: =IF(OR(J8<0,K8<0,P8<0,Q8<0),"ujemny plan","") -> 
A9: I/1 | B9: Komunikacja zbiorowa | C9: 1 program | D9: T | J9: =SUM(J197,J186,J42,J10) -> 19000 | K9: 19000 | L9: 0 | M9: 0 | N9: 0 | O9: 0 | P9: 19000 | Q9: 19000 | R9: Tak
A10: B/I/1/1 | B10: Zakup usług komunikacji miejskiej | C10: 1 zadanie | D10: T | J10: =SUM(J38,J34,J30,J23,J15,J11) -> 0 | K10: 0 | L10: 0 | M10: 0 | N10: 0 | O10: 0 | P10: 0 | Q10: 0
A11: B/I/1/1/1 | B11: Metro Warszawskie | C11: 1 podzadanie | D11: T | E11: 600 | F11: 60004 | J11: =SUM(J12) -> 0 | K11: 0 | L11: 0 | M11: 0 | N11: 0 | O11: 0 | P11: 0 | Q11: 0
A12: B/I/1/1/1 | B12: Metro Warszawskie | C12: 1 podzadanie | D12: NIE | E12: 600 | F12: 60004 | J12: =SUM(J13:J14) -> 0 | K12: 0 | L12: 0 | M12: 0 | N12: 0 | O12: 0 | P12: 0 | Q12: 0
A13: B/I/1/1/1 | B13: Metro Warszawskie | C13: 1 podzadanie | D13: NIE | E13: 600 | F13: 60004 | G13: 4300 | H13: Zakup usług pozostałych | I13: GMMW | P13: =J13+M13-L13 -> 0 | Q13: =K13+O13-N13 -> 0 | R13: =IF(SUM(J13:Q13)>0,"Tak","") ->  | S13: =IF(SUM(L13:O13)>0,"Tak","") ->  | T13: =IF(OR(J13<K13,P13<Q13,L13<N13,M13<O13),"błędny urząd","") ->  | U13: =IF(OR(J13<0,K13<0,P13<0,Q13<0),"ujemny plan","") -> 
A14: B/I/1/1/1 | B14: Metro Warszawskie | C14: 1 podzadanie | D14: NIE | E14: 600 | F14: 60004 | G14: 4530 | H14: Podatek od towarów i usług (VAT) | I14: GMMW | P14: =J14+M14-L14 -> 0 | Q14: =K14+O14-N14 -> 0 | R14: =IF(SUM(J14:Q14)>0,"Tak","") ->  | S14: =IF(SUM(L14:O14)>0,"Tak","") ->  | T14: =IF(OR(J14<K14,P14<Q14,L14<N14,M14<O14),"błędny urząd","") ->  | U14: =IF(OR(J14<0,K14<0,P14<0,Q14<0),"ujemny plan","") -> 
A15: B/I/1/1/2 | B15: Miejskie Zakłady Autobusowe | C15: 2 podzadanie | D15: T | E15: 600 | F15: 60004 | J15: =SUM(J16) -> 0 | K15: 0 | L15: 0 | M15: 0 | N15: 0 | O15: 0 | P15: 0 | Q15: 0
A16: B/I/1/1/2 | B16: Miejskie Zakłady Autobusowe | C16: 2 podzadanie | D16: NIE | E16: 600 | F16: 60004 | J16: =SUM(J17:J22) -> 0 | K16: 0 | L16: 0 | M16: 0 | N16: 0 | O16: 0 | P16: 0 | Q16: 0
A17: B/I/1/1/2 | B17: Miejskie Zakłady Autobusowe | C17: 2 podzadanie | D17: NIE | E17: 600 | F17: 60004 | G17: 4300 | H17: Zakup usług pozostałych | I17: GUUW | P17: 0 | Q17: 0
A18: B/I/1/1/2 | B18: Miejskie Zakłady Autobusowe | C18: 2 podzadanie | D18: NIE | E18: 600 | F18: 60004 | G18: 4300 | H18: Zakup usług pozostałych | I18: GMMW | P18: 0 | Q18: 0
A19: B/I/1/1/2 | B19: Miejskie Zakłady Autobusowe | C19: 2 podzadanie | D19: NIE | E19: 600 | F19: 60004 | G19: 4300 | H19: Zakup usług pozostałych | I19: GPGM | P19: 0 | Q19: 0
A20: B/I/1/1/2 | B20: Miejskie Zakłady Autobusowe | C20: 2 podzadanie | D20: NIE | E20: 600 | F20: 60004 | G20: 4370 | H20: Zakup usług związanych z pomocą obywatelom Ukrainy | I20: GUUW | P20: 0 | Q20: 0
A21: B/I/1/1/2 | B21: Miejskie Zakłady Autobusowe | C21: 2 podzadanie | D21: NIE | E21: 600 | F21: 60004 | G21: 4530 | H21: Podatek od towarów i usług (VAT) | I21: GUUW | P21: 0 | Q21: 0
A22: B/I/1/1/2 | B22: Miejskie Zakłady Autobusowe | C22: 2 podzadanie | D22: NIE | E22: 600 | F22: 60004 | G22: 4530 | H22: Podatek od towarów i usług (VAT) | I22: GMMW | P22: 0 | Q22: 0
A23: B/I/1/1/3 | B23: Pozostali przewoźnicy autobusowi | C23: 3 podzadanie | D23: T | E23: 600 | F23: 60004 | J23: =SUM(J24) -> 0 | K23: 0 | L23: 0 | M23: 0 | N23: 0 | O23: 0 | P23: 0 | Q23: 0
A24: B/I/1/1/3 | B24: Pozostali przewoźnicy autobusowi | C24: 3 podzadanie | D24: NIE | E24: 600 | F24: 60004 | J24: =SUM(J25:J29) -> 0 | K24: 0 | L24: 0 | M24: 0 | N24: 0 | O24: 0 | P24: 0 | Q24: 0
A25: B/I/1/1/3 | B25: Pozostali przewoźnicy autobusowi | C25: 3 podzadanie | D25: NIE | E25: 600 | F25: 60004 | G25: 4300 | H25: Zakup usług pozostałych | I25: GUUW | P25: 0 | Q25: 0
A26: B/I/1/1/3 | B26: Pozostali przewoźnicy autobusowi | C26: 3 podzadanie | D26: NIE | E26: 600 | F26: 60004 | G26: 4300 | H26: Zakup usług pozostałych | I26: GMMW | P26: 0 | Q26: 0
A27: B/I/1/1/3 | B27: Pozostali przewoźnicy autobusowi | C27: 3 podzadanie | D27: NIE | E27: 600 | F27: 60004 | G27: 4370 | H27: Zakup usług związanych z pomocą obywatelom Ukrainy | I27: GUUW | P27: 0 | Q27: 0
A28: B/I/1/1/3 | B28: Pozostali przewoźnicy autobusowi | C28: 3 podzadanie | D28: NIE | E28: 600 | F28: 60004 | G28: 4530 | H28: Podatek od towarów i usług (VAT) | I28: GUUW | P28: 0 | Q28: 0
A29: B/I/1/1/3 | B29: Pozostali przewoźnicy autobusowi | C29: 3 podzadanie | D29: NIE | E29: 600 | F29: 60004 | G29: 4530 | H29: Podatek od towarów i usług (VAT) | I29: GMMW | P29: 0 | Q29: 0
A30: B/I/1/1/4 | B30: Szybka Kolej Miejska | C30: 4 podzadanie | D30: T | E30: 600 | F30: 60004 | J30: =SUM(J31) -> 0 | K30: 0 | L30: 0 | M30: 0 | N30: 0 | O30: 0 | P30: 0 | Q30: 0
A31: B/I/1/1/4 | B31: Szybka Kolej Miejska | C31: 4 podzadanie | D31: NIE | E31: 600 | F31: 60004 | J31: =SUM(J32:J33) -> 0 | K31: 0 | L31: 0 | M31: 0 | N31: 0 | O31: 0 | P31: 0 | Q31: 0
A32: B/I/1/1/4 | B32: Szybka Kolej Miejska | C32: 4 podzadanie | D32: NIE | E32: 600 | F32: 60004 | G32: 4300 | H32: Zakup usług pozostałych | I32: GMMW | P32: 0 | Q32: 0
A33: B/I/1/1/4 | B33: Szybka Kolej Miejska | C33: 4 podzadanie | D33: NIE | E33: 600 | F33: 60004 | G33: 4530 | H33: Podatek od towarów i usług (VAT) | I33: GMMW | P33: 0 | Q33: 0
A34: B/I/1/1/5 | B34: Tramwaje Warszawskie | C34: 5 podzadanie | D34: T | E34: 600 | F34: 60004 | J34: =SUM(J35) -> 0 | K34: 0 | L34: 0 | M34: 0 | N34: 0 | O34: 0 | P34: 0 | Q34: 0
A35: B/I/1/1/5 | B35: Tramwaje Warszawskie | C35: 5 podzadanie | D35: NIE | E35: 600 | F35: 60004 | J35: =SUM(J36:J37) -> 0 | K35: 0 | L35: 0 | M35: 0 | N35: 0 | O35: 0 | P35: 0 | Q35: 0
A36: B/I/1/1/5 | B36: Tramwaje Warszawskie | C36: 5 podzadanie | D36: NIE | E36: 600 | F36: 60004 | G36: 4300 | H36: Zakup usług pozostałych | I36: GMMW | P36: 0 | Q36: 0
A37: B/I/1/1/5 | B37: Tramwaje Warszawskie | C37: 5 podzadanie | D37: NIE | E37: 600 | F37: 60004 | G37: 4530 | H37: Podatek od towarów i usług (VAT) | I37: GMMW | P37: 0 | Q37: 0
A38: B/I/1/1/6 | B38: Pozostali przewoźnicy kolejowi | C38: 6 podzadanie | D38: T | E38: 600 | F38: 60004 | J38: =SUM(J39) -> 0 | K38: 0 | L38: 0 | M38: 0 | N38: 0 | O38: 0 | P38: 0 | Q38: 0
A39: B/I/1/1/6 | B39: Pozostali przewoźnicy kolejowi | C39: 6 podzadanie | D39: NIE | E39: 600 | F39: 60004 | J39: =SUM(J40:J41) -> 0 | K39: 0 | L39: 0 | M39: 0 | N39: 0 | O39: 0 | P39: 0 | Q39: 0
A40: B/I/1/1/6 | B40: Pozostali przewoźnicy kolejowi | C40: 6 podzadanie | D40: NIE | E40: 600 | F40: 60004 | G40: 4300 | H40: Zakup usług pozostałych | I40: GMMW | P40: 0 | Q40: 0
A41: B/I/1/1/6 | B41: Pozostali przewoźnicy kolejowi | C41: 6 podzadanie | D41: NIE | E41: 600 | F41: 60004 | G41: 4530 | H41: Podatek od towarów i usług (VAT) | I41: GMMW | P41: 0 | Q41: 0
A42: B/I/1/2 | B42: Zarządzanie komunikacją miejską | C42: 2 zadanie | D42: T | J42: =SUM(J139,J129,J43) -> 19000 | K42: 19000 | L42: 0 | M42: 0 | N42: 0 | O42: 0 | P42: 19000 | Q42: 19000 | R42: Tak
A43: B/I/1/2/1 | B43: Utrzymanie Zarządu Transportu Miejskiego, w tym obsługa inwestycji | C43: 1 podzadanie | D43: T | E43: 600 | F43: 60004 | J43: =SUM(J125,J44) -> 0 | K43: 0 | L43: 0 | M43: 0 | N43: 0 | O43: 0 | P43: 0 | Q43: 0
A44: B/I/1/2/1 | B44: Utrzymanie Zarządu Transportu Miejskiego, w tym obsługa inwestycji | C44: 1 podzadanie | D44: NIE | E44: 600 | F44: 60004 | J44: =SUM(J45:J90,J94:J116,J120:J124) -> 0 | K44: 0 | L44: 0 | M44: 0 | N44: 0 | O44: 0 | P44: 0 | Q44: 0
A45: B/I/1/2/1 | B45: Utrzymanie Zarządu Transportu Miejskiego, w tym obsługa inwestycji | C45: 1 podzadanie | D45: NIE | E45: 600 | F45: 60004 | G45: 3020 | H45: Wydatki osobowe niezaliczone do wynagrodzeń | I45: GMMW | P45: 0 | Q45: 0
A46: B/I/1/2/1 | B46: Utrzymanie Zarządu Transportu Miejskiego, w tym obsługa inwestycji | C46: 1 podzadanie | D46: NIE | E46: 600 | F46: 60004 | G46: 4010 | H46: Wynagrodzenia osobowe pracowników | I46: GMMW | P46: 0 | Q46: 0
A47: B/I/1/2/1 | B47: Utrzymanie Zarządu Transportu Miejskiego, w tym obsługa inwestycji | C47: 1 podzadanie | D47: NIE | E47: 600 | F47: 60004 | G47: 4017 | H47: Wynagrodzenia osobowe pracowników | I47: SFUE/23/6 | P47: 0 | Q47: 0
A48: B/I/1/2/1 | B48: Utrzymanie Zarządu Transportu Miejskiego, w tym obsługa inwestycji | C48: 1 podzadanie | D48: NIE | E48: 600 | F48: 60004 | G48: 4018 | H48: Wynagrodzenia osobowe pracowników | I48: SFUE/8/59 | P48: 0 | Q48: 0
A49: B/I/1/2/1 | B49: Utrzymanie Zarządu Transportu Miejskiego, w tym obsługa inwestycji | C49: 1 podzadanie | D49: NIE | E49: 600 | F49: 60004 | G49: 4018 | H49: Wynagrodzenia osobowe pracowników | I49: SFUE/8/60 | P49: 0 | Q49: 0
A50: B/I/1/2/1 | B50: Utrzymanie Zarządu Transportu Miejskiego, w tym obsługa inwestycji | C50: 1 podzadanie | D50: NIE | E50: 600 | F50: 60004 | G50: 4018 | H50: Wynagrodzenia osobowe pracowników | I50: SFUE/8/61 | P50: 0 | Q50: 0
A51: B/I/1/2/1 | B51: Utrzymanie Zarządu Transportu Miejskiego, w tym obsługa inwestycji | C51: 1 podzadanie | D51: NIE | E51: 600 | F51: 60004 | G51: 4019 | H51: Wynagrodzenia osobowe pracowników | I51: SFUE/23/6 | P51: 0 | Q51: 0
A52: B/I/1/2/1 | B52: Utrzymanie Zarządu Transportu Miejskiego, w tym obsługa inwestycji | C52: 1 podzadanie | D52: NIE | E52: 600 | F52: 60004 | G52: 4019 | H52: Wynagrodzenia osobowe pracowników | I52: SFUE/8/60 | P52: 0 | Q52: 0
A53: B/I/1/2/1 | B53: Utrzymanie Zarządu Transportu Miejskiego, w tym obsługa inwestycji | C53: 1 podzadanie | D53: NIE | E53: 600 | F53: 60004 | G53: 4019 | H53: Wynagrodzenia osobowe pracowników | I53: SFUE/8/61 | P53: 0 | Q53: 0
A54: B/I/1/2/1 | B54: Utrzymanie Zarządu Transportu Miejskiego, w tym obsługa inwestycji | C54: 1 podzadanie | D54: NIE | E54: 600 | F54: 60004 | G54: 4040 | H54: Dodatkowe wynagrodzenie roczne | I54: GMMW | P54: 0 | Q54: 0
A55: B/I/1/2/1 | B55: Utrzymanie Zarządu Transportu Miejskiego, w tym obsługa inwestycji | C55: 1 podzadanie | D55: NIE | E55: 600 | F55: 60004 | G55: 4047 | H55: Dodatkowe wynagrodzenie roczne | I55: SFUE/23/6 | P55: 0 | Q55: 0
A56: B/I/1/2/1 | B56: Utrzymanie Zarządu Transportu Miejskiego, w tym obsługa inwestycji | C56: 1 podzadanie | D56: NIE | E56: 600 | F56: 60004 | G56: 4048 | H56: Dodatkowe wynagrodzenie roczne | I56: SFUE/8/59 | P56: 0 | Q56: 0
A57: B/I/1/2/1 | B57: Utrzymanie Zarządu Transportu Miejskiego, w tym obsługa inwestycji | C57: 1 podzadanie | D57: NIE | E57: 600 | F57: 60004 | G57: 4049 | H57: Dodatkowe wynagrodzenie roczne | I57: SFUE/23/6 | P57: 0 | Q57: 0
A58: B/I/1/2/1 | B58: Utrzymanie Zarządu Transportu Miejskiego, w tym obsługa inwestycji | C58: 1 podzadanie | D58: NIE | E58: 600 | F58: 60004 | G58: 4110 | H58: Składki na ubezpieczenia społeczne | I58: GMMW | P58: 0 | Q58: 0
A59: B/I/1/2/1 | B59: Utrzymanie Zarządu Transportu Miejskiego, w tym obsługa inwestycji | C59: 1 podzadanie | D59: NIE | E59: 600 | F59: 60004 | G59: 4117 | H59: Składki na ubezpieczenia społeczne | I59: SFUE/23/6 | P59: 0 | Q59: 0
A60: B/I/1/2/1 | B60: Utrzymanie Zarządu Transportu Miejskiego, w tym obsługa inwestycji | C60: 1 podzadanie | D60: NIE | E60: 600 | F60: 60004 | G60: 4118 | H60: Składki na ubezpieczenia społeczne | I60: SFUE/8/59 | P60: 0 | Q60: 0
A61: B/I/1/2/1 | B61: Utrzymanie Zarządu Transportu Miejskiego, w tym obsługa inwestycji | C61: 1 podzadanie | D61: NIE | E61: 600 | F61: 60004 | G61: 4118 | H61: Składki na ubezpieczenia społeczne | I61: SFUE/8/60 | P61: 0 | Q61: 0
A62: B/I/1/2/1 | B62: Utrzymanie Zarządu Transportu Miejskiego, w tym obsługa inwestycji | C62: 1 podzadanie | D62: NIE | E62: 600 | F62: 60004 | G62: 4118 | H62: Składki na ubezpieczenia społeczne | I62: SFUE/8/61 | P62: 0 | Q62: 0
A63: B/I/1/2/1 | B63: Utrzymanie Zarządu Transportu Miejskiego, w tym obsługa inwestycji | C63: 1 podzadanie | D63: NIE | E63: 600 | F63: 60004 | G63: 4119 | H63: Składki na ubezpieczenia społeczne | I63: SFUE/23/6 | P63: 0 | Q63: 0
A64: B/I/1/2/1 | B64: Utrzymanie Zarządu Transportu Miejskiego, w tym obsługa inwestycji | C64: 1 podzadanie | D64: NIE | E64: 600 | F64: 60004 | G64: 4119 | H64: Składki na ubezpieczenia społeczne | I64: SFUE/8/60 | P64: 0 | Q64: 0
A65: B/I/1/2/1 | B65: Utrzymanie Zarządu Transportu Miejskiego, w tym obsługa inwestycji | C65: 1 podzadanie | D65: NIE | E65: 600 | F65: 60004 | G65: 4119 | H65: Składki na ubezpieczenia społeczne | I65: SFUE/8/61 | P65: 0 | Q65: 0
A66: B/I/1/2/1 | B66: Utrzymanie Zarządu Transportu Miejskiego, w tym obsługa inwestycji | C66: 1 podzadanie | D66: NIE | E66: 600 | F66: 60004 | G66: 4120 | H66: Składki na Fundusz Pracy oraz Fundusz Solidarnościowy | I66: GMMW | P66: 0 | Q66: 0
A67: B/I/1/2/1 | B67: Utrzymanie Zarządu Transportu Miejskiego, w tym obsługa inwestycji | C67: 1 podzadanie | D67: NIE | E67: 600 | F67: 60004 | G67: 4127 | H67: Składki na Fundusz Pracy oraz Fundusz Solidarnościowy | I67: SFUE/23/6 | P67: 0 | Q67: 0
A68: B/I/1/2/1 | B68: Utrzymanie Zarządu Transportu Miejskiego, w tym obsługa inwestycji | C68: 1 podzadanie | D68: NIE | E68: 600 | F68: 60004 | G68: 4128 | H68: Składki na Fundusz Pracy oraz Fundusz Solidarnościowy | I68: SFUE/8/59 | P68: 0 | Q68: 0
A69: B/I/1/2/1 | B69: Utrzymanie Zarządu Transportu Miejskiego, w tym obsługa inwestycji | C69: 1 podzadanie | D69: NIE | E69: 600 | F69: 60004 | G69: 4128 | H69: Składki na Fundusz Pracy oraz Fundusz Solidarnościowy | I69: SFUE/8/60 | P69: 0 | Q69: 0
A70: B/I/1/2/1 | B70: Utrzymanie Zarządu Transportu Miejskiego, w tym obsługa inwestycji | C70: 1 podzadanie | D70: NIE | E70: 600 | F70: 60004 | G70: 4128 | H70: Składki na Fundusz Pracy oraz Fundusz Solidarnościowy | I70: SFUE/8/61 | P70: 0 | Q70: 0
A71: B/I/1/2/1 | B71: Utrzymanie Zarządu Transportu Miejskiego, w tym obsługa inwestycji | C71: 1 podzadanie | D71: NIE | E71: 600 | F71: 60004 | G71: 4129 | H71: Składki na Fundusz Pracy oraz Fundusz Solidarnościowy | I71: SFUE/23/6 | P71: 0 | Q71: 0
A72: B/I/1/2/1 | B72: Utrzymanie Zarządu Transportu Miejskiego, w tym obsługa inwestycji | C72: 1 podzadanie | D72: NIE | E72: 600 | F72: 60004 | G72: 4129 | H72: Składki na Fundusz Pracy oraz Fundusz Solidarnościowy | I72: SFUE/8/60 | P72: 0 | Q72: 0
A73: B/I/1/2/1 | B73: Utrzymanie Zarządu Transportu Miejskiego, w tym obsługa inwestycji | C73: 1 podzadanie | D73: NIE | E73: 600 | F73: 60004 | G73: 4129 | H73: Składki na Fundusz Pracy oraz Fundusz Solidarnościowy | I73: SFUE/8/61 | P73: 0 | Q73: 0
A74: B/I/1/2/1 | B74: Utrzymanie Zarządu Transportu Miejskiego, w tym obsługa inwestycji | C74: 1 podzadanie | D74: NIE | E74: 600 | F74: 60004 | G74: 4140 | H74: Wpłaty na Państwowy Fundusz Rehabilitacji Osób Niepełnosprawnych | I74: GMMW | P74: 0 | Q74: 0
A75: B/I/1/2/1 | B75: Utrzymanie Zarządu Transportu Miejskiego, w tym obsługa inwestycji | C75: 1 podzadanie | D75: NIE | E75: 600 | F75: 60004 | G75: 4170 | H75: Wynagrodzenia bezosobowe | I75: GMMW | P75: 0 | Q75: 0
A76: B/I/1/2/1 | B76: Utrzymanie Zarządu Transportu Miejskiego, w tym obsługa inwestycji | C76: 1 podzadanie | D76: NIE | E76: 600 | F76: 60004 | G76: 4190 | H76: Nagrody konkursowe | I76: GMMW | P76: 0 | Q76: 0
A77: B/I/1/2/1 | B77: Utrzymanie Zarządu Transportu Miejskiego, w tym obsługa inwestycji | C77: 1 podzadanie | D77: NIE | E77: 600 | F77: 60004 | G77: 4210 | H77: Zakup materiałów i wyposażenia | I77: GMMW/C | P77: 0 | Q77: 0
A78: B/I/1/2/1 | B78: Utrzymanie Zarządu Transportu Miejskiego, w tym obsługa inwestycji | C78: 1 podzadanie | D78: NIE | E78: 600 | F78: 60004 | G78: 4210 | H78: Zakup materiałów i wyposażenia | I78: GMMW | P78: =J78+M78-L78 -> 0 | Q78: =K78+O78-N78 -> 0 | R78: =IF(SUM(J78:Q78)>0,"Tak","") ->  | S78: =IF(SUM(L78:O78)>0,"Tak","") ->  | T78: =IF(OR(J78<K78,P78<Q78,L78<N78,M78<O78),"błędny urząd","") ->  | U78: =IF(OR(J78<0,K78<0,P78<0,Q78<0),"ujemny plan","") -> 
A79: B/I/1/2/1 | B79: Utrzymanie Zarządu Transportu Miejskiego, w tym obsługa inwestycji | C79: 1 podzadanie | D79: NIE | E79: 600 | F79: 60004 | G79: 4260 | H79: Zakup energii | I79: GMMW | P79: 0 | Q79: 0
A80: B/I/1/2/1 | B80: Utrzymanie Zarządu Transportu Miejskiego, w tym obsługa inwestycji | C80: 1 podzadanie | D80: NIE | E80: 600 | F80: 60004 | G80: 4270 | H80: Zakup usług remontowych | I80: GMMW | P80: 0 | Q80: 0
A81: B/I/1/2/1 | B81: Utrzymanie Zarządu Transportu Miejskiego, w tym obsługa inwestycji | C81: 1 podzadanie | D81: NIE | E81: 600 | F81: 60004 | G81: 4280 | H81: Zakup usług zdrowotnych | I81: GMMW/C | P81: 0 | Q81: 0
A82: B/I/1/2/1 | B82: Utrzymanie Zarządu Transportu Miejskiego, w tym obsługa inwestycji | C82: 1 podzadanie | D82: NIE | E82: 600 | F82: 60004 | G82: 4280 | H82: Zakup usług zdrowotnych | I82: GMMW | P82: 0 | Q82: 0
A83: B/I/1/2/1 | B83: Utrzymanie Zarządu Transportu Miejskiego, w tym obsługa inwestycji | C83: 1 podzadanie | D83: NIE | E83: 600 | F83: 60004 | G83: 4300 | H83: Zakup usług pozostałych | I83: GMMW | P83: 0 | Q83: 0
A84: B/I/1/2/1 | B84: Utrzymanie Zarządu Transportu Miejskiego, w tym obsługa inwestycji | C84: 1 podzadanie | D84: NIE | E84: 600 | F84: 60004 | G84: 4307 | H84: Zakup usług pozostałych | I84: SFUE/29/1 | P84: 0 | Q84: 0
A85: B/I/1/2/1 | B85: Utrzymanie Zarządu Transportu Miejskiego, w tym obsługa inwestycji | C85: 1 podzadanie | D85: NIE | E85: 600 | F85: 60004 | G85: 4309 | H85: Zakup usług pozostałych | I85: SFUE/29/1 | P85: 0 | Q85: 0
A86: B/I/1/2/1 | B86: Utrzymanie Zarządu Transportu Miejskiego, w tym obsługa inwestycji | C86: 1 podzadanie | D86: NIE | E86: 600 | F86: 60004 | G86: 4360 | H86: Opłaty z tytułu zakupu usług telekomunikacyjnych | I86: GMMW | P86: 0 | Q86: 0
A87: B/I/1/2/1 | B87: Utrzymanie Zarządu Transportu Miejskiego, w tym obsługa inwestycji | C87: 1 podzadanie | D87: NIE | E87: 600 | F87: 60004 | G87: 4380 | H87: Zakup usług obejmujących tłumaczenia | I87: GMMW | P87: 0 | Q87: 0
A88: B/I/1/2/1 | B88: Utrzymanie Zarządu Transportu Miejskiego, w tym obsługa inwestycji | C88: 1 podzadanie | D88: NIE | E88: 600 | F88: 60004 | G88: 4390 | H88: Zakup usług obejmujących wykonanie ekspertyz, analiz i opinii | I88: GMMW | P88: 0 | Q88: 0
A89: B/I/1/2/1 | B89: Utrzymanie Zarządu Transportu Miejskiego, w tym obsługa inwestycji | C89: 1 podzadanie | D89: NIE | E89: 600 | F89: 60004 | G89: 4397 | H89: Zakup usług obejmujących wykonanie ekspertyz, analiz i opinii | I89: SFUE/29/1 | P89: 0 | Q89: 0
A90: B/I/1/2/1 | B90: Utrzymanie Zarządu Transportu Miejskiego, w tym obsługa inwestycji | C90: 1 podzadanie | D90: NIE | E90: 600 | F90: 60004 | G90: 4399 | H90: Zakup usług obejmujących wykonanie ekspertyz, analiz i opinii | J90: =SUM(J91:J93) -> 0 | K90: 0 | L90: 0 | M90: 0 | N90: 0 | O90: 0 | P90: 0 | Q90: 0
A91: B/I/1/2/1 | B91: Utrzymanie Zarządu Transportu Miejskiego, w tym obsługa inwestycji | C91: 1 podzadanie | D91: NIE | E91: 600 | F91: 60004 | G91: 4399 | H91: +000 | I91: SFUE/29/1 | P91: 0 | Q91: 0
A92: B/I/1/2/1 | B92: Utrzymanie Zarządu Transportu Miejskiego, w tym obsługa inwestycji | C92: 1 podzadanie | D92: NIE | E92: 600 | F92: 60004 | G92: 4399 | H92: +001 | I92: SFUE/29/1 | P92: 0 | Q92: 0
A93: B/I/1/2/1 | B93: Utrzymanie Zarządu Transportu Miejskiego, w tym obsługa inwestycji | C93: 1 podzadanie | D93: NIE | E93: 600 | F93: 60004 | G93: 4399 | H93: +002 | I93: SFUE/29/1 | P93: 0 | Q93: 0
A94: B/I/1/2/1 | B94: Utrzymanie Zarządu Transportu Miejskiego, w tym obsługa inwestycji | C94: 1 podzadanie | D94: NIE | E94: 600 | F94: 60004 | G94: 4400 | H94: Opłaty za administrowanie i czynsze za budynki, lokale i pomieszczenia garażowe | I94: GMMW | P94: 0 | Q94: 0
A95: B/I/1/2/1 | B95: Utrzymanie Zarządu Transportu Miejskiego, w tym obsługa inwestycji | C95: 1 podzadanie | D95: NIE | E95: 600 | F95: 60004 | G95: 4410 | H95: Podróże służbowe krajowe | I95: GMMW | P95: 0 | Q95: 0
A96: B/I/1/2/1 | B96: Utrzymanie Zarządu Transportu Miejskiego, w tym obsługa inwestycji | C96: 1 podzadanie | D96: NIE | E96: 600 | F96: 60004 | G96: 4420 | H96: Podróże służbowe zagraniczne | I96: GMMW | P96: 0 | Q96: 0
A97: B/I/1/2/1 | B97: Utrzymanie Zarządu Transportu Miejskiego, w tym obsługa inwestycji | C97: 1 podzadanie | D97: NIE | E97: 600 | F97: 60004 | G97: 4428 | H97: Podróże służbowe zagraniczne | I97: SFUE/8/59 | P97: 0 | Q97: 0
A98: B/I/1/2/1 | B98: Utrzymanie Zarządu Transportu Miejskiego, w tym obsługa inwestycji | C98: 1 podzadanie | D98: NIE | E98: 600 | F98: 60004 | G98: 4428 | H98: Podróże służbowe zagraniczne | I98: SFUE/8/60 | P98: 0 | Q98: 0
A99: B/I/1/2/1 | B99: Utrzymanie Zarządu Transportu Miejskiego, w tym obsługa inwestycji | C99: 1 podzadanie | D99: NIE | E99: 600 | F99: 60004 | G99: 4428 | H99: Podróże służbowe zagraniczne | I99: SFUE/8/61 | P99: 0 | Q99: 0
A100: B/I/1/2/1 | B100: Utrzymanie Zarządu Transportu Miejskiego, w tym obsługa inwestycji | C100: 1 podzadanie | D100: NIE | E100: 600 | F100: 60004 | G100: 4429 | H100: Podróże służbowe zagraniczne | I100: SFUE/8/60 | P100: 0 | Q100: 0
A101: B/I/1/2/1 | B101: Utrzymanie Zarządu Transportu Miejskiego, w tym obsługa inwestycji | C101: 1 podzadanie | D101: NIE | E101: 600 | F101: 60004 | G101: 4429 | H101: Podróże służbowe zagraniczne | I101: SFUE/8/61 | P101: 0 | Q101: 0
A102: B/I/1/2/1 | B102: Utrzymanie Zarządu Transportu Miejskiego, w tym obsługa inwestycji | C102: 1 podzadanie | D102: NIE | E102: 600 | F102: 60004 | G102: 4430 | H102: Różne opłaty i składki | I102: GMMW | P102: 0 | Q102: 0
A103: B/I/1/2/1 | B103: Utrzymanie Zarządu Transportu Miejskiego, w tym obsługa inwestycji | C103: 1 podzadanie | D103: NIE | E103: 600 | F103: 60004 | G103: 4440 | H103: Odpisy na zakładowy fundusz świadczeń socjalnych | I103: GMMW | P103: 0 | Q103: 0
A104: B/I/1/2/1 | B104: Utrzymanie Zarządu Transportu Miejskiego, w tym obsługa inwestycji | C104: 1 podzadanie | D104: NIE | E104: 600 | F104: 60004 | G104: 4480 | H104: Podatek od nieruchomości | I104: GMMW | P104: 0 | Q104: 0
A105: B/I/1/2/1 | B105: Utrzymanie Zarządu Transportu Miejskiego, w tym obsługa inwestycji | C105: 1 podzadanie | D105: NIE | E105: 600 | F105: 60004 | G105: 4510 | H105: Opłaty na rzecz budżetu państwa | I105: GMMW | P105: 0 | Q105: 0
A106: B/I/1/2/1 | B106: Utrzymanie Zarządu Transportu Miejskiego, w tym obsługa inwestycji | C106: 1 podzadanie | D106: NIE | E106: 600 | F106: 60004 | G106: 4530 | H106: Podatek od towarów i usług (VAT) | I106: GMMW/C | P106: 0 | Q106: 0
A107: B/I/1/2/1 | B107: Utrzymanie Zarządu Transportu Miejskiego, w tym obsługa inwestycji | C107: 1 podzadanie | D107: NIE | E107: 600 | F107: 60004 | G107: 4530 | H107: Podatek od towarów i usług (VAT) | I107: GMMW | P107: 0 | Q107: 0
A108: B/I/1/2/1 | B108: Utrzymanie Zarządu Transportu Miejskiego, w tym obsługa inwestycji | C108: 1 podzadanie | D108: NIE | E108: 600 | F108: 60004 | G108: 4530 | H108: Podatek od towarów i usług (VAT) | I108: SFUE/29/1 | P108: 0 | Q108: 0
A109: B/I/1/2/1 | B109: Utrzymanie Zarządu Transportu Miejskiego, w tym obsługa inwestycji | C109: 1 podzadanie | D109: NIE | E109: 600 | F109: 60004 | G109: 4540 | H109: Składki do organizacji międzynarodowych | I109: GMMW | P109: 0 | Q109: 0
A110: B/I/1/2/1 | B110: Utrzymanie Zarządu Transportu Miejskiego, w tym obsługa inwestycji | C110: 1 podzadanie | D110: NIE | E110: 600 | F110: 60004 | G110: 4590 | H110: Kary i odszkodowania wypłacane na rzecz osób fizycznych | I110: GMMW | P110: 0 | Q110: 0
A111: B/I/1/2/1 | B111: Utrzymanie Zarządu Transportu Miejskiego, w tym obsługa inwestycji | C111: 1 podzadanie | D111: NIE | E111: 600 | F111: 60004 | G111: 4600 | H111: Kary, odszkodowania i grzywny wypłacane na rzecz osób prawnych i innych jednostek organizacyjnych | I111: GMMW | P111: 0 | Q111: 0
A112: B/I/1/2/1 | B112: Utrzymanie Zarządu Transportu Miejskiego, w tym obsługa inwestycji | C112: 1 podzadanie | D112: NIE | E112: 600 | F112: 60004 | G112: 4610 | H112: Koszty postępowania sądowego i prokuratorskiego | I112: GMMW | P112: 0 | Q112: 0
A113: B/I/1/2/1 | B113: Utrzymanie Zarządu Transportu Miejskiego, w tym obsługa inwestycji | C113: 1 podzadanie | D113: NIE | E113: 600 | F113: 60004 | G113: 4700 | H113: Szkolenia pracowników niebędących członkami korpusu służby cywilnej | I113: GMMW/C | P113: 0 | Q113: 0
A114: B/I/1/2/1 | B114: Utrzymanie Zarządu Transportu Miejskiego, w tym obsługa inwestycji | C114: 1 podzadanie | D114: NIE | E114: 600 | F114: 60004 | G114: 4700 | H114: Szkolenia pracowników niebędących członkami korpusu służby cywilnej | I114: GMMW | P114: 0 | Q114: 0
A115: B/I/1/2/1 | B115: Utrzymanie Zarządu Transportu Miejskiego, w tym obsługa inwestycji | C115: 1 podzadanie | D115: NIE | E115: 600 | F115: 60004 | G115: 4707 | H115: Szkolenia pracowników niebędących członkami korpusu służby cywilnej | I115: SFUE/29/1 | P115: 0 | Q115: 0
A116: B/I/1/2/1 | B116: Utrzymanie Zarządu Transportu Miejskiego, w tym obsługa inwestycji | C116: 1 podzadanie | D116: NIE | E116: 600 | F116: 60004 | G116: 4709 | H116: Szkolenia pracowników niebędących członkami korpusu służby cywilnej | J116: =SUM(J117:J119) -> 0 | K116: 0 | L116: 0 | M116: 0 | N116: 0 | O116: 0 | P116: 0 | Q116: 0
A117: B/I/1/2/1 | B117: Utrzymanie Zarządu Transportu Miejskiego, w tym obsługa inwestycji | C117: 1 podzadanie | D117: NIE | E117: 600 | F117: 60004 | G117: 4709 | H117: +000 | I117: SFUE/29/1 | P117: 0 | Q117: 0
A118: B/I/1/2/1 | B118: Utrzymanie Zarządu Transportu Miejskiego, w tym obsługa inwestycji | C118: 1 podzadanie | D118: NIE | E118: 600 | F118: 60004 | G118: 4709 | H118: +001 | I118: SFUE/29/1 | P118: 0 | Q118: 0
A119: B/I/1/2/1 | B119: Utrzymanie Zarządu Transportu Miejskiego, w tym obsługa inwestycji | C119: 1 podzadanie | D119: NIE | E119: 600 | F119: 60004 | G119: 4709 | H119: +002 | I119: SFUE/29/1 | P119: 0 | Q119: 0
A120: B/I/1/2/1 | B120: Utrzymanie Zarządu Transportu Miejskiego, w tym obsługa inwestycji | C120: 1 podzadanie | D120: NIE | E120: 600 | F120: 60004 | G120: 4710 | H120: Wpłaty na PPK finansowane przez podmiot zatrudniający | I120: GMMW | P120: 0 | Q120: 0
A121: B/I/1/2/1 | B121: Utrzymanie Zarządu Transportu Miejskiego, w tym obsługa inwestycji | C121: 1 podzadanie | D121: NIE | E121: 600 | F121: 60004 | G121: 4718 | H121: Wpłaty na PPK finansowane przez podmiot zatrudniający | I121: SFUE/8/59 | P121: 0 | Q121: 0
A122: B/I/1/2/1 | B122: Utrzymanie Zarządu Transportu Miejskiego, w tym obsługa inwestycji | C122: 1 podzadanie | D122: NIE | E122: 600 | F122: 60004 | G122: 4718 | H122: Wpłaty na PPK finansowane przez podmiot zatrudniający | I122: SFUE/8/61 | P122: 0 | Q122: 0
A123: B/I/1/2/1 | B123: Utrzymanie Zarządu Transportu Miejskiego, w tym obsługa inwestycji | C123: 1 podzadanie | D123: NIE | E123: 600 | F123: 60004 | G123: 4719 | H123: Wpłaty na PPK finansowane przez podmiot zatrudniający | I123: SFUE/8/61 | P123: 0 | Q123: 0
A124: B/I/1/2/1 | B124: Utrzymanie Zarządu Transportu Miejskiego, w tym obsługa inwestycji | C124: 1 podzadanie | D124: NIE | E124: 600 | F124: 60004 | G124: 4950 | H124: Różnice kursowe | I124: GMMW | P124: 0 | Q124: 0
A125: B/I/1/2/1 | B125: Utrzymanie Zarządu Transportu Miejskiego, w tym obsługa inwestycji | C125: 1 podzadanie | D125: NIE | E125: 754 | F125: 75416 | J125: =SUM(J126:J128) -> 0 | K125: 0 | L125: 0 | M125: 0 | N125: 0 | O125: 0 | P125: 0 | Q125: 0
A126: B/I/1/2/1 | B126: Utrzymanie Zarządu Transportu Miejskiego, w tym obsługa inwestycji | C126: 1 podzadanie | D126: NIE | E126: 754 | F126: 75416 | G126: 4260 | H126: Zakup energii | I126: GMMW | P126: 0 | Q126: 0
A127: B/I/1/2/1 | B127: Utrzymanie Zarządu Transportu Miejskiego, w tym obsługa inwestycji | C127: 1 podzadanie | D127: NIE | E127: 754 | F127: 75416 | G127: 4300 | H127: Zakup usług pozostałych | I127: GMMW | P127: 0 | Q127: 0
A128: B/I/1/2/1 | B128: Utrzymanie Zarządu Transportu Miejskiego, w tym obsługa inwestycji | C128: 1 podzadanie | D128: NIE | E128: 754 | F128: 75416 | G128: 4400 | H128: Opłaty za administrowanie i czynsze za budynki, lokale i pomieszczenia garażowe | I128: GMMW | P128: 0 | Q128: 0
A129: B/I/1/2/2 | B129: Utrzymanie i obsługa systemu biletowego | C129: 2 podzadanie | D129: T | E129: 600 | F129: 60004 | J129: =SUM(J130) -> 0 | K129: 0 | L129: 0 | M129: 0 | N129: 0 | O129: 0 | P129: 0 | Q129: 0
A130: B/I/1/2/2 | B130: Utrzymanie i obsługa systemu biletowego | C130: 2 podzadanie | D130: NIE | E130: 600 | F130: 60004 | J130: =SUM(J131:J138) -> 0 | K130: 0 | L130: 0 | M130: 0 | N130: 0 | O130: 0 | P130: 0 | Q130: 0
A131: B/I/1/2/2 | B131: Utrzymanie i obsługa systemu biletowego | C131: 2 podzadanie | D131: NIE | E131: 600 | F131: 60004 | G131: 4190 | H131: Nagrody konkursowe | I131: GMMW | P131: 0 | Q131: 0
A132: B/I/1/2/2 | B132: Utrzymanie i obsługa systemu biletowego | C132: 2 podzadanie | D132: NIE | E132: 600 | F132: 60004 | G132: 4210 | H132: Zakup materiałów i wyposażenia | I132: GMMW | P132: 0 | Q132: 0
A133: B/I/1/2/2 | B133: Utrzymanie i obsługa systemu biletowego | C133: 2 podzadanie | D133: NIE | E133: 600 | F133: 60004 | G133: 4260 | H133: Zakup energii | I133: GMMW | P133: 0 | Q133: 0
A134: B/I/1/2/2 | B134: Utrzymanie i obsługa systemu biletowego | C134: 2 podzadanie | D134: NIE | E134: 600 | F134: 60004 | G134: 4270 | H134: Zakup usług remontowych | I134: GMMW | P134: 0 | Q134: 0
A135: B/I/1/2/2 | B135: Utrzymanie i obsługa systemu biletowego | C135: 2 podzadanie | D135: NIE | E135: 600 | F135: 60004 | G135: 4300 | H135: Zakup usług pozostałych | I135: GMMW | P135: 0 | Q135: 0
A136: B/I/1/2/2 | B136: Utrzymanie i obsługa systemu biletowego | C136: 2 podzadanie | D136: NIE | E136: 600 | F136: 60004 | G136: 4400 | H136: Opłaty za administrowanie i czynsze za budynki, lokale i pomieszczenia garażowe | I136: GMMW | P136: 0 | Q136: 0
A137: B/I/1/2/2 | B137: Utrzymanie i obsługa systemu biletowego | C137: 2 podzadanie | D137: NIE | E137: 600 | F137: 60004 | G137: 4530 | H137: Podatek od towarów i usług (VAT) | I137: GMMW | P137: 0 | Q137: 0
A138: B/I/1/2/2 | B138: Utrzymanie i obsługa systemu biletowego | C138: 2 podzadanie | D138: NIE | E138: 600 | F138: 60004 | G138: 4610 | H138: Koszty postępowania sądowego i prokuratorskiego | I138: GMMW | P138: 0 | Q138: 0
A139: B/I/1/2/3 | B139: Organizacja komunikacji, marketing, nadzór i kontrola ruchu | C139: 3 podzadanie | D139: T | J139: =SUM(J181,J176,J140) -> 19000 | K139: 19000 | L139: 0 | M139: 0 | N139: 0 | O139: 0 | P139: 19000 | Q139: 19000 | R139: Tak
A140: B/I/1/2/3 | B140: Organizacja komunikacji, marketing, nadzór i kontrola ruchu | C140: 3 podzadanie | D140: NIE | E140: 600 | F140: 60004 | J140: =SUM(J141:J165,J169:J172) -> 0 | K140: 0 | L140: 0 | M140: 0 | N140: 0 | O140: 0 | P140: 0 | Q140: 0
A141: B/I/1/2/3 | B141: Organizacja komunikacji, marketing, nadzór i kontrola ruchu | C141: 3 podzadanie | D141: NIE | E141: 600 | F141: 60004 | G141: 3020 | H141: Wydatki osobowe niezaliczone do wynagrodzeń | I141: GMMW | P141: 0 | Q141: 0
A142: B/I/1/2/3 | B142: Organizacja komunikacji, marketing, nadzór i kontrola ruchu | C142: 3 podzadanie | D142: NIE | E142: 600 | F142: 60004 | G142: 4210 | H142: Zakup materiałów i wyposażenia | I142: GMMW | P142: =J142+M142-L142 -> 0 | Q142: =K142+O142-N142 -> 0 | R142: =IF(SUM(J142:Q142)>0,"Tak","") ->  | S142: =IF(SUM(L142:O142)>0,"Tak","") ->  | T142: =IF(OR(J142<K142,P142<Q142,L142<N142,M142<O142),"błędny urząd","") ->  | U142: =IF(OR(J142<0,K142<0,P142<0,Q142<0),"ujemny plan","") -> 
A143: B/I/1/2/3 | B143: Organizacja komunikacji, marketing, nadzór i kontrola ruchu | C143: 3 podzadanie | D143: NIE | E143: 600 | F143: 60004 | G143: 4218 | H143: Zakup materiałów i wyposażenia | I143: SFUE/8/59 | P143: 0 | Q143: 0
A144: B/I/1/2/3 | B144: Organizacja komunikacji, marketing, nadzór i kontrola ruchu | C144: 3 podzadanie | D144: NIE | E144: 600 | F144: 60004 | G144: 4218 | H144: Zakup materiałów i wyposażenia | I144: SFUE/8/60 | P144: 0 | Q144: 0
A145: B/I/1/2/3 | B145: Organizacja komunikacji, marketing, nadzór i kontrola ruchu | C145: 3 podzadanie | D145: NIE | E145: 600 | F145: 60004 | G145: 4218 | H145: Zakup materiałów i wyposażenia | I145: SFUE/8/61 | P145: 0 | Q145: 0
A146: B/I/1/2/3 | B146: Organizacja komunikacji, marketing, nadzór i kontrola ruchu | C146: 3 podzadanie | D146: NIE | E146: 600 | F146: 60004 | G146: 4219 | H146: Zakup materiałów i wyposażenia | I146: SFUE/8/61 | P146: 0 | Q146: 0
A147: B/I/1/2/3 | B147: Organizacja komunikacji, marketing, nadzór i kontrola ruchu | C147: 3 podzadanie | D147: NIE | E147: 600 | F147: 60004 | G147: 4270 | H147: Zakup usług remontowych | I147: GMMW | P147: 0 | Q147: 0
A148: B/I/1/2/3 | B148: Organizacja komunikacji, marketing, nadzór i kontrola ruchu | C148: 3 podzadanie | D148: NIE | E148: 600 | F148: 60004 | G148: 4300 | H148: Zakup usług pozostałych | I148: GMMW | P148: 0 | Q148: 0
A149: B/I/1/2/3 | B149: Organizacja komunikacji, marketing, nadzór i kontrola ruchu | C149: 3 podzadanie | D149: NIE | E149: 600 | F149: 60004 | G149: 4307 | H149: Zakup usług pozostałych | I149: SFUE/23/6 | P149: 0 | Q149: 0
A150: B/I/1/2/3 | B150: Organizacja komunikacji, marketing, nadzór i kontrola ruchu | C150: 3 podzadanie | D150: NIE | E150: 600 | F150: 60004 | G150: 4308 | H150: Zakup usług pozostałych | I150: SFUE/8/59 | P150: 0 | Q150: 0
A151: B/I/1/2/3 | B151: Organizacja komunikacji, marketing, nadzór i kontrola ruchu | C151: 3 podzadanie | D151: NIE | E151: 600 | F151: 60004 | G151: 4308 | H151: Zakup usług pozostałych | I151: SFUE/8/60 | P151: 0 | Q151: 0
A152: B/I/1/2/3 | B152: Organizacja komunikacji, marketing, nadzór i kontrola ruchu | C152: 3 podzadanie | D152: NIE | E152: 600 | F152: 60004 | G152: 4308 | H152: Zakup usług pozostałych | I152: SFUE/8/61 | P152: 0 | Q152: 0
A153: B/I/1/2/3 | B153: Organizacja komunikacji, marketing, nadzór i kontrola ruchu | C153: 3 podzadanie | D153: NIE | E153: 600 | F153: 60004 | G153: 4309 | H153: Zakup usług pozostałych | I153: SFUE/23/6 | P153: 0 | Q153: 0
A154: B/I/1/2/3 | B154: Organizacja komunikacji, marketing, nadzór i kontrola ruchu | C154: 3 podzadanie | D154: NIE | E154: 600 | F154: 60004 | G154: 4309 | H154: Zakup usług pozostałych | I154: SFUE/8/61 | P154: 0 | Q154: 0
A155: B/I/1/2/3 | B155: Organizacja komunikacji, marketing, nadzór i kontrola ruchu | C155: 3 podzadanie | D155: NIE | E155: 600 | F155: 60004 | G155: 4388 | H155: Zakup usług obejmujących tłumaczenia | I155: SFUE/8/59 | P155: 0 | Q155: 0
A156: B/I/1/2/3 | B156: Organizacja komunikacji, marketing, nadzór i kontrola ruchu | C156: 3 podzadanie | D156: NIE | E156: 600 | F156: 60004 | G156: 4388 | H156: Zakup usług obejmujących tłumaczenia | I156: SFUE/8/60 | P156: 0 | Q156: 0
A157: B/I/1/2/3 | B157: Organizacja komunikacji, marketing, nadzór i kontrola ruchu | C157: 3 podzadanie | D157: NIE | E157: 600 | F157: 60004 | G157: 4388 | H157: Zakup usług obejmujących tłumaczenia | I157: SFUE/8/61 | P157: 0 | Q157: 0
A158: B/I/1/2/3 | B158: Organizacja komunikacji, marketing, nadzór i kontrola ruchu | C158: 3 podzadanie | D158: NIE | E158: 600 | F158: 60004 | G158: 4389 | H158: Zakup usług obejmujących tłumaczenia | I158: SFUE/8/61 | P158: 0 | Q158: 0
A159: B/I/1/2/3 | B159: Organizacja komunikacji, marketing, nadzór i kontrola ruchu | C159: 3 podzadanie | D159: NIE | E159: 600 | F159: 60004 | G159: 4390 | H159: Zakup usług obejmujących wykonanie ekspertyz, analiz i opinii | I159: GMMW | P159: 0 | Q159: 0
A160: B/I/1/2/3 | B160: Organizacja komunikacji, marketing, nadzór i kontrola ruchu | C160: 3 podzadanie | D160: NIE | E160: 600 | F160: 60004 | G160: 4398 | H160: Zakup usług obejmujących wykonanie ekspertyz, analiz i opinii | I160: SFUE/19/6 | P160: 0 | Q160: 0
A161: B/I/1/2/3 | B161: Organizacja komunikacji, marketing, nadzór i kontrola ruchu | C161: 3 podzadanie | D161: NIE | E161: 600 | F161: 60004 | G161: 4398 | H161: Zakup usług obejmujących wykonanie ekspertyz, analiz i opinii | I161: SFUE/8/59 | P161: 0 | Q161: 0
A162: B/I/1/2/3 | B162: Organizacja komunikacji, marketing, nadzór i kontrola ruchu | C162: 3 podzadanie | D162: NIE | E162: 600 | F162: 60004 | G162: 4398 | H162: Zakup usług obejmujących wykonanie ekspertyz, analiz i opinii | I162: SFUE/8/60 | P162: 0 | Q162: 0
A163: B/I/1/2/3 | B163: Organizacja komunikacji, marketing, nadzór i kontrola ruchu | C163: 3 podzadanie | D163: NIE | E163: 600 | F163: 60004 | G163: 4398 | H163: Zakup usług obejmujących wykonanie ekspertyz, analiz i opinii | I163: SFUE/8/61 | P163: 0 | Q163: 0
A164: B/I/1/2/3 | B164: Organizacja komunikacji, marketing, nadzór i kontrola ruchu | C164: 3 podzadanie | D164: NIE | E164: 600 | F164: 60004 | G164: 4399 | H164: Zakup usług obejmujących wykonanie ekspertyz, analiz i opinii | I164: SFUE/8/61 | P164: 0 | Q164: 0
A165: B/I/1/2/3 | B165: Organizacja komunikacji, marketing, nadzór i kontrola ruchu | C165: 3 podzadanie | D165: NIE | E165: 600 | F165: 60004 | G165: 4399 | H165: Zakup usług obejmujących wykonanie ekspertyz, analiz i opinii | J165: =SUM(J166:J168) -> 0 | K165: 0 | L165: 0 | M165: 0 | N165: 0 | O165: 0 | P165: 0 | Q165: 0
A166: B/I/1/2/3 | B166: Organizacja komunikacji, marketing, nadzór i kontrola ruchu | C166: 3 podzadanie | D166: NIE | E166: 600 | F166: 60004 | G166: 4399 | H166: +000 | I166: SFUE/19/6 | P166: 0 | Q166: 0
A167: B/I/1/2/3 | B167: Organizacja komunikacji, marketing, nadzór i kontrola ruchu | C167: 3 podzadanie | D167: NIE | E167: 600 | F167: 60004 | G167: 4399 | H167: +001 | I167: SFUE/19/6 | P167: 0 | Q167: 0
A168: B/I/1/2/3 | B168: Organizacja komunikacji, marketing, nadzór i kontrola ruchu | C168: 3 podzadanie | D168: NIE | E168: 600 | F168: 60004 | G168: 4399 | H168: +002 | I168: SFUE/19/6 | P168: 0 | Q168: 0
A169: B/I/1/2/3 | B169: Organizacja komunikacji, marketing, nadzór i kontrola ruchu | C169: 3 podzadanie | D169: NIE | E169: 600 | F169: 60004 | G169: 4530 | H169: Podatek od towarów i usług (VAT) | I169: GMMW | P169: 0 | Q169: 0
A170: B/I/1/2/3 | B170: Organizacja komunikacji, marketing, nadzór i kontrola ruchu | C170: 3 podzadanie | D170: NIE | E170: 600 | F170: 60004 | G170: 4530 | H170: Podatek od towarów i usług (VAT) | I170: SFUE/23/6 | P170: 0 | Q170: 0
A171: B/I/1/2/3 | B171: Organizacja komunikacji, marketing, nadzór i kontrola ruchu | C171: 3 podzadanie | D171: NIE | E171: 600 | F171: 60004 | G171: 4538 | H171: Podatek od towarów i usług (VAT) | I171: SFUE/19/6 | P171: 0 | Q171: 0
A172: B/I/1/2/3 | B172: Organizacja komunikacji, marketing, nadzór i kontrola ruchu | C172: 3 podzadanie | D172: NIE | E172: 600 | F172: 60004 | G172: 4539 | H172: Podatek od towarów i usług (VAT) | J172: =SUM(J173:J175) -> 0 | K172: 0 | L172: 0 | M172: 0 | N172: 0 | O172: 0 | P172: 0 | Q172: 0
A173: B/I/1/2/3 | B173: Organizacja komunikacji, marketing, nadzór i kontrola ruchu | C173: 3 podzadanie | D173: NIE | E173: 600 | F173: 60004 | G173: 4539 | H173: +000 | I173: SFUE/19/6 | P173: 0 | Q173: 0
A174: B/I/1/2/3 | B174: Organizacja komunikacji, marketing, nadzór i kontrola ruchu | C174: 3 podzadanie | D174: NIE | E174: 600 | F174: 60004 | G174: 4539 | H174: +001 | I174: SFUE/19/6 | P174: 0 | Q174: 0
A175: B/I/1/2/3 | B175: Organizacja komunikacji, marketing, nadzór i kontrola ruchu | C175: 3 podzadanie | D175: NIE | E175: 600 | F175: 60004 | G175: 4539 | H175: +002 | I175: SFUE/19/6 | P175: 0 | Q175: 0
A176: B/I/1/2/3 | B176: Organizacja komunikacji, marketing, nadzór i kontrola ruchu | C176: 3 podzadanie | D176: NIE | E176: 600 | F176: 60022 | J176: =SUM(J177:J180) -> 0 | K176: 0 | L176: 0 | M176: 0 | N176: 0 | O176: 0 | P176: 0 | Q176: 0
A177: B/I/1/2/3 | B177: Organizacja komunikacji, marketing, nadzór i kontrola ruchu | C177: 3 podzadanie | D177: NIE | E177: 600 | F177: 60022 | G177: 4210 | H177: Zakup materiałów i wyposażenia | I177: GMMW | P177: 0 | Q177: 0
A178: B/I/1/2/3 | B178: Organizacja komunikacji, marketing, nadzór i kontrola ruchu | C178: 3 podzadanie | D178: NIE | E178: 600 | F178: 60022 | G178: 4270 | H178: Zakup usług remontowych | I178: GMMW | P178: 0 | Q178: 0
A179: B/I/1/2/3 | B179: Organizacja komunikacji, marketing, nadzór i kontrola ruchu | C179: 3 podzadanie | D179: NIE | E179: 600 | F179: 60022 | G179: 4300 | H179: Zakup usług pozostałych | I179: GMMW | P179: 0 | Q179: 0
A180: B/I/1/2/3 | B180: Organizacja komunikacji, marketing, nadzór i kontrola ruchu | C180: 3 podzadanie | D180: NIE | E180: 600 | F180: 60022 | G180: 4430 | H180: Różne opłaty i składki | I180: GMMW | P180: 0 | Q180: 0
A181: B/I/1/2/3 | B181: Organizacja komunikacji, marketing, nadzór i kontrola ruchu | C181: 3 podzadanie | D181: NIE | E181: 600 | F181: 60095 | J181: =SUM(J182:J185) -> 19000 | K181: 19000 | L181: 0 | M181: 0 | N181: 0 | O181: 0 | P181: 19000 | Q181: 19000 | R181: Tak
A182: B/I/1/2/3 | B182: Organizacja komunikacji, marketing, nadzór i kontrola ruchu | C182: 3 podzadanie | D182: NIE | E182: 600 | F182: 60095 | G182: 4210 | H182: Zakup materiałów i wyposażenia | I182: BO/25/01/0038 | J182: 3000 | K182: 3000 | P182: 3000 | Q182: 3000 | R182: Tak
A183: B/I/1/2/3 | B183: Organizacja komunikacji, marketing, nadzór i kontrola ruchu | C183: 3 podzadanie | D183: NIE | E183: 600 | F183: 60095 | G183: 4210 | H183: Zakup materiałów i wyposażenia | I183: GMMW | P183: 0 | Q183: 0
A184: B/I/1/2/3 | B184: Organizacja komunikacji, marketing, nadzór i kontrola ruchu | C184: 3 podzadanie | D184: NIE | E184: 600 | F184: 60095 | G184: 4270 | H184: Zakup usług remontowych | I184: GMMW | J184: 16000 | K184: 16000 | P184: 16000 | Q184: 16000 | R184: Tak
A185: B/I/1/2/3 | B185: Organizacja komunikacji, marketing, nadzór i kontrola ruchu | C185: 3 podzadanie | D185: NIE | E185: 600 | F185: 60095 | G185: 4300 | H185: Zakup usług pozostałych | I185: GMMW | P185: 0 | Q185: 0
A186: B/I/1/3 | B186: Utrzymanie infrastruktury przystankowej | C186: 3 zadanie | D186: T | J186: =SUM(J187) -> 0 | K186: 0 | L186: 0 | M186: 0 | N186: 0 | O186: 0 | P186: 0 | Q186: 0
A187: B/I/1/3 | B187: Utrzymanie infrastruktury przystankowej | C187: 3 zadanie | D187: NIE | E187: 600 | F187: 60020 | J187: =SUM(J188:J196) -> 0 | K187: 0 | L187: 0 | M187: 0 | N187: 0 | O187: 0 | P187: 0 | Q187: 0
A188: B/I/1/3 | B188: Utrzymanie infrastruktury przystankowej | C188: 3 zadanie | D188: NIE | E188: 600 | F188: 60020 | G188: 4210 | H188: Zakup materiałów i wyposażenia | I188: GMMW | P188: 0 | Q188: 0
A189: B/I/1/3 | B189: Utrzymanie infrastruktury przystankowej | C189: 3 zadanie | D189: NIE | E189: 600 | F189: 60020 | G189: 4270 | H189: Zakup usług remontowych | I189: GMMW/C | P189: 0 | Q189: 0
A190: B/I/1/3 | B190: Utrzymanie infrastruktury przystankowej | C190: 3 zadanie | D190: NIE | E190: 600 | F190: 60020 | G190: 4270 | H190: Zakup usług remontowych | I190: GMMW | P190: 0 | Q190: 0
A191: B/I/1/3 | B191: Utrzymanie infrastruktury przystankowej | C191: 3 zadanie | D191: NIE | E191: 600 | F191: 60020 | G191: 4270 | H191: Zakup usług remontowych | I191: GUPP | P191: 0 | Q191: 0
A192: B/I/1/3 | B192: Utrzymanie infrastruktury przystankowej | C192: 3 zadanie | D192: NIE | E192: 600 | F192: 60020 | G192: 4300 | H192: Zakup usług pozostałych | I192: GMMW/C | P192: 0 | Q192: 0
A193: B/I/1/3 | B193: Utrzymanie infrastruktury przystankowej | C193: 3 zadanie | D193: NIE | E193: 600 | F193: 60020 | G193: 4300 | H193: Zakup usług pozostałych | I193: GMMW | P193: 0 | Q193: 0
A194: B/I/1/3 | B194: Utrzymanie infrastruktury przystankowej | C194: 3 zadanie | D194: NIE | E194: 600 | F194: 60020 | G194: 4520 | H194: Opłaty na rzecz budżetów jednostek samorządu terytorialnego | I194: GMMW | P194: 0 | Q194: 0
A195: B/I/1/3 | B195: Utrzymanie infrastruktury przystankowej | C195: 3 zadanie | D195: NIE | E195: 600 | F195: 60020 | G195: 4530 | H195: Podatek od towarów i usług (VAT) | I195: GMMW/C | P195: 0 | Q195: 0
A196: B/I/1/3 | B196: Utrzymanie infrastruktury przystankowej | C196: 3 zadanie | D196: NIE | E196: 600 | F196: 60020 | G196: 4530 | H196: Podatek od towarów i usług (VAT) | I196: GMMW | P196: 0 | Q196: 0
A197: B/I/1/4 | B197: Opracowania i analizy związane z komunikacją miejską | C197: 4 zadanie | D197: T | J197: =SUM(J204,J198) -> 0 | K197: 0 | L197: 0 | M197: 0 | N197: 0 | O197: 0 | P197: 0 | Q197: 0
A198: B/I/1/4 | B198: Opracowania i analizy związane z komunikacją miejską | C198: 4 zadanie | D198: NIE | E198: 600 | F198: 60004 | J198: =SUM(J199:J203) -> 0 | K198: 0 | L198: 0 | M198: 0 | N198: 0 | O198: 0 | P198: 0 | Q198: 0
A199: B/I/1/4 | B199: Opracowania i analizy związane z komunikacją miejską | C199: 4 zadanie | D199: NIE | E199: 600 | F199: 60004 | G199: 2310 | H199: Dotacja celowa przekazana gminie na zadania bieżące realizowane na podstawie porozumień (umów) między jednostkami samorządu terytorialnego | I199: GMMW | P199: 0 | Q199: 0
A200: B/I/1/4 | B200: Opracowania i analizy związane z komunikacją miejską | C200: 4 zadanie | D200: NIE | E200: 600 | F200: 60004 | G200: 4390 | H200: Zakup usług obejmujących wykonanie ekspertyz, analiz i opinii | I200: SFUE/8/57 | P200: 0 | Q200: 0
... 4300 more rows

Sheet WNIOSEK
K1: Załącznik Nr 3
K2: do uchwały Nr 217/2025
K3: Zarządu Dzielnicy Bemowo m.st. Warszawy
K4: z dnia 8 stycznia 2025 r.
A7: WNIOSEK W SPRAWIE ZMIAN W PLANIE WYDATKÓW BIEŻĄCYCH
M9: w zł
A10: Stanowisko finansowe | C10: Pozycje finansowe | F10: Obszar funkcjonalny | G10: Program budżetowy | I10: Plan wg stanu na dzień 01.01.2025 r. | J10: Zaangażowanie wg stanu na dzień 7.01.2025 r. | K10: Proponowane zmiany | M10: Plan po zmianach
A11: Nazwa dysponenta | B11: Kod | C11: Dział | D11: Rozdział | E11: § | F11: Kod | G11: Nazwa | H11: Kod | K11: zmniejszenia | L11: zwiększenia
A15: Wydział Polityki Społecznej i Zdrowotnej | B15: U.01.000 | C15: 853.85395.W4300+000 | F15: GMMW | G15: Wspieranie inicjatyw społecznych na rzecz zaspokajania potrzeb życiowych osób i rodzin | H15: B/VI/3/10 | I15: 579450 | J15: 1264.44 | K15: 732 | M15: 578718
A16: Wydział Polityki Społecznej i Zdrowotnej | B16: U.01.000 | C16: 853.85395.W4430+000 | F16: GMMW | G16: Wspieranie inicjatyw społecznych na rzecz zaspokajania potrzeb życiowych osób i rodzin | H16: B/VI/3/10 | I16: 0 | J16: 0 | L16: 732 | M16: 732
A17: RAZEM | I17: =SUM(I15:I16) -> 579450 | J17: =SUM(J15:J16) -> 1264.44 | K17: =SUM(K15:K16) -> 732 | L17: =SUM(L15:L16) -> 732 | M17: =SUM(M15:M16) -> 579450

Sheet UZASADNIENIE
C1: Załącznik Nr 4
C2: do uchwały Nr 217/2025
C3: Zarządu Dzielnicy Bemowo m.st. Warszawy
C4: z dnia 8 stycznia 2025 r.
B6: DZIELNICA BEMOWO | I6: =IF(OR(COUNTIF(I9:I959,"")>0,COUNTIF(I9:I959,0)>0),"Przeciągnij formułę gdzie jest zero, lub pusta komórka !!!","Formuła jest OK") -> Formuła jest OK
E7: Sprawdzenie | G7: Urząd | I7: Zmn/Zwi | J7: Uchwała | K7: Uchwała | L7: Uchwała
B8: Wyszczególnienie | C8: Zmniejszenie | D8: Zwiększenie | E8: - | F8: + | G8: - | H8: + | I8: tak/nie | J8: nr 1 | K8: nr 2 | L8: nr 3
E9: =IF(OR(A9="",COUNTIF(A9," *")>0),"",VLOOKUP($A9,[2]Table!$A$16:$O$2000,12,0)-C9) ->  | F9: =IF(OR(A9="",COUNTIF(A9," *")>0),"",VLOOKUP($A9,[2]Table!$A$16:$O$2000,13,0)-D9) ->  | G9: =IF(OR(A9="",COUNTIF(A9," *")>0),"",VLOOKUP($A9,[2]Table!$A$16:$O$2000,14,0)) ->  | H9: =IF(OR(A9="",COUNTIF(A9," *")>0),"",VLOOKUP($A9,[2]Table!$A$16:$O$2000,15,0)) ->  | I9: =IF(C$10+D$10>0,"tak","nie") -> tak
B10: RAZEM DZIELNICA BEMOWO | C10: =C12+C58+C176+C348+C544+C594+C660+C740+C931 -> 732 | D10: =D12+D58+D176+D348+D544+D594+D660+D740+D931 -> 732 | E10: =IF(OR(A10="",COUNTIF(A10," *")>0),"",VLOOKUP($A10,[2]Table!$A$16:$O$2000,12,0)-C10) ->  | F10: =IF(OR(A10="",COUNTIF(A10," *")>0),"",VLOOKUP($A10,[2]Table!$A$16:$O$2000,13,0)-D10) ->  | G10: =IF(OR(A10="",COUNTIF(A10," *")>0),"",VLOOKUP($A10,[2]Table!$A$16:$O$2000,14,0)) ->  | H10: =IF(OR(A10="",COUNTIF(A10," *")>0),"",VLOOKUP($A10,[2]Table!$A$16:$O$2000,15,0)) ->  | I10: =IF(OR(A10="",COUNTIF(A10," *")>0),OFFSET(I10,-1,0),IF(C10+D10>0,"tak","nie")) -> tak
E11: =IF(OR(A11="",COUNTIF(A11," *")>0),"",VLOOKUP($A11,[2]Table!$A$16:$O$2000,12,0)-C11) ->  | F11: =IF(OR(A11="",COUNTIF(A11," *")>0),"",VLOOKUP($A11,[2]Table!$A$16:$O$2000,13,0)-D11) ->  | G11: =IF(OR(A11="",COUNTIF(A11," *")>0),"",VLOOKUP($A11,[2]Table!$A$16:$O$2000,14,0)) ->  | H11: =IF(OR(A11="",COUNTIF(A11," *")>0),"",VLOOKUP($A11,[2]Table!$A$16:$O$2000,15,0)) ->  | I11: tak
A12: I | B12: 2.2.1. TRANSPORT I KOMUNIKACJA | C12: =C14 -> 0 | D12: =D14 -> 0 | E12: =IF(OR(A12="",COUNTIF(A12," *")>0),"",VLOOKUP($A12,[2]Table!$A$16:$O$2000,12,0)-C12) -> 0 | F12: =IF(OR(A12="",COUNTIF(A12," *")>0),"",VLOOKUP($A12,[2]Table!$A$16:$O$2000,13,0)-D12) -> 6395960 | G12: =IF(OR(A12="",COUNTIF(A12," *")>0),"",VLOOKUP($A12,[2]Table!$A$16:$O$2000,14,0)) -> 0 | H12: =IF(OR(A12="",COUNTIF(A12," *")>0),"",VLOOKUP($A12,[2]Table!$A$16:$O$2000,15,0)) -> 6395960 | I12: nie
E13: =IF(OR(A13="",COUNTIF(A13," *")>0),"",VLOOKUP($A13,[2]Table!$A$16:$O$2000,12,0)-C13) ->  | F13: =IF(OR(A13="",COUNTIF(A13," *")>0),"",VLOOKUP($A13,[2]Table!$A$16:$O$2000,13,0)-D13) ->  | G13: =IF(OR(A13="",COUNTIF(A13," *")>0),"",VLOOKUP($A13,[2]Table!$A$16:$O$2000,14,0)) ->  | H13: =IF(OR(A13="",COUNTIF(A13," *")>0),"",VLOOKUP($A13,[2]Table!$A$16:$O$2000,15,0)) ->  | I13: nie
A14: I/2 | B14: Drogi i mosty - program 2 | C14: =C16+C40+C50 -> 0 | D14: =D16+D40+D50 -> 0 | E14: =IF(OR(A14="",COUNTIF(A14," *")>0),"",VLOOKUP($A14,[2]Table!$A$16:$O$2000,12,0)-C14) -> 0 | F14: =IF(OR(A14="",COUNTIF(A14," *")>0),"",VLOOKUP($A14,[2]Table!$A$16:$O$2000,13,0)-D14) -> 6376960 | G14: =IF(OR(A14="",COUNTIF(A14," *")>0),"",VLOOKUP($A14,[2]Table!$A$16:$O$2000,14,0)) -> 0 | H14: =IF(OR(A14="",COUNTIF(A14," *")>0),"",VLOOKUP($A14,[2]Table!$A$16:$O$2000,15,0)) -> 6376960 | I14: nie
E15: =IF(OR(A15="",COUNTIF(A15," *")>0),"",VLOOKUP($A15,[2]Table!$A$16:$O$2000,12,0)-C15) ->  | F15: =IF(OR(A15="",COUNTIF(A15," *")>0),"",VLOOKUP($A15,[2]Table!$A$16:$O$2000,13,0)-D15) ->  | G15: =IF(OR(A15="",COUNTIF(A15," *")>0),"",VLOOKUP($A15,[2]Table!$A$16:$O$2000,14,0)) ->  | H15: =IF(OR(A15="",COUNTIF(A15," *")>0),"",VLOOKUP($A15,[2]Table!$A$16:$O$2000,15,0)) ->  | I15: nie
A16: B/I/2/1 | B16: Utrzymanie i remonty dróg - zadanie 1 | C16: =C18+C32 -> 0 | D16: =D18+D32 -> 0 | E16: =IF(OR(A16="",COUNTIF(A16," *")>0),"",VLOOKUP($A16,[2]Table!$A$16:$O$2000,12,0)-C16) -> 0 | F16: =IF(OR(A16="",COUNTIF(A16," *")>0),"",VLOOKUP($A16,[2]Table!$A$16:$O$2000,13,0)-D16) -> 6106185 | G16: =IF(OR(A16="",COUNTIF(A16," *")>0),"",VLOOKUP($A16,[2]Table!$A$16:$O$2000,14,0)) -> 0 | H16: =IF(OR(A16="",COUNTIF(A16," *")>0),"",VLOOKUP($A16,[2]Table!$A$16:$O$2000,15,0)) -> 6106185 | I16: nie
E17: =IF(OR(A17="",COUNTIF(A17," *")>0),"",VLOOKUP($A17,[2]Table!$A$16:$O$2000,12,0)-C17) ->  | F17: =IF(OR(A17="",COUNTIF(A17," *")>0),"",VLOOKUP($A17,[2]Table!$A$16:$O$2000,13,0)-D17) ->  | G17: =IF(OR(A17="",COUNTIF(A17," *")>0),"",VLOOKUP($A17,[2]Table!$A$16:$O$2000,14,0)) ->  | H17: =IF(OR(A17="",COUNTIF(A17," *")>0),"",VLOOKUP($A17,[2]Table!$A$16:$O$2000,15,0)) ->  | I17: nie
A18: B/I/2/1/1 | B18: Utrzymanie i remonty dróg gminnych | E18: =IF(OR(A18="",COUNTIF(A18," *")>0),"",VLOOKUP($A18,[2]Table!$A$16:$O$2000,12,0)-C18) -> 0 | F18: =IF(OR(A18="",COUNTIF(A18," *")>0),"",VLOOKUP($A18,[2]Table!$A$16:$O$2000,13,0)-D18) -> 5607914 | G18: =IF(OR(A18="",COUNTIF(A18," *")>0),"",VLOOKUP($A18,[2]Table!$A$16:$O$2000,14,0)) -> 0 | H18: =IF(OR(A18="",COUNTIF(A18," *")>0),"",VLOOKUP($A18,[2]Table!$A$16:$O$2000,15,0)) -> 5607914 | I18: nie
E19: =IF(OR(A19="",COUNTIF(A19," *")>0),"",VLOOKUP($A19,[2]Table!$A$16:$O$2000,12,0)-C19) ->  | F19: =IF(OR(A19="",COUNTIF(A19," *")>0),"",VLOOKUP($A19,[2]Table!$A$16:$O$2000,13,0)-D19) ->  | G19: =IF(OR(A19="",COUNTIF(A19," *")>0),"",VLOOKUP($A19,[2]Table!$A$16:$O$2000,14,0)) ->  | H19: =IF(OR(A19="",COUNTIF(A19," *")>0),"",VLOOKUP($A19,[2]Table!$A$16:$O$2000,15,0)) ->  | I19: nie
B20: Dysponent: Wydział Infrastruktury | E20: =IF(OR(A20="",COUNTIF(A20," *")>0),"",VLOOKUP($A20,[2]Table!$A$16:$O$2000,12,0)-C20) ->  | F20: =IF(OR(A20="",COUNTIF(A20," *")>0),"",VLOOKUP($A20,[2]Table!$A$16:$O$2000,13,0)-D20) ->  | G20: =IF(OR(A20="",COUNTIF(A20," *")>0),"",VLOOKUP($A20,[2]Table!$A$16:$O$2000,14,0)) ->  | H20: =IF(OR(A20="",COUNTIF(A20," *")>0),"",VLOOKUP($A20,[2]Table!$A$16:$O$2000,15,0)) ->  | I20: nie
E21: =IF(OR(A21="",COUNTIF(A21," *")>0),"",VLOOKUP($A21,[2]Table!$A$16:$O$2000,12,0)-C21) ->  | F21: =IF(OR(A21="",COUNTIF(A21," *")>0),"",VLOOKUP($A21,[2]Table!$A$16:$O$2000,13,0)-D21) ->  | G21: =IF(OR(A21="",COUNTIF(A21," *")>0),"",VLOOKUP($A21,[2]Table!$A$16:$O$2000,14,0)) ->  | H21: =IF(OR(A21="",COUNTIF(A21," *")>0),"",VLOOKUP($A21,[2]Table!$A$16:$O$2000,15,0)) ->  | I21: nie
B22: Klasyfikacja: rozdział: 60016 | E22: =IF(OR(A22="",COUNTIF(A22," *")>0),"",VLOOKUP($A22,[2]Table!$A$16:$O$2000,12,0)-C22) ->  | F22: =IF(OR(A22="",COUNTIF(A22," *")>0),"",VLOOKUP($A22,[2]Table!$A$16:$O$2000,13,0)-D22) ->  | G22: =IF(OR(A22="",COUNTIF(A22," *")>0),"",VLOOKUP($A22,[2]Table!$A$16:$O$2000,14,0)) ->  | H22: =IF(OR(A22="",COUNTIF(A22," *")>0),"",VLOOKUP($A22,[2]Table!$A$16:$O$2000,15,0)) ->  | I22: nie
E23: =IF(OR(A23="",COUNTIF(A23," *")>0),"",VLOOKUP($A23,[2]Table!$A$16:$O$2000,12,0)-C23) ->  | F23: =IF(OR(A23="",COUNTIF(A23," *")>0),"",VLOOKUP($A23,[2]Table!$A$16:$O$2000,13,0)-D23) ->  | G23: =IF(OR(A23="",COUNTIF(A23," *")>0),"",VLOOKUP($A23,[2]Table!$A$16:$O$2000,14,0)) ->  | H23: =IF(OR(A23="",COUNTIF(A23," *")>0),"",VLOOKUP($A23,[2]Table!$A$16:$O$2000,15,0)) ->  | I23: nie
B24: OPIS | E24: =IF(OR(A24="",COUNTIF(A24," *")>0),"",VLOOKUP($A24,[2]Table!$A$16:$O$2000,12,0)-C24) ->  | F24: =IF(OR(A24="",COUNTIF(A24," *")>0),"",VLOOKUP($A24,[2]Table!$A$16:$O$2000,13,0)-D24) ->  | G24: =IF(OR(A24="",COUNTIF(A24," *")>0),"",VLOOKUP($A24,[2]Table!$A$16:$O$2000,14,0)) ->  | H24: =IF(OR(A24="",COUNTIF(A24," *")>0),"",VLOOKUP($A24,[2]Table!$A$16:$O$2000,15,0)) ->  | I24: nie
E25: =IF(OR(A25="",COUNTIF(A25," *")>0),"",VLOOKUP($A25,[2]Table!$A$16:$O$2000,12,0)-C25) ->  | F25: =IF(OR(A25="",COUNTIF(A25," *")>0),"",VLOOKUP($A25,[2]Table!$A$16:$O$2000,13,0)-D25) ->  | G25: =IF(OR(A25="",COUNTIF(A25," *")>0),"",VLOOKUP($A25,[2]Table!$A$16:$O$2000,14,0)) ->  | H25: =IF(OR(A25="",COUNTIF(A25," *")>0),"",VLOOKUP($A25,[2]Table!$A$16:$O$2000,15,0)) ->  | I25: nie
B26: Dysponent: Wydział Inwestycji | I26: nie
I27: nie
B28: Klasyfikacja: rozdział: 60016 | I28: nie
I29: nie
B30: OPIS | I30: nie
I31: nie
A32: B/I/2/1/3 | B32: Utrzymanie i remonty dróg wewnętrznych | E32: =IF(OR(A32="",COUNTIF(A32," *")>0),"",VLOOKUP($A32,[2]Table!$A$16:$O$2000,12,0)-C32) -> 0 | F32: =IF(OR(A32="",COUNTIF(A32," *")>0),"",VLOOKUP($A32,[2]Table!$A$16:$O$2000,13,0)-D32) -> 498271 | G32: =IF(OR(A32="",COUNTIF(A32," *")>0),"",VLOOKUP($A32,[2]Table!$A$16:$O$2000,14,0)) -> 0 | H32: =IF(OR(A32="",COUNTIF(A32," *")>0),"",VLOOKUP($A32,[2]Table!$A$16:$O$2000,15,0)) -> 498271 | I32: nie
E33: =IF(OR(A33="",COUNTIF(A33," *")>0),"",VLOOKUP($A33,[2]Table!$A$16:$O$2000,12,0)-C33) ->  | F33: =IF(OR(A33="",COUNTIF(A33," *")>0),"",VLOOKUP($A33,[2]Table!$A$16:$O$2000,13,0)-D33) ->  | G33: =IF(OR(A33="",COUNTIF(A33," *")>0),"",VLOOKUP($A33,[2]Table!$A$16:$O$2000,14,0)) ->  | H33: =IF(OR(A33="",COUNTIF(A33," *")>0),"",VLOOKUP($A33,[2]Table!$A$16:$O$2000,15,0)) ->  | I33: nie
B34: Dysponent: Wydział Infrastruktury | E34: =IF(OR(A34="",COUNTIF(A34," *")>0),"",VLOOKUP($A34,[2]Table!$A$16:$O$2000,12,0)-C34) ->  | F34: =IF(OR(A34="",COUNTIF(A34," *")>0),"",VLOOKUP($A34,[2]Table!$A$16:$O$2000,13,0)-D34) ->  | G34: =IF(OR(A34="",COUNTIF(A34," *")>0),"",VLOOKUP($A34,[2]Table!$A$16:$O$2000,14,0)) ->  | H34: =IF(OR(A34="",COUNTIF(A34," *")>0),"",VLOOKUP($A34,[2]Table!$A$16:$O$2000,15,0)) ->  | I34: nie
E35: =IF(OR(A35="",COUNTIF(A35," *")>0),"",VLOOKUP($A35,[2]Table!$A$16:$O$2000,12,0)-C35) ->  | F35: =IF(OR(A35="",COUNTIF(A35," *")>0),"",VLOOKUP($A35,[2]Table!$A$16:$O$2000,13,0)-D35) ->  | G35: =IF(OR(A35="",COUNTIF(A35," *")>0),"",VLOOKUP($A35,[2]Table!$A$16:$O$2000,14,0)) ->  | H35: =IF(OR(A35="",COUNTIF(A35," *")>0),"",VLOOKUP($A35,[2]Table!$A$16:$O$2000,15,0)) ->  | I35: nie
B36: Klasyfikacja: rozdział: 60017 | E36: =IF(OR(A36="",COUNTIF(A36," *")>0),"",VLOOKUP($A36,[2]Table!$A$16:$O$2000,12,0)-C36) ->  | F36: =IF(OR(A36="",COUNTIF(A36," *")>0),"",VLOOKUP($A36,[2]Table!$A$16:$O$2000,13,0)-D36) ->  | G36: =IF(OR(A36="",COUNTIF(A36," *")>0),"",VLOOKUP($A36,[2]Table!$A$16:$O$2000,14,0)) ->  | H36: =IF(OR(A36="",COUNTIF(A36," *")>0),"",VLOOKUP($A36,[2]Table!$A$16:$O$2000,15,0)) ->  | I36: nie
E37: =IF(OR(A37="",COUNTIF(A37," *")>0),"",VLOOKUP($A37,[2]Table!$A$16:$O$2000,12,0)-C37) ->  | F37: =IF(OR(A37="",COUNTIF(A37," *")>0),"",VLOOKUP($A37,[2]Table!$A$16:$O$2000,13,0)-D37) ->  | G37: =IF(OR(A37="",COUNTIF(A37," *")>0),"",VLOOKUP($A37,[2]Table!$A$16:$O$2000,14,0)) ->  | H37: =IF(OR(A37="",COUNTIF(A37," *")>0),"",VLOOKUP($A37,[2]Table!$A$16:$O$2000,15,0)) ->  | I37: nie
B38: OPIS | E38: =IF(OR(A38="",COUNTIF(A38," *")>0),"",VLOOKUP($A38,[2]Table!$A$16:$O$2000,12,0)-C38) ->  | F38: =IF(OR(A38="",COUNTIF(A38," *")>0),"",VLOOKUP($A38,[2]Table!$A$16:$O$2000,13,0)-D38) ->  | G38: =IF(OR(A38="",COUNTIF(A38," *")>0),"",VLOOKUP($A38,[2]Table!$A$16:$O$2000,14,0)) ->  | H38: =IF(OR(A38="",COUNTIF(A38," *")>0),"",VLOOKUP($A38,[2]Table!$A$16:$O$2000,15,0)) ->  | I38: nie
E39: =IF(OR(A39="",COUNTIF(A39," *")>0),"",VLOOKUP($A39,[2]Table!$A$16:$O$2000,12,0)-C39) ->  | F39: =IF(OR(A39="",COUNTIF(A39," *")>0),"",VLOOKUP($A39,[2]Table!$A$16:$O$2000,13,0)-D39) ->  | G39: =IF(OR(A39="",COUNTIF(A39," *")>0),"",VLOOKUP($A39,[2]Table!$A$16:$O$2000,14,0)) ->  | H39: =IF(OR(A39="",COUNTIF(A39," *")>0),"",VLOOKUP($A39,[2]Table!$A$16:$O$2000,15,0)) ->  | I39: nie
A40: B/I/2/4 | B40: Oświetlenie ulic - zadanie 4 | C40: =C42 -> 0 | D40: =D42 -> 0 | E40: =IF(OR(A40="",COUNTIF(A40," *")>0),"",VLOOKUP($A40,[2]Table!$A$16:$O$2000,12,0)-C40) -> 0 | F40: =IF(OR(A40="",COUNTIF(A40," *")>0),"",VLOOKUP($A40,[2]Table!$A$16:$O$2000,13,0)-D40) -> 200775 | G40: =IF(OR(A40="",COUNTIF(A40," *")>0),"",VLOOKUP($A40,[2]Table!$A$16:$O$2000,14,0)) -> 0 | H40: =IF(OR(A40="",COUNTIF(A40," *")>0),"",VLOOKUP($A40,[2]Table!$A$16:$O$2000,15,0)) -> 200775 | I40: nie
E41: =IF(OR(A41="",COUNTIF(A41," *")>0),"",VLOOKUP($A41,[2]Table!$A$16:$O$2000,12,0)-C41) ->  | F41: =IF(OR(A41="",COUNTIF(A41," *")>0),"",VLOOKUP($A41,[2]Table!$A$16:$O$2000,13,0)-D41) ->  | G41: =IF(OR(A41="",COUNTIF(A41," *")>0),"",VLOOKUP($A41,[2]Table!$A$16:$O$2000,14,0)) ->  | H41: =IF(OR(A41="",COUNTIF(A41," *")>0),"",VLOOKUP($A41,[2]Table!$A$16:$O$2000,15,0)) ->  | I41: nie
A42: B/I/2/4/2 | B42: Utrzymanie i remonty oświetlenia ulic, placów i dróg | E42: =IF(OR(A42="",COUNTIF(A42," *")>0),"",VLOOKUP($A42,[2]Table!$A$16:$O$2000,12,0)-C42) -> 0 | F42: =IF(OR(A42="",COUNTIF(A42," *")>0),"",VLOOKUP($A42,[2]Table!$A$16:$O$2000,13,0)-D42) -> 200775 | G42: =IF(OR(A42="",COUNTIF(A42," *")>0),"",VLOOKUP($A42,[2]Table!$A$16:$O$2000,14,0)) -> 0 | H42: =IF(OR(A42="",COUNTIF(A42," *")>0),"",VLOOKUP($A42,[2]Table!$A$16:$O$2000,15,0)) -> 200775 | I42: nie
E43: =IF(OR(A43="",COUNTIF(A43," *")>0),"",VLOOKUP($A43,[2]Table!$A$16:$O$2000,12,0)-C43) ->  | F43: =IF(OR(A43="",COUNTIF(A43," *")>0),"",VLOOKUP($A43,[2]Table!$A$16:$O$2000,13,0)-D43) ->  | G43: =IF(OR(A43="",COUNTIF(A43," *")>0),"",VLOOKUP($A43,[2]Table!$A$16:$O$2000,14,0)) ->  | H43: =IF(OR(A43="",COUNTIF(A43," *")>0),"",VLOOKUP($A43,[2]Table!$A$16:$O$2000,15,0)) ->  | I43: nie
B44: Dysponent: Wydział Infrastruktury | E44: =IF(OR(A44="",COUNTIF(A44," *")>0),"",VLOOKUP($A44,[2]Table!$A$16:$O$2000,12,0)-C44) ->  | F44: =IF(OR(A44="",COUNTIF(A44," *")>0),"",VLOOKUP($A44,[2]Table!$A$16:$O$2000,13,0)-D44) ->  | G44: =IF(OR(A44="",COUNTIF(A44," *")>0),"",VLOOKUP($A44,[2]Table!$A$16:$O$2000,14,0)) ->  | H44: =IF(OR(A44="",COUNTIF(A44," *")>0),"",VLOOKUP($A44,[2]Table!$A$16:$O$2000,15,0)) ->  | I44: nie
E45: =IF(OR(A45="",COUNTIF(A45," *")>0),"",VLOOKUP($A45,[2]Table!$A$16:$O$2000,12,0)-C45) ->  | F45: =IF(OR(A45="",COUNTIF(A45," *")>0),"",VLOOKUP($A45,[2]Table!$A$16:$O$2000,13,0)-D45) ->  | G45: =IF(OR(A45="",COUNTIF(A45," *")>0),"",VLOOKUP($A45,[2]Table!$A$16:$O$2000,14,0)) ->  | H45: =IF(OR(A45="",COUNTIF(A45," *")>0),"",VLOOKUP($A45,[2]Table!$A$16:$O$2000,15,0)) ->  | I45: nie
B46: Klasyfikacja: rozdział: 90015 | E46: =IF(OR(A46="",COUNTIF(A46," *")>0),"",VLOOKUP($A46,[2]Table!$A$16:$O$2000,12,0)-C46) ->  | F46: =IF(OR(A46="",COUNTIF(A46," *")>0),"",VLOOKUP($A46,[2]Table!$A$16:$O$2000,13,0)-D46) ->  | G46: =IF(OR(A46="",COUNTIF(A46," *")>0),"",VLOOKUP($A46,[2]Table!$A$16:$O$2000,14,0)) ->  | H46: =IF(OR(A46="",COUNTIF(A46," *")>0),"",VLOOKUP($A46,[2]Table!$A$16:$O$2000,15,0)) ->  | I46: nie
E47: =IF(OR(A47="",COUNTIF(A47," *")>0),"",VLOOKUP($A47,[2]Table!$A$16:$O$2000,12,0)-C47) ->  | F47: =IF(OR(A47="",COUNTIF(A47," *")>0),"",VLOOKUP($A47,[2]Table!$A$16:$O$2000,13,0)-D47) ->  | G47: =IF(OR(A47="",COUNTIF(A47," *")>0),"",VLOOKUP($A47,[2]Table!$A$16:$O$2000,14,0)) ->  | H47: =IF(OR(A47="",COUNTIF(A47," *")>0),"",VLOOKUP($A47,[2]Table!$A$16:$O$2000,15,0)) ->  | I47: nie
B48: OPIS | E48: =IF(OR(A48="",COUNTIF(A48," *")>0),"",VLOOKUP($A48,[2]Table!$A$16:$O$2000,12,0)-C48) ->  | F48: =IF(OR(A48="",COUNTIF(A48," *")>0),"",VLOOKUP($A48,[2]Table!$A$16:$O$2000,13,0)-D48) ->  | G48: =IF(OR(A48="",COUNTIF(A48," *")>0),"",VLOOKUP($A48,[2]Table!$A$16:$O$2000,14,0)) ->  | H48: =IF(OR(A48="",COUNTIF(A48," *")>0),"",VLOOKUP($A48,[2]Table!$A$16:$O$2000,15,0)) ->  | I48: nie
E49: =IF(OR(A49="",COUNTIF(A49," *")>0),"",VLOOKUP($A49,[2]Table!$A$16:$O$2000,12,0)-C49) ->  | F49: =IF(OR(A49="",COUNTIF(A49," *")>0),"",VLOOKUP($A49,[2]Table!$A$16:$O$2000,13,0)-D49) ->  | G49: =IF(OR(A49="",COUNTIF(A49," *")>0),"",VLOOKUP($A49,[2]Table!$A$16:$O$2000,14,0)) ->  | H49: =IF(OR(A49="",COUNTIF(A49," *")>0),"",VLOOKUP($A49,[2]Table!$A$16:$O$2000,15,0)) ->  | I49: nie
A50: B/I/2/5 | B50: Opracowania i analizy związane z drogami - zadanie 5 | C50: 0 | D50: 0 | E50: =IF(OR(A50="",COUNTIF(A50," *")>0),"",VLOOKUP($A50,[2]Table!$A$16:$O$2000,12,0)-C50) -> 0 | F50: =IF(OR(A50="",COUNTIF(A50," *")>0),"",VLOOKUP($A50,[2]Table!$A$16:$O$2000,13,0)-D50) -> 70000 | G50: =IF(OR(A50="",COUNTIF(A50," *")>0),"",VLOOKUP($A50,[2]Table!$A$16:$O$2000,14,0)) -> 0 | H50: =IF(OR(A50="",COUNTIF(A50," *")>0),"",VLOOKUP($A50,[2]Table!$A$16:$O$2000,15,0)) -> 70000 | I50: nie
E51: =IF(OR(A51="",COUNTIF(A51," *")>0),"",VLOOKUP($A51,[2]Table!$A$16:$O$2000,12,0)-C51) ->  | F51: =IF(OR(A51="",COUNTIF(A51," *")>0),"",VLOOKUP($A51,[2]Table!$A$16:$O$2000,13,0)-D51) ->  | G51: =IF(OR(A51="",COUNTIF(A51," *")>0),"",VLOOKUP($A51,[2]Table!$A$16:$O$2000,14,0)) ->  | H51: =IF(OR(A51="",COUNTIF(A51," *")>0),"",VLOOKUP($A51,[2]Table!$A$16:$O$2000,15,0)) ->  | I51: nie
B52: Dysponent: Wydział Infrastruktury | E52: =IF(OR(A52="",COUNTIF(A52," *")>0),"",VLOOKUP($A52,[2]Table!$A$16:$O$2000,12,0)-C52) ->  | F52: =IF(OR(A52="",COUNTIF(A52," *")>0),"",VLOOKUP($A52,[2]Table!$A$16:$O$2000,13,0)-D52) ->  | G52: =IF(OR(A52="",COUNTIF(A52," *")>0),"",VLOOKUP($A52,[2]Table!$A$16:$O$2000,14,0)) ->  | H52: =IF(OR(A52="",COUNTIF(A52," *")>0),"",VLOOKUP($A52,[2]Table!$A$16:$O$2000,15,0)) ->  | I52: nie
E53: =IF(OR(A53="",COUNTIF(A53," *")>0),"",VLOOKUP($A53,[2]Table!$A$16:$O$2000,12,0)-C53) ->  | F53: =IF(OR(A53="",COUNTIF(A53," *")>0),"",VLOOKUP($A53,[2]Table!$A$16:$O$2000,13,0)-D53) ->  | G53: =IF(OR(A53="",COUNTIF(A53," *")>0),"",VLOOKUP($A53,[2]Table!$A$16:$O$2000,14,0)) ->  | H53: =IF(OR(A53="",COUNTIF(A53," *")>0),"",VLOOKUP($A53,[2]Table!$A$16:$O$2000,15,0)) ->  | I53: nie
B54: Klasyfikacja: rozdział: 60095 | E54: =IF(OR(A54="",COUNTIF(A54," *")>0),"",VLOOKUP($A54,[2]Table!$A$16:$O$2000,12,0)-C54) ->  | F54: =IF(OR(A54="",COUNTIF(A54," *")>0),"",VLOOKUP($A54,[2]Table!$A$16:$O$2000,13,0)-D54) ->  | G54: =IF(OR(A54="",COUNTIF(A54," *")>0),"",VLOOKUP($A54,[2]Table!$A$16:$O$2000,14,0)) ->  | H54: =IF(OR(A54="",COUNTIF(A54," *")>0),"",VLOOKUP($A54,[2]Table!$A$16:$O$2000,15,0)) ->  | I54: nie
E55: =IF(OR(A55="",COUNTIF(A55," *")>0),"",VLOOKUP($A55,[2]Table!$A$16:$O$2000,12,0)-C55) ->  | F55: =IF(OR(A55="",COUNTIF(A55," *")>0),"",VLOOKUP($A55,[2]Table!$A$16:$O$2000,13,0)-D55) ->  | G55: =IF(OR(A55="",COUNTIF(A55," *")>0),"",VLOOKUP($A55,[2]Table!$A$16:$O$2000,14,0)) ->  | H55: =IF(OR(A55="",COUNTIF(A55," *")>0),"",VLOOKUP($A55,[2]Table!$A$16:$O$2000,15,0)) ->  | I55: nie
B56: OPIS | E56: =IF(OR(A56="",COUNTIF(A56," *")>0),"",VLOOKUP($A56,[2]Table!$A$16:$O$2000,12,0)-C56) ->  | F56: =IF(OR(A56="",COUNTIF(A56," *")>0),"",VLOOKUP($A56,[2]Table!$A$16:$O$2000,13,0)-D56) ->  | G56: =IF(OR(A56="",COUNTIF(A56," *")>0),"",VLOOKUP($A56,[2]Table!$A$16:$O$2000,14,0)) ->  | H56: =IF(OR(A56="",COUNTIF(A56," *")>0),"",VLOOKUP($A56,[2]Table!$A$16:$O$2000,15,0)) ->  | I56: nie
E57: =IF(OR(A57="",COUNTIF(A57," *")>0),"",VLOOKUP($A57,[2]Table!$A$16:$O$2000,12,0)-C57) ->  | F57: =IF(OR(A57="",COUNTIF(A57," *")>0),"",VLOOKUP($A57,[2]Table!$A$16:$O$2000,13,0)-D57) ->  | G57: =IF(OR(A57="",COUNTIF(A57," *")>0),"",VLOOKUP($A57,[2]Table!$A$16:$O$2000,14,0)) ->  | H57: =IF(OR(A57="",COUNTIF(A57," *")>0),"",VLOOKUP($A57,[2]Table!$A$16:$O$2000,15,0)) ->  | I57: nie
A58: II | B58: 2.2.2. ŁAD PRZESTRZENNY I GOSPODARKA NIERUCHOMOŚCIAMI | C58: =C60+C76+C122+C146 -> 0 | D58: =D60+D76+D122+D146 -> 0 | E58: =IF(OR(A58="",COUNTIF(A58," *")>0),"",VLOOKUP($A58,[2]Table!$A$16:$O$2000,12,0)-C58) -> 0 | F58: =IF(OR(A58="",COUNTIF(A58," *")>0),"",VLOOKUP($A58,[2]Table!$A$16:$O$2000,13,0)-D58) -> 7210471 | G58: =IF(OR(A58="",COUNTIF(A58," *")>0),"",VLOOKUP($A58,[2]Table!$A$16:$O$2000,14,0)) -> 0 | H58: =IF(OR(A58="",COUNTIF(A58," *")>0),"",VLOOKUP($A58,[2]Table!$A$16:$O$2000,15,0)) -> 7210471 | I58: nie
E59: =IF(OR(A59="",COUNTIF(A59," *")>0),"",VLOOKUP($A59,[2]Table!$A$16:$O$2000,12,0)-C59) ->  | F59: =IF(OR(A59="",COUNTIF(A59," *")>0),"",VLOOKUP($A59,[2]Table!$A$16:$O$2000,13,0)-D59) ->  | G59: =IF(OR(A59="",COUNTIF(A59," *")>0),"",VLOOKUP($A59,[2]Table!$A$16:$O$2000,14,0)) ->  | H59: =IF(OR(A59="",COUNTIF(A59," *")>0),"",VLOOKUP($A59,[2]Table!$A$16:$O$2000,15,0)) ->  | I59: nie
A60: II/2 | B60: Gospodarka przestrzenna - program 2 | C60: =C62 -> 0 | D60: =D62 -> 0 | E60: =IF(OR(A60="",COUNTIF(A60," *")>0),"",VLOOKUP($A60,[2]Table!$A$16:$O$2000,12,0)-C60) -> 0 | F60: =IF(OR(A60="",COUNTIF(A60," *")>0),"",VLOOKUP($A60,[2]Table!$A$16:$O$2000,13,0)-D60) -> 106000 | G60: =IF(OR(A60="",COUNTIF(A60," *")>0),"",VLOOKUP($A60,[2]Table!$A$16:$O$2000,14,0)) -> 0 | H60: =IF(OR(A60="",COUNTIF(A60," *")>0),"",VLOOKUP($A60,[2]Table!$A$16:$O$2000,15,0)) -> 106000 | I60: nie
E61: =IF(OR(A61="",COUNTIF(A61," *")>0),"",VLOOKUP($A61,[2]Table!$A$16:$O$2000,12,0)-C61) ->  | F61: =IF(OR(A61="",COUNTIF(A61," *")>0),"",VLOOKUP($A61,[2]Table!$A$16:$O$2000,13,0)-D61) ->  | G61: =IF(OR(A61="",COUNTIF(A61," *")>0),"",VLOOKUP($A61,[2]Table!$A$16:$O$2000,14,0)) ->  | H61: =IF(OR(A61="",COUNTIF(A61," *")>0),"",VLOOKUP($A61,[2]Table!$A$16:$O$2000,15,0)) ->  | I61: nie
A62: B/II/2/3 | B62: Architektura, Urbanistyka i Zagospodarowanie Przestrzeni Publicznej - zadanie 3 | C62: =C64+C70 -> 0 | D62: =D64+D70 -> 0 | E62: =IF(OR(A62="",COUNTIF(A62," *")>0),"",VLOOKUP($A62,[2]Table!$A$16:$O$2000,12,0)-C62) -> 0 | F62: =IF(OR(A62="",COUNTIF(A62," *")>0),"",VLOOKUP($A62,[2]Table!$A$16:$O$2000,13,0)-D62) -> 106000 | G62: =IF(OR(A62="",COUNTIF(A62," *")>0),"",VLOOKUP($A62,[2]Table!$A$16:$O$2000,14,0)) -> 0 | H62: =IF(OR(A62="",COUNTIF(A62," *")>0),"",VLOOKUP($A62,[2]Table!$A$16:$O$2000,15,0)) -> 106000 | I62: nie
E63: =IF(OR(A63="",COUNTIF(A63," *")>0),"",VLOOKUP($A63,[2]Table!$A$16:$O$2000,12,0)-C63) ->  | F63: =IF(OR(A63="",COUNTIF(A63," *")>0),"",VLOOKUP($A63,[2]Table!$A$16:$O$2000,13,0)-D63) ->  | G63: =IF(OR(A63="",COUNTIF(A63," *")>0),"",VLOOKUP($A63,[2]Table!$A$16:$O$2000,14,0)) ->  | H63: =IF(OR(A63="",COUNTIF(A63," *")>0),"",VLOOKUP($A63,[2]Table!$A$16:$O$2000,15,0)) ->  | I63: nie
B64: Dysponent 1: Wydział Architektury i Budownictwa | E64: =IF(OR(A64="",COUNTIF(A64," *")>0),"",VLOOKUP($A64,[2]Table!$A$16:$O$2000,12,0)-C64) ->  | F64: =IF(OR(A64="",COUNTIF(A64," *")>0),"",VLOOKUP($A64,[2]Table!$A$16:$O$2000,13,0)-D64) ->  | G64: =IF(OR(A64="",COUNTIF(A64," *")>0),"",VLOOKUP($A64,[2]Table!$A$16:$O$2000,14,0)) ->  | H64: =IF(OR(A64="",COUNTIF(A64," *")>0),"",VLOOKUP($A64,[2]Table!$A$16:$O$2000,15,0)) ->  | I64: nie
E65: =IF(OR(A65="",COUNTIF(A65," *")>0),"",VLOOKUP($A65,[2]Table!$A$16:$O$2000,12,0)-C65) ->  | F65: =IF(OR(A65="",COUNTIF(A65," *")>0),"",VLOOKUP($A65,[2]Table!$A$16:$O$2000,13,0)-D65) ->  | G65: =IF(OR(A65="",COUNTIF(A65," *")>0),"",VLOOKUP($A65,[2]Table!$A$16:$O$2000,14,0)) ->  | H65: =IF(OR(A65="",COUNTIF(A65," *")>0),"",VLOOKUP($A65,[2]Table!$A$16:$O$2000,15,0)) ->  | I65: nie
B66: Klasyfikacja: rozdział: 71095 | E66: =IF(OR(A66="",COUNTIF(A66," *")>0),"",VLOOKUP($A66,[2]Table!$A$16:$O$2000,12,0)-C66) ->  | F66: =IF(OR(A66="",COUNTIF(A66," *")>0),"",VLOOKUP($A66,[2]Table!$A$16:$O$2000,13,0)-D66) ->  | G66: =IF(OR(A66="",COUNTIF(A66," *")>0),"",VLOOKUP($A66,[2]Table!$A$16:$O$2000,14,0)) ->  | H66: =IF(OR(A66="",COUNTIF(A66," *")>0),"",VLOOKUP($A66,[2]Table!$A$16:$O$2000,15,0)) ->  | I66: nie
E67: =IF(OR(A67="",COUNTIF(A67," *")>0),"",VLOOKUP($A67,[2]Table!$A$16:$O$2000,12,0)-C67) ->  | F67: =IF(OR(A67="",COUNTIF(A67," *")>0),"",VLOOKUP($A67,[2]Table!$A$16:$O$2000,13,0)-D67) ->  | G67: =IF(OR(A67="",COUNTIF(A67," *")>0),"",VLOOKUP($A67,[2]Table!$A$16:$O$2000,14,0)) ->  | H67: =IF(OR(A67="",COUNTIF(A67," *")>0),"",VLOOKUP($A67,[2]Table!$A$16:$O$2000,15,0)) ->  | I67: nie
B68: OPIS | E68: =IF(OR(A68="",COUNTIF(A68," *")>0),"",VLOOKUP($A68,[2]Table!$A$16:$O$2000,12,0)-C68) ->  | F68: =IF(OR(A68="",COUNTIF(A68," *")>0),"",VLOOKUP($A68,[2]Table!$A$16:$O$2000,13,0)-D68) ->  | G68: =IF(OR(A68="",COUNTIF(A68," *")>0),"",VLOOKUP($A68,[2]Table!$A$16:$O$2000,14,0)) ->  | H68: =IF(OR(A68="",COUNTIF(A68," *")>0),"",VLOOKUP($A68,[2]Table!$A$16:$O$2000,15,0)) ->  | I68: nie
E69: =IF(OR(A69="",COUNTIF(A69," *")>0),"",VLOOKUP($A69,[2]Table!$A$16:$O$2000,12,0)-C69) ->  | F69: =IF(OR(A69="",COUNTIF(A69," *")>0),"",VLOOKUP($A69,[2]Table!$A$16:$O$2000,13,0)-D69) ->  | G69: =IF(OR(A69="",COUNTIF(A69," *")>0),"",VLOOKUP($A69,[2]Table!$A$16:$O$2000,14,0)) ->  | H69: =IF(OR(A69="",COUNTIF(A69," *")>0),"",VLOOKUP($A69,[2]Table!$A$16:$O$2000,15,0)) ->  | I69: nie
B70: Dysponent 2: Wydział Administracyjno-Gospodarczy | E70: =IF(OR(A70="",COUNTIF(A70," *")>0),"",VLOOKUP($A70,[2]Table!$A$16:$O$2000,12,0)-C70) ->  | F70: =IF(OR(A70="",COUNTIF(A70," *")>0),"",VLOOKUP($A70,[2]Table!$A$16:$O$2000,13,0)-D70) ->  | G70: =IF(OR(A70="",COUNTIF(A70," *")>0),"",VLOOKUP($A70,[2]Table!$A$16:$O$2000,14,0)) ->  | H70: =IF(OR(A70="",COUNTIF(A70," *")>0),"",VLOOKUP($A70,[2]Table!$A$16:$O$2000,15,0)) ->  | I70: nie
E71: =IF(OR(A71="",COUNTIF(A71," *")>0),"",VLOOKUP($A71,[2]Table!$A$16:$O$2000,12,0)-C71) ->  | F71: =IF(OR(A71="",COUNTIF(A71," *")>0),"",VLOOKUP($A71,[2]Table!$A$16:$O$2000,13,0)-D71) ->  | G71: =IF(OR(A71="",COUNTIF(A71," *")>0),"",VLOOKUP($A71,[2]Table!$A$16:$O$2000,14,0)) ->  | H71: =IF(OR(A71="",COUNTIF(A71," *")>0),"",VLOOKUP($A71,[2]Table!$A$16:$O$2000,15,0)) ->  | I71: nie
B72: Klasyfikacja: rozdział: 71095 | E72: =IF(OR(A72="",COUNTIF(A72," *")>0),"",VLOOKUP($A72,[2]Table!$A$16:$O$2000,12,0)-C72) ->  | F72: =IF(OR(A72="",COUNTIF(A72," *")>0),"",VLOOKUP($A72,[2]Table!$A$16:$O$2000,13,0)-D72) ->  | G72: =IF(OR(A72="",COUNTIF(A72," *")>0),"",VLOOKUP($A72,[2]Table!$A$16:$O$2000,14,0)) ->  | H72: =IF(OR(A72="",COUNTIF(A72," *")>0),"",VLOOKUP($A72,[2]Table!$A$16:$O$2000,15,0)) ->  | I72: nie
E73: =IF(OR(A73="",COUNTIF(A73," *")>0),"",VLOOKUP($A73,[2]Table!$A$16:$O$2000,12,0)-C73) ->  | F73: =IF(OR(A73="",COUNTIF(A73," *")>0),"",VLOOKUP($A73,[2]Table!$A$16:$O$2000,13,0)-D73) ->  | G73: =IF(OR(A73="",COUNTIF(A73," *")>0),"",VLOOKUP($A73,[2]Table!$A$16:$O$2000,14,0)) ->  | H73: =IF(OR(A73="",COUNTIF(A73," *")>0),"",VLOOKUP($A73,[2]Table!$A$16:$O$2000,15,0)) ->  | I73: nie
B74: OPIS | E74: =IF(OR(A74="",COUNTIF(A74," *")>0),"",VLOOKUP($A74,[2]Table!$A$16:$O$2000,12,0)-C74) ->  | F74: =IF(OR(A74="",COUNTIF(A74," *")>0),"",VLOOKUP($A74,[2]Table!$A$16:$O$2000,13,0)-D74) ->  | G74: =IF(OR(A74="",COUNTIF(A74," *")>0),"",VLOOKUP($A74,[2]Table!$A$16:$O$2000,14,0)) ->  | H74: =IF(OR(A74="",COUNTIF(A74," *")>0),"",VLOOKUP($A74,[2]Table!$A$16:$O$2000,15,0)) ->  | I74: nie
E75: =IF(OR(A75="",COUNTIF(A75," *")>0),"",VLOOKUP($A75,[2]Table!$A$16:$O$2000,12,0)-C75) ->  | F75: =IF(OR(A75="",COUNTIF(A75," *")>0),"",VLOOKUP($A75,[2]Table!$A$16:$O$2000,13,0)-D75) ->  | G75: =IF(OR(A75="",COUNTIF(A75," *")>0),"",VLOOKUP($A75,[2]Table!$A$16:$O$2000,14,0)) ->  | H75: =IF(OR(A75="",COUNTIF(A75," *")>0),"",VLOOKUP($A75,[2]Table!$A$16:$O$2000,15,0)) ->  | I75: nie
A76: II/3 | B76: Mieszkaniowy zasób komunalny oraz pozostałe zadania związane z zapewnieniem lokali mieszkalnych - program 3 | C76: =C78+C92+C100+C108 -> 0 | D76: =D78+D92+D100+D108 -> 0 | E76: =IF(OR(A76="",COUNTIF(A76," *")>0),"",VLOOKUP($A76,[2]Table!$A$16:$O$2000,12,0)-C76) -> 0 | F76: =IF(OR(A76="",COUNTIF(A76," *")>0),"",VLOOKUP($A76,[2]Table!$A$16:$O$2000,13,0)-D76) -> 5924130 | G76: =IF(OR(A76="",COUNTIF(A76," *")>0),"",VLOOKUP($A76,[2]Table!$A$16:$O$2000,14,0)) -> 0 | H76: =IF(OR(A76="",COUNTIF(A76," *")>0),"",VLOOKUP($A76,[2]Table!$A$16:$O$2000,15,0)) -> 5924130 | I76: nie
E77: =IF(OR(A77="",COUNTIF(A77," *")>0),"",VLOOKUP($A77,[2]Table!$A$16:$O$2000,12,0)-C77) ->  | F77: =IF(OR(A77="",COUNTIF(A77," *")>0),"",VLOOKUP($A77,[2]Table!$A$16:$O$2000,13,0)-D77) ->  | G77: =IF(OR(A77="",COUNTIF(A77," *")>0),"",VLOOKUP($A77,[2]Table!$A$16:$O$2000,14,0)) ->  | H77: =IF(OR(A77="",COUNTIF(A77," *")>0),"",VLOOKUP($A77,[2]Table!$A$16:$O$2000,15,0)) ->  | I77: nie
A78: B/II/3/1 | B78: Koszty eksploatacji mieszkaniowego zasobu komunalnego - zadanie 1 | C78: =C80+C86 -> 0 | D78: =D80+D86 -> 0 | E78: =IF(OR(A78="",COUNTIF(A78," *")>0),"",VLOOKUP($A78,[2]Table!$A$16:$O$2000,12,0)-C78) -> 0 | F78: =IF(OR(A78="",COUNTIF(A78," *")>0),"",VLOOKUP($A78,[2]Table!$A$16:$O$2000,13,0)-D78) -> 3999880 | G78: =IF(OR(A78="",COUNTIF(A78," *")>0),"",VLOOKUP($A78,[2]Table!$A$16:$O$2000,14,0)) -> 0 | H78: =IF(OR(A78="",COUNTIF(A78," *")>0),"",VLOOKUP($A78,[2]Table!$A$16:$O$2000,15,0)) -> 3999880 | I78: nie
E79: =IF(OR(A79="",COUNTIF(A79," *")>0),"",VLOOKUP($A79,[2]Table!$A$16:$O$2000,12,0)-C79) ->  | F79: =IF(OR(A79="",COUNTIF(A79," *")>0),"",VLOOKUP($A79,[2]Table!$A$16:$O$2000,13,0)-D79) ->  | G79: =IF(OR(A79="",COUNTIF(A79," *")>0),"",VLOOKUP($A79,[2]Table!$A$16:$O$2000,14,0)) ->  | H79: =IF(OR(A79="",COUNTIF(A79," *")>0),"",VLOOKUP($A79,[2]Table!$A$16:$O$2000,15,0)) ->  | I79: nie
B80: Dysponent 1: Wydział Zasobów Lokalowych | E80: =IF(OR(A80="",COUNTIF(A80," *")>0),"",VLOOKUP($A80,[2]Table!$A$16:$O$2000,12,0)-C80) ->  | F80: =IF(OR(A80="",COUNTIF(A80," *")>0),"",VLOOKUP($A80,[2]Table!$A$16:$O$2000,13,0)-D80) ->  | G80: =IF(OR(A80="",COUNTIF(A80," *")>0),"",VLOOKUP($A80,[2]Table!$A$16:$O$2000,14,0)) ->  | H80: =IF(OR(A80="",COUNTIF(A80," *")>0),"",VLOOKUP($A80,[2]Table!$A$16:$O$2000,15,0)) ->  | I80: =IF(OR(A80="",COUNTIF(A80," *")>0),OFFSET(I80,-1,0),IF(C80+D80>0,"tak","nie")) -> nie
E81: =IF(OR(A81="",COUNTIF(A81," *")>0),"",VLOOKUP($A81,[2]Table!$A$16:$O$2000,12,0)-C81) ->  | F81: =IF(OR(A81="",COUNTIF(A81," *")>0),"",VLOOKUP($A81,[2]Table!$A$16:$O$2000,13,0)-D81) ->  | G81: =IF(OR(A81="",COUNTIF(A81," *")>0),"",VLOOKUP($A81,[2]Table!$A$16:$O$2000,14,0)) ->  | H81: =IF(OR(A81="",COUNTIF(A81," *")>0),"",VLOOKUP($A81,[2]Table!$A$16:$O$2000,15,0)) ->  | I81: nie
B82: Klasyfikacja: rozdział: 70007 | E82: =IF(OR(A82="",COUNTIF(A82," *")>0),"",VLOOKUP($A82,[2]Table!$A$16:$O$2000,12,0)-C82) ->  | F82: =IF(OR(A82="",COUNTIF(A82," *")>0),"",VLOOKUP($A82,[2]Table!$A$16:$O$2000,13,0)-D82) ->  | G82: =IF(OR(A82="",COUNTIF(A82," *")>0),"",VLOOKUP($A82,[2]Table!$A$16:$O$2000,14,0)) ->  | H82: =IF(OR(A82="",COUNTIF(A82," *")>0),"",VLOOKUP($A82,[2]Table!$A$16:$O$2000,15,0)) ->  | I82: nie
E83: =IF(OR(A83="",COUNTIF(A83," *")>0),"",VLOOKUP($A83,[2]Table!$A$16:$O$2000,12,0)-C83) ->  | F83: =IF(OR(A83="",COUNTIF(A83," *")>0),"",VLOOKUP($A83,[2]Table!$A$16:$O$2000,13,0)-D83) ->  | G83: =IF(OR(A83="",COUNTIF(A83," *")>0),"",VLOOKUP($A83,[2]Table!$A$16:$O$2000,14,0)) ->  | H83: =IF(OR(A83="",COUNTIF(A83," *")>0),"",VLOOKUP($A83,[2]Table!$A$16:$O$2000,15,0)) ->  | I83: nie
B84: OPIS | E84: =IF(OR(A84="",COUNTIF(A84," *")>0),"",VLOOKUP($A84,[2]Table!$A$16:$O$2000,12,0)-C84) ->  | F84: =IF(OR(A84="",COUNTIF(A84," *")>0),"",VLOOKUP($A84,[2]Table!$A$16:$O$2000,13,0)-D84) ->  | G84: =IF(OR(A84="",COUNTIF(A84," *")>0),"",VLOOKUP($A84,[2]Table!$A$16:$O$2000,14,0)) ->  | H84: =IF(OR(A84="",COUNTIF(A84," *")>0),"",VLOOKUP($A84,[2]Table!$A$16:$O$2000,15,0)) ->  | I84: nie
E85: =IF(OR(A85="",COUNTIF(A85," *")>0),"",VLOOKUP($A85,[2]Table!$A$16:$O$2000,12,0)-C85) ->  | F85: =IF(OR(A85="",COUNTIF(A85," *")>0),"",VLOOKUP($A85,[2]Table!$A$16:$O$2000,13,0)-D85) ->  | G85: =IF(OR(A85="",COUNTIF(A85," *")>0),"",VLOOKUP($A85,[2]Table!$A$16:$O$2000,14,0)) ->  | H85: =IF(OR(A85="",COUNTIF(A85," *")>0),"",VLOOKUP($A85,[2]Table!$A$16:$O$2000,15,0)) ->  | I85: nie
B86: Dysponent 2: Wydział Prawny | E86: =IF(OR(A86="",COUNTIF(A86," *")>0),"",VLOOKUP($A86,[2]Table!$A$16:$O$2000,12,0)-C86) ->  | F86: =IF(OR(A86="",COUNTIF(A86," *")>0),"",VLOOKUP($A86,[2]Table!$A$16:$O$2000,13,0)-D86) ->  | G86: =IF(OR(A86="",COUNTIF(A86," *")>0),"",VLOOKUP($A86,[2]Table!$A$16:$O$2000,14,0)) ->  | H86: =IF(OR(A86="",COUNTIF(A86," *")>0),"",VLOOKUP($A86,[2]Table!$A$16:$O$2000,15,0)) ->  | I86: nie
E87: =IF(OR(A87="",COUNTIF(A87," *")>0),"",VLOOKUP($A87,[2]Table!$A$16:$O$2000,12,0)-C87) ->  | F87: =IF(OR(A87="",COUNTIF(A87," *")>0),"",VLOOKUP($A87,[2]Table!$A$16:$O$2000,13,0)-D87) ->  | G87: =IF(OR(A87="",COUNTIF(A87," *")>0),"",VLOOKUP($A87,[2]Table!$A$16:$O$2000,14,0)) ->  | H87: =IF(OR(A87="",COUNTIF(A87," *")>0),"",VLOOKUP($A87,[2]Table!$A$16:$O$2000,15,0)) ->  | I87: nie
B88: Klasyfikacja: rozdział: 70007 | E88: =IF(OR(A88="",COUNTIF(A88," *")>0),"",VLOOKUP($A88,[2]Table!$A$16:$O$2000,12,0)-C88) ->  | F88: =IF(OR(A88="",COUNTIF(A88," *")>0),"",VLOOKUP($A88,[2]Table!$A$16:$O$2000,13,0)-D88) ->  | G88: =IF(OR(A88="",COUNTIF(A88," *")>0),"",VLOOKUP($A88,[2]Table!$A$16:$O$2000,14,0)) ->  | H88: =IF(OR(A88="",COUNTIF(A88," *")>0),"",VLOOKUP($A88,[2]Table!$A$16:$O$2000,15,0)) ->  | I88: nie
E89: =IF(OR(A89="",COUNTIF(A89," *")>0),"",VLOOKUP($A89,[2]Table!$A$16:$O$2000,12,0)-C89) ->  | F89: =IF(OR(A89="",COUNTIF(A89," *")>0),"",VLOOKUP($A89,[2]Table!$A$16:$O$2000,13,0)-D89) ->  | G89: =IF(OR(A89="",COUNTIF(A89," *")>0),"",VLOOKUP($A89,[2]Table!$A$16:$O$2000,14,0)) ->  | H89: =IF(OR(A89="",COUNTIF(A89," *")>0),"",VLOOKUP($A89,[2]Table!$A$16:$O$2000,15,0)) ->  | I89: nie
B90: OPIS | E90: =IF(OR(A90="",COUNTIF(A90," *")>0),"",VLOOKUP($A90,[2]Table!$A$16:$O$2000,12,0)-C90) ->  | F90: =IF(OR(A90="",COUNTIF(A90," *")>0),"",VLOOKUP($A90,[2]Table!$A$16:$O$2000,13,0)-D90) ->  | G90: =IF(OR(A90="",COUNTIF(A90," *")>0),"",VLOOKUP($A90,[2]Table!$A$16:$O$2000,14,0)) ->  | H90: =IF(OR(A90="",COUNTIF(A90," *")>0),"",VLOOKUP($A90,[2]Table!$A$16:$O$2000,15,0)) ->  | I90: nie
E91: =IF(OR(A91="",COUNTIF(A91," *")>0),"",VLOOKUP($A91,[2]Table!$A$16:$O$2000,12,0)-C91) ->  | F91: =IF(OR(A91="",COUNTIF(A91," *")>0),"",VLOOKUP($A91,[2]Table!$A$16:$O$2000,13,0)-D91) ->  | G91: =IF(OR(A91="",COUNTIF(A91," *")>0),"",VLOOKUP($A91,[2]Table!$A$16:$O$2000,14,0)) ->  | H91: =IF(OR(A91="",COUNTIF(A91," *")>0),"",VLOOKUP($A91,[2]Table!$A$16:$O$2000,15,0)) ->  | I91: nie
A92: B/II/3/2 | B92: Remonty mieszkaniowego zasobu komunalnego - zadanie 2 | C92: 0 | D92: 0 | E92: =IF(OR(A92="",COUNTIF(A92," *")>0),"",VLOOKUP($A92,[2]Table!$A$16:$O$2000,12,0)-C92) -> 0 | F92: =IF(OR(A92="",COUNTIF(A92," *")>0),"",VLOOKUP($A92,[2]Table!$A$16:$O$2000,13,0)-D92) -> 1130000 | G92: =IF(OR(A92="",COUNTIF(A92," *")>0),"",VLOOKUP($A92,[2]Table!$A$16:$O$2000,14,0)) -> 0 | H92: =IF(OR(A92="",COUNTIF(A92," *")>0),"",VLOOKUP($A92,[2]Table!$A$16:$O$2000,15,0)) -> 1130000 | I92: nie
E93: =IF(OR(A93="",COUNTIF(A93," *")>0),"",VLOOKUP($A93,[2]Table!$A$16:$O$2000,12,0)-C93) ->  | F93: =IF(OR(A93="",COUNTIF(A93," *")>0),"",VLOOKUP($A93,[2]Table!$A$16:$O$2000,13,0)-D93) ->  | G93: =IF(OR(A93="",COUNTIF(A93," *")>0),"",VLOOKUP($A93,[2]Table!$A$16:$O$2000,14,0)) ->  | H93: =IF(OR(A93="",COUNTIF(A93," *")>0),"",VLOOKUP($A93,[2]Table!$A$16:$O$2000,15,0)) ->  | I93: nie
B94: Dysponent: Wydział Zasobów Lokalowych | E94: =IF(OR(A94="",COUNTIF(A94," *")>0),"",VLOOKUP($A94,[2]Table!$A$16:$O$2000,12,0)-C94) ->  | F94: =IF(OR(A94="",COUNTIF(A94," *")>0),"",VLOOKUP($A94,[2]Table!$A$16:$O$2000,13,0)-D94) ->  | G94: =IF(OR(A94="",COUNTIF(A94," *")>0),"",VLOOKUP($A94,[2]Table!$A$16:$O$2000,14,0)) ->  | H94: =IF(OR(A94="",COUNTIF(A94," *")>0),"",VLOOKUP($A94,[2]Table!$A$16:$O$2000,15,0)) ->  | I94: nie
E95: =IF(OR(A95="",COUNTIF(A95," *")>0),"",VLOOKUP($A95,[2]Table!$A$16:$O$2000,12,0)-C95) ->  | F95: =IF(OR(A95="",COUNTIF(A95," *")>0),"",VLOOKUP($A95,[2]Table!$A$16:$O$2000,13,0)-D95) ->  | G95: =IF(OR(A95="",COUNTIF(A95," *")>0),"",VLOOKUP($A95,[2]Table!$A$16:$O$2000,14,0)) ->  | H95: =IF(OR(A95="",COUNTIF(A95," *")>0),"",VLOOKUP($A95,[2]Table!$A$16:$O$2000,15,0)) ->  | I95: nie
B96: Klasyfikacja: rozdział: 70007 | E96: =IF(OR(A96="",COUNTIF(A96," *")>0),"",VLOOKUP($A96,[2]Table!$A$16:$O$2000,12,0)-C96) ->  | F96: =IF(OR(A96="",COUNTIF(A96," *")>0),"",VLOOKUP($A96,[2]Table!$A$16:$O$2000,13,0)-D96) ->  | G96: =IF(OR(A96="",COUNTIF(A96," *")>0),"",VLOOKUP($A96,[2]Table!$A$16:$O$2000,14,0)) ->  | H96: =IF(OR(A96="",COUNTIF(A96," *")>0),"",VLOOKUP($A96,[2]Table!$A$16:$O$2000,15,0)) ->  | I96: nie
E97: =IF(OR(A97="",COUNTIF(A97," *")>0),"",VLOOKUP($A97,[2]Table!$A$16:$O$2000,12,0)-C97) ->  | F97: =IF(OR(A97="",COUNTIF(A97," *")>0),"",VLOOKUP($A97,[2]Table!$A$16:$O$2000,13,0)-D97) ->  | G97: =IF(OR(A97="",COUNTIF(A97," *")>0),"",VLOOKUP($A97,[2]Table!$A$16:$O$2000,14,0)) ->  | H97: =IF(OR(A97="",COUNTIF(A97," *")>0),"",VLOOKUP($A97,[2]Table!$A$16:$O$2000,15,0)) ->  | I97: nie
B98: OPIS | E98: =IF(OR(A98="",COUNTIF(A98," *")>0),"",VLOOKUP($A98,[2]Table!$A$16:$O$2000,12,0)-C98) ->  | F98: =IF(OR(A98="",COUNTIF(A98," *")>0),"",VLOOKUP($A98,[2]Table!$A$16:$O$2000,13,0)-D98) ->  | G98: =IF(OR(A98="",COUNTIF(A98," *")>0),"",VLOOKUP($A98,[2]Table!$A$16:$O$2000,14,0)) ->  | H98: =IF(OR(A98="",COUNTIF(A98," *")>0),"",VLOOKUP($A98,[2]Table!$A$16:$O$2000,15,0)) ->  | I98: nie
E99: =IF(OR(A99="",COUNTIF(A99," *")>0),"",VLOOKUP($A99,[2]Table!$A$16:$O$2000,12,0)-C99) ->  | F99: =IF(OR(A99="",COUNTIF(A99," *")>0),"",VLOOKUP($A99,[2]Table!$A$16:$O$2000,13,0)-D99) ->  | G99: =IF(OR(A99="",COUNTIF(A99," *")>0),"",VLOOKUP($A99,[2]Table!$A$16:$O$2000,14,0)) ->  | H99: =IF(OR(A99="",COUNTIF(A99," *")>0),"",VLOOKUP($A99,[2]Table!$A$16:$O$2000,15,0)) ->  | I99: nie
A100: B/II/3/4 | B100: Rozliczenia ze wspólnotami mieszkaniowymi - zadanie 4 | C100: 0 | D100: 0 | E100: =IF(OR(A100="",COUNTIF(A100," *")>0),"",VLOOKUP($A100,[2]Table!$A$16:$O$2000,12,0)-C100) -> 0 | F100: =IF(OR(A100="",COUNTIF(A100," *")>0),"",VLOOKUP($A100,[2]Table!$A$16:$O$2000,13,0)-D100) -> 585000 | G100: =IF(OR(A100="",COUNTIF(A100," *")>0),"",VLOOKUP($A100,[2]Table!$A$16:$O$2000,14,0)) -> 0 | H100: =IF(OR(A100="",COUNTIF(A100," *")>0),"",VLOOKUP($A100,[2]Table!$A$16:$O$2000,15,0)) -> 585000 | I100: nie
E101: =IF(OR(A101="",COUNTIF(A101," *")>0),"",VLOOKUP($A101,[2]Table!$A$16:$O$2000,12,0)-C101) ->  | F101: =IF(OR(A101="",COUNTIF(A101," *")>0),"",VLOOKUP($A101,[2]Table!$A$16:$O$2000,13,0)-D101) ->  | G101: =IF(OR(A101="",COUNTIF(A101," *")>0),"",VLOOKUP($A101,[2]Table!$A$16:$O$2000,14,0)) ->  | H101: =IF(OR(A101="",COUNTIF(A101," *")>0),"",VLOOKUP($A101,[2]Table!$A$16:$O$2000,15,0)) ->  | I101: nie
B102: Dysponent: Wydział Zasobów Lokalowych | E102: =IF(OR(A102="",COUNTIF(A102," *")>0),"",VLOOKUP($A102,[2]Table!$A$16:$O$2000,12,0)-C102) ->  | F102: =IF(OR(A102="",COUNTIF(A102," *")>0),"",VLOOKUP($A102,[2]Table!$A$16:$O$2000,13,0)-D102) ->  | G102: =IF(OR(A102="",COUNTIF(A102," *")>0),"",VLOOKUP($A102,[2]Table!$A$16:$O$2000,14,0)) ->  | H102: =IF(OR(A102="",COUNTIF(A102," *")>0),"",VLOOKUP($A102,[2]Table!$A$16:$O$2000,15,0)) ->  | I102: nie
E103: =IF(OR(A103="",COUNTIF(A103," *")>0),"",VLOOKUP($A103,[2]Table!$A$16:$O$2000,12,0)-C103) ->  | F103: =IF(OR(A103="",COUNTIF(A103," *")>0),"",VLOOKUP($A103,[2]Table!$A$16:$O$2000,13,0)-D103) ->  | G103: =IF(OR(A103="",COUNTIF(A103," *")>0),"",VLOOKUP($A103,[2]Table!$A$16:$O$2000,14,0)) ->  | H103: =IF(OR(A103="",COUNTIF(A103," *")>0),"",VLOOKUP($A103,[2]Table!$A$16:$O$2000,15,0)) ->  | I103: nie
B104: Klasyfikacja: rozdział: 70007 | E104: =IF(OR(A104="",COUNTIF(A104," *")>0),"",VLOOKUP($A104,[2]Table!$A$16:$O$2000,12,0)-C104) ->  | F104: =IF(OR(A104="",COUNTIF(A104," *")>0),"",VLOOKUP($A104,[2]Table!$A$16:$O$2000,13,0)-D104) ->  | G104: =IF(OR(A104="",COUNTIF(A104," *")>0),"",VLOOKUP($A104,[2]Table!$A$16:$O$2000,14,0)) ->  | H104: =IF(OR(A104="",COUNTIF(A104," *")>0),"",VLOOKUP($A104,[2]Table!$A$16:$O$2000,15,0)) ->  | I104: nie
E105: =IF(OR(A105="",COUNTIF(A105," *")>0),"",VLOOKUP($A105,[2]Table!$A$16:$O$2000,12,0)-C105) ->  | F105: =IF(OR(A105="",COUNTIF(A105," *")>0),"",VLOOKUP($A105,[2]Table!$A$16:$O$2000,13,0)-D105) ->  | G105: =IF(OR(A105="",COUNTIF(A105," *")>0),"",VLOOKUP($A105,[2]Table!$A$16:$O$2000,14,0)) ->  | H105: =IF(OR(A105="",COUNTIF(A105," *")>0),"",VLOOKUP($A105,[2]Table!$A$16:$O$2000,15,0)) ->  | I105: nie
B106: OPIS | E106: =IF(OR(A106="",COUNTIF(A106," *")>0),"",VLOOKUP($A106,[2]Table!$A$16:$O$2000,12,0)-C106) ->  | F106: =IF(OR(A106="",COUNTIF(A106," *")>0),"",VLOOKUP($A106,[2]Table!$A$16:$O$2000,13,0)-D106) ->  | G106: =IF(OR(A106="",COUNTIF(A106," *")>0),"",VLOOKUP($A106,[2]Table!$A$16:$O$2000,14,0)) ->  | H106: =IF(OR(A106="",COUNTIF(A106," *")>0),"",VLOOKUP($A106,[2]Table!$A$16:$O$2000,15,0)) ->  | I106: nie
E107: =IF(OR(A107="",COUNTIF(A107," *")>0),"",VLOOKUP($A107,[2]Table!$A$16:$O$2000,12,0)-C107) ->  | F107: =IF(OR(A107="",COUNTIF(A107," *")>0),"",VLOOKUP($A107,[2]Table!$A$16:$O$2000,13,0)-D107) ->  | G107: =IF(OR(A107="",COUNTIF(A107," *")>0),"",VLOOKUP($A107,[2]Table!$A$16:$O$2000,14,0)) ->  | H107: =IF(OR(A107="",COUNTIF(A107," *")>0),"",VLOOKUP($A107,[2]Table!$A$16:$O$2000,15,0)) ->  | I107: nie
A108: B/II/3/6 | B108: Rozliczenia za lokale z właścicielami innymi niż m.st. Warszawa - zadanie 6 | C108: =C110+C116 -> 0 | D108: =D110+D116 -> 0 | E108: =IF(OR(A108="",COUNTIF(A108," *")>0),"",VLOOKUP($A108,[2]Table!$A$16:$O$2000,12,0)-C108) -> 0 | F108: =IF(OR(A108="",COUNTIF(A108," *")>0),"",VLOOKUP($A108,[2]Table!$A$16:$O$2000,13,0)-D108) -> 209250 | G108: =IF(OR(A108="",COUNTIF(A108," *")>0),"",VLOOKUP($A108,[2]Table!$A$16:$O$2000,14,0)) -> 0 | H108: =IF(OR(A108="",COUNTIF(A108," *")>0),"",VLOOKUP($A108,[2]Table!$A$16:$O$2000,15,0)) -> 209250 | I108: nie
E109: =IF(OR(A109="",COUNTIF(A109," *")>0),"",VLOOKUP($A109,[2]Table!$A$16:$O$2000,12,0)-C109) ->  | F109: =IF(OR(A109="",COUNTIF(A109," *")>0),"",VLOOKUP($A109,[2]Table!$A$16:$O$2000,13,0)-D109) ->  | G109: =IF(OR(A109="",COUNTIF(A109," *")>0),"",VLOOKUP($A109,[2]Table!$A$16:$O$2000,14,0)) ->  | H109: =IF(OR(A109="",COUNTIF(A109," *")>0),"",VLOOKUP($A109,[2]Table!$A$16:$O$2000,15,0)) ->  | I109: nie
B110: Dysponent 1: Wydział Zasobów Lokalowych | E110: =IF(OR(A110="",COUNTIF(A110," *")>0),"",VLOOKUP($A110,[2]Table!$A$16:$O$2000,12,0)-C110) ->  | F110: =IF(OR(A110="",COUNTIF(A110," *")>0),"",VLOOKUP($A110,[2]Table!$A$16:$O$2000,13,0)-D110) ->  | G110: =IF(OR(A110="",COUNTIF(A110," *")>0),"",VLOOKUP($A110,[2]Table!$A$16:$O$2000,14,0)) ->  | H110: =IF(OR(A110="",COUNTIF(A110," *")>0),"",VLOOKUP($A110,[2]Table!$A$16:$O$2000,15,0)) ->  | I110: nie
E111: =IF(OR(A111="",COUNTIF(A111," *")>0),"",VLOOKUP($A111,[2]Table!$A$16:$O$2000,12,0)-C111) ->  | F111: =IF(OR(A111="",COUNTIF(A111," *")>0),"",VLOOKUP($A111,[2]Table!$A$16:$O$2000,13,0)-D111) ->  | G111: =IF(OR(A111="",COUNTIF(A111," *")>0),"",VLOOKUP($A111,[2]Table!$A$16:$O$2000,14,0)) ->  | H111: =IF(OR(A111="",COUNTIF(A111," *")>0),"",VLOOKUP($A111,[2]Table!$A$16:$O$2000,15,0)) ->  | I111: nie
B112: Klasyfikacja: rozdział: 70005 | E112: =IF(OR(A112="",COUNTIF(A112," *")>0),"",VLOOKUP($A112,[2]Table!$A$16:$O$2000,12,0)-C112) ->  | F112: =IF(OR(A112="",COUNTIF(A112," *")>0),"",VLOOKUP($A112,[2]Table!$A$16:$O$2000,13,0)-D112) ->  | G112: =IF(OR(A112="",COUNTIF(A112," *")>0),"",VLOOKUP($A112,[2]Table!$A$16:$O$2000,14,0)) ->  | H112: =IF(OR(A112="",COUNTIF(A112," *")>0),"",VLOOKUP($A112,[2]Table!$A$16:$O$2000,15,0)) ->  | I112: nie
E113: =IF(OR(A113="",COUNTIF(A113," *")>0),"",VLOOKUP($A113,[2]Table!$A$16:$O$2000,12,0)-C113) ->  | F113: =IF(OR(A113="",COUNTIF(A113," *")>0),"",VLOOKUP($A113,[2]Table!$A$16:$O$2000,13,0)-D113) ->  | G113: =IF(OR(A113="",COUNTIF(A113," *")>0),"",VLOOKUP($A113,[2]Table!$A$16:$O$2000,14,0)) ->  | H113: =IF(OR(A113="",COUNTIF(A113," *")>0),"",VLOOKUP($A113,[2]Table!$A$16:$O$2000,15,0)) ->  | I113: nie
B114: OPIS | E114: =IF(OR(A114="",COUNTIF(A114," *")>0),"",VLOOKUP($A114,[2]Table!$A$16:$O$2000,12,0)-C114) ->  | F114: =IF(OR(A114="",COUNTIF(A114," *")>0),"",VLOOKUP($A114,[2]Table!$A$16:$O$2000,13,0)-D114) ->  | G114: =IF(OR(A114="",COUNTIF(A114," *")>0),"",VLOOKUP($A114,[2]Table!$A$16:$O$2000,14,0)) ->  | H114: =IF(OR(A114="",COUNTIF(A114," *")>0),"",VLOOKUP($A114,[2]Table!$A$16:$O$2000,15,0)) ->  | I114: nie
E115: =IF(OR(A115="",COUNTIF(A115," *")>0),"",VLOOKUP($A115,[2]Table!$A$16:$O$2000,12,0)-C115) ->  | F115: =IF(OR(A115="",COUNTIF(A115," *")>0),"",VLOOKUP($A115,[2]Table!$A$16:$O$2000,13,0)-D115) ->  | G115: =IF(OR(A115="",COUNTIF(A115," *")>0),"",VLOOKUP($A115,[2]Table!$A$16:$O$2000,14,0)) ->  | H115: =IF(OR(A115="",COUNTIF(A115," *")>0),"",VLOOKUP($A115,[2]Table!$A$16:$O$2000,15,0)) ->  | I115: nie
B116: Dysponent 2: Wydział Prawny | E116: =IF(OR(A116="",COUNTIF(A116," *")>0),"",VLOOKUP($A116,[2]Table!$A$16:$O$2000,12,0)-C116) ->  | F116: =IF(OR(A116="",COUNTIF(A116," *")>0),"",VLOOKUP($A116,[2]Table!$A$16:$O$2000,13,0)-D116) ->  | G116: =IF(OR(A116="",COUNTIF(A116," *")>0),"",VLOOKUP($A116,[2]Table!$A$16:$O$2000,14,0)) ->  | H116: =IF(OR(A116="",COUNTIF(A116," *")>0),"",VLOOKUP($A116,[2]Table!$A$16:$O$2000,15,0)) ->  | I116: nie
E117: =IF(OR(A117="",COUNTIF(A117," *")>0),"",VLOOKUP($A117,[2]Table!$A$16:$O$2000,12,0)-C117) ->  | F117: =IF(OR(A117="",COUNTIF(A117," *")>0),"",VLOOKUP($A117,[2]Table!$A$16:$O$2000,13,0)-D117) ->  | G117: =IF(OR(A117="",COUNTIF(A117," *")>0),"",VLOOKUP($A117,[2]Table!$A$16:$O$2000,14,0)) ->  | H117: =IF(OR(A117="",COUNTIF(A117," *")>0),"",VLOOKUP($A117,[2]Table!$A$16:$O$2000,15,0)) ->  | I117: nie
B118: Klasyfikacja: rozdział: 70005 | E118: =IF(OR(A118="",COUNTIF(A118," *")>0),"",VLOOKUP($A118,[2]Table!$A$16:$O$2000,12,0)-C118) ->  | F118: =IF(OR(A118="",COUNTIF(A118," *")>0),"",VLOOKUP($A118,[2]Table!$A$16:$O$2000,13,0)-D118) ->  | G118: =IF(OR(A118="",COUNTIF(A118," *")>0),"",VLOOKUP($A118,[2]Table!$A$16:$O$2000,14,0)) ->  | H118: =IF(OR(A118="",COUNTIF(A118," *")>0),"",VLOOKUP($A118,[2]Table!$A$16:$O$2000,15,0)) ->  | I118: nie
E119: =IF(OR(A119="",COUNTIF(A119," *")>0),"",VLOOKUP($A119,[2]Table!$A$16:$O$2000,12,0)-C119) ->  | F119: =IF(OR(A119="",COUNTIF(A119," *")>0),"",VLOOKUP($A119,[2]Table!$A$16:$O$2000,13,0)-D119) ->  | G119: =IF(OR(A119="",COUNTIF(A119," *")>0),"",VLOOKUP($A119,[2]Table!$A$16:$O$2000,14,0)) ->  | H119: =IF(OR(A119="",COUNTIF(A119," *")>0),"",VLOOKUP($A119,[2]Table!$A$16:$O$2000,15,0)) ->  | I119: nie
B120: OPIS | E120: =IF(OR(A120="",COUNTIF(A120," *")>0),"",VLOOKUP($A120,[2]Table!$A$16:$O$2000,12,0)-C120) ->  | F120: =IF(OR(A120="",COUNTIF(A120," *")>0),"",VLOOKUP($A120,[2]Table!$A$16:$O$2000,13,0)-D120) ->  | G120: =IF(OR(A120="",COUNTIF(A120," *")>0),"",VLOOKUP($A120,[2]Table!$A$16:$O$2000,14,0)) ->  | H120: =IF(OR(A120="",COUNTIF(A120," *")>0),"",VLOOKUP($A120,[2]Table!$A$16:$O$2000,15,0)) ->  | I120: nie
E121: =IF(OR(A121="",COUNTIF(A121," *")>0),"",VLOOKUP($A121,[2]Table!$A$16:$O$2000,12,0)-C121) ->  | F121: =IF(OR(A121="",COUNTIF(A121," *")>0),"",VLOOKUP($A121,[2]Table!$A$16:$O$2000,13,0)-D121) ->  | G121: =IF(OR(A121="",COUNTIF(A121," *")>0),"",VLOOKUP($A121,[2]Table!$A$16:$O$2000,14,0)) ->  | H121: =IF(OR(A121="",COUNTIF(A121," *")>0),"",VLOOKUP($A121,[2]Table!$A$16:$O$2000,15,0)) ->  | I121: nie
A122: II/4 | B122: Zadania związane z nabywaniem i sprzedażą nieruchomości - program 4 | C122: =C124+C138 -> 0 | D122: =D124+D138 -> 0 | E122: =IF(OR(A122="",COUNTIF(A122," *")>0),"",VLOOKUP($A122,[2]Table!$A$16:$O$2000,12,0)-C122) -> 0 | F122: =IF(OR(A122="",COUNTIF(A122," *")>0),"",VLOOKUP($A122,[2]Table!$A$16:$O$2000,13,0)-D122) -> 386000 | G122: =IF(OR(A122="",COUNTIF(A122," *")>0),"",VLOOKUP($A122,[2]Table!$A$16:$O$2000,14,0)) -> 0 | H122: =IF(OR(A122="",COUNTIF(A122," *")>0),"",VLOOKUP($A122,[2]Table!$A$16:$O$2000,15,0)) -> 386000 | I122: nie
E123: =IF(OR(A123="",COUNTIF(A123," *")>0),"",VLOOKUP($A123,[2]Table!$A$16:$O$2000,12,0)-C123) ->  | F123: =IF(OR(A123="",COUNTIF(A123," *")>0),"",VLOOKUP($A123,[2]Table!$A$16:$O$2000,13,0)-D123) ->  | G123: =IF(OR(A123="",COUNTIF(A123," *")>0),"",VLOOKUP($A123,[2]Table!$A$16:$O$2000,14,0)) ->  | H123: =IF(OR(A123="",COUNTIF(A123," *")>0),"",VLOOKUP($A123,[2]Table!$A$16:$O$2000,15,0)) ->  | I123: nie
A124: B/II/4/1 | B124: Przygotowanie nieruchomości komunalnych przeznaczonych m.in. do zbycia i zamiany - zadanie 1 | C124: =C126+C132 -> 0 | D124: =D126+D132 -> 0 | E124: =IF(OR(A124="",COUNTIF(A124," *")>0),"",VLOOKUP($A124,[2]Table!$A$16:$O$2000,12,0)-C124) -> 0 | F124: =IF(OR(A124="",COUNTIF(A124," *")>0),"",VLOOKUP($A124,[2]Table!$A$16:$O$2000,13,0)-D124) -> 12000 | G124: =IF(OR(A124="",COUNTIF(A124," *")>0),"",VLOOKUP($A124,[2]Table!$A$16:$O$2000,14,0)) -> 0 | H124: =IF(OR(A124="",COUNTIF(A124," *")>0),"",VLOOKUP($A124,[2]Table!$A$16:$O$2000,15,0)) -> 12000 | I124: nie
E125: =IF(OR(A125="",COUNTIF(A125," *")>0),"",VLOOKUP($A125,[2]Table!$A$16:$O$2000,12,0)-C125) ->  | F125: =IF(OR(A125="",COUNTIF(A125," *")>0),"",VLOOKUP($A125,[2]Table!$A$16:$O$2000,13,0)-D125) ->  | G125: =IF(OR(A125="",COUNTIF(A125," *")>0),"",VLOOKUP($A125,[2]Table!$A$16:$O$2000,14,0)) ->  | H125: =IF(OR(A125="",COUNTIF(A125," *")>0),"",VLOOKUP($A125,[2]Table!$A$16:$O$2000,15,0)) ->  | I125: nie
B126: Dysponent 1: Wydział Nieruchomości | E126: =IF(OR(A126="",COUNTIF(A126," *")>0),"",VLOOKUP($A126,[2]Table!$A$16:$O$2000,12,0)-C126) ->  | F126: =IF(OR(A126="",COUNTIF(A126," *")>0),"",VLOOKUP($A126,[2]Table!$A$16:$O$2000,13,0)-D126) ->  | G126: =IF(OR(A126="",COUNTIF(A126," *")>0),"",VLOOKUP($A126,[2]Table!$A$16:$O$2000,14,0)) ->  | H126: =IF(OR(A126="",COUNTIF(A126," *")>0),"",VLOOKUP($A126,[2]Table!$A$16:$O$2000,15,0)) ->  | I126: nie
E127: =IF(OR(A127="",COUNTIF(A127," *")>0),"",VLOOKUP($A127,[2]Table!$A$16:$O$2000,12,0)-C127) ->  | F127: =IF(OR(A127="",COUNTIF(A127," *")>0),"",VLOOKUP($A127,[2]Table!$A$16:$O$2000,13,0)-D127) ->  | G127: =IF(OR(A127="",COUNTIF(A127," *")>0),"",VLOOKUP($A127,[2]Table!$A$16:$O$2000,14,0)) ->  | H127: =IF(OR(A127="",COUNTIF(A127," *")>0),"",VLOOKUP($A127,[2]Table!$A$16:$O$2000,15,0)) ->  | I127: nie
B128: Klasyfikacja: rozdział: 70005 | E128: =IF(OR(A128="",COUNTIF(A128," *")>0),"",VLOOKUP($A128,[2]Table!$A$16:$O$2000,12,0)-C128) ->  | F128: =IF(OR(A128="",COUNTIF(A128," *")>0),"",VLOOKUP($A128,[2]Table!$A$16:$O$2000,13,0)-D128) ->  | G128: =IF(OR(A128="",COUNTIF(A128," *")>0),"",VLOOKUP($A128,[2]Table!$A$16:$O$2000,14,0)) ->  | H128: =IF(OR(A128="",COUNTIF(A128," *")>0),"",VLOOKUP($A128,[2]Table!$A$16:$O$2000,15,0)) ->  | I128: nie
E129: =IF(OR(A129="",COUNTIF(A129," *")>0),"",VLOOKUP($A129,[2]Table!$A$16:$O$2000,12,0)-C129) ->  | F129: =IF(OR(A129="",COUNTIF(A129," *")>0),"",VLOOKUP($A129,[2]Table!$A$16:$O$2000,13,0)-D129) ->  | G129: =IF(OR(A129="",COUNTIF(A129," *")>0),"",VLOOKUP($A129,[2]Table!$A$16:$O$2000,14,0)) ->  | H129: =IF(OR(A129="",COUNTIF(A129," *")>0),"",VLOOKUP($A129,[2]Table!$A$16:$O$2000,15,0)) ->  | I129: nie
B130: OPIS | E130: =IF(OR(A130="",COUNTIF(A130," *")>0),"",VLOOKUP($A130,[2]Table!$A$16:$O$2000,12,0)-C130) ->  | F130: =IF(OR(A130="",COUNTIF(A130," *")>0),"",VLOOKUP($A130,[2]Table!$A$16:$O$2000,13,0)-D130) ->  | G130: =IF(OR(A130="",COUNTIF(A130," *")>0),"",VLOOKUP($A130,[2]Table!$A$16:$O$2000,14,0)) ->  | H130: =IF(OR(A130="",COUNTIF(A130," *")>0),"",VLOOKUP($A130,[2]Table!$A$16:$O$2000,15,0)) ->  | I130: nie
E131: =IF(OR(A131="",COUNTIF(A131," *")>0),"",VLOOKUP($A131,[2]Table!$A$16:$O$2000,12,0)-C131) ->  | F131: =IF(OR(A131="",COUNTIF(A131," *")>0),"",VLOOKUP($A131,[2]Table!$A$16:$O$2000,13,0)-D131) ->  | G131: =IF(OR(A131="",COUNTIF(A131," *")>0),"",VLOOKUP($A131,[2]Table!$A$16:$O$2000,14,0)) ->  | H131: =IF(OR(A131="",COUNTIF(A131," *")>0),"",VLOOKUP($A131,[2]Table!$A$16:$O$2000,15,0)) ->  | I131: nie
B132: Dysponent 2: Wydział Administracyjno-Gospodarczy | E132: =IF(OR(A132="",COUNTIF(A132," *")>0),"",VLOOKUP($A132,[2]Table!$A$16:$O$2000,12,0)-C132) ->  | F132: =IF(OR(A132="",COUNTIF(A132," *")>0),"",VLOOKUP($A132,[2]Table!$A$16:$O$2000,13,0)-D132) ->  | G132: =IF(OR(A132="",COUNTIF(A132," *")>0),"",VLOOKUP($A132,[2]Table!$A$16:$O$2000,14,0)) ->  | H132: =IF(OR(A132="",COUNTIF(A132," *")>0),"",VLOOKUP($A132,[2]Table!$A$16:$O$2000,15,0)) ->  | I132: nie
E133: =IF(OR(A133="",COUNTIF(A133," *")>0),"",VLOOKUP($A133,[2]Table!$A$16:$O$2000,12,0)-C133) ->  | F133: =IF(OR(A133="",COUNTIF(A133," *")>0),"",VLOOKUP($A133,[2]Table!$A$16:$O$2000,13,0)-D133) ->  | G133: =IF(OR(A133="",COUNTIF(A133," *")>0),"",VLOOKUP($A133,[2]Table!$A$16:$O$2000,14,0)) ->  | H133: =IF(OR(A133="",COUNTIF(A133," *")>0),"",VLOOKUP($A133,[2]Table!$A$16:$O$2000,15,0)) ->  | I133: nie
B134: Klasyfikacja: rozdział: 70005 | E134: =IF(OR(A134="",COUNTIF(A134," *")>0),"",VLOOKUP($A134,[2]Table!$A$16:$O$2000,12,0)-C134) ->  | F134: =IF(OR(A134="",COUNTIF(A134," *")>0),"",VLOOKUP($A134,[2]Table!$A$16:$O$2000,13,0)-D134) ->  | G134: =IF(OR(A134="",COUNTIF(A134," *")>0),"",VLOOKUP($A134,[2]Table!$A$16:$O$2000,14,0)) ->  | H134: =IF(OR(A134="",COUNTIF(A134," *")>0),"",VLOOKUP($A134,[2]Table!$A$16:$O$2000,15,0)) ->  | I134: nie
E135: =IF(OR(A135="",COUNTIF(A135," *")>0),"",VLOOKUP($A135,[2]Table!$A$16:$O$2000,12,0)-C135) ->  | F135: =IF(OR(A135="",COUNTIF(A135," *")>0),"",VLOOKUP($A135,[2]Table!$A$16:$O$2000,13,0)-D135) ->  | G135: =IF(OR(A135="",COUNTIF(A135," *")>0),"",VLOOKUP($A135,[2]Table!$A$16:$O$2000,14,0)) ->  | H135: =IF(OR(A135="",COUNTIF(A135," *")>0),"",VLOOKUP($A135,[2]Table!$A$16:$O$2000,15,0)) ->  | I135: nie
B136: OPIS | E136: =IF(OR(A136="",COUNTIF(A136," *")>0),"",VLOOKUP($A136,[2]Table!$A$16:$O$2000,12,0)-C136) ->  | F136: =IF(OR(A136="",COUNTIF(A136," *")>0),"",VLOOKUP($A136,[2]Table!$A$16:$O$2000,13,0)-D136) ->  | G136: =IF(OR(A136="",COUNTIF(A136," *")>0),"",VLOOKUP($A136,[2]Table!$A$16:$O$2000,14,0)) ->  | H136: =IF(OR(A136="",COUNTIF(A136," *")>0),"",VLOOKUP($A136,[2]Table!$A$16:$O$2000,15,0)) ->  | I136: nie
E137: =IF(OR(A137="",COUNTIF(A137," *")>0),"",VLOOKUP($A137,[2]Table!$A$16:$O$2000,12,0)-C137) ->  | F137: =IF(OR(A137="",COUNTIF(A137," *")>0),"",VLOOKUP($A137,[2]Table!$A$16:$O$2000,13,0)-D137) ->  | G137: =IF(OR(A137="",COUNTIF(A137," *")>0),"",VLOOKUP($A137,[2]Table!$A$16:$O$2000,14,0)) ->  | H137: =IF(OR(A137="",COUNTIF(A137," *")>0),"",VLOOKUP($A137,[2]Table!$A$16:$O$2000,15,0)) ->  | I137: nie
A138: B/II/4/2 | B138: Regulacja stanów prawnych nieruchomości, w tym odszkodowania - zadanie 2 | C138: 0 | D138: 0 | E138: =IF(OR(A138="",COUNTIF(A138," *")>0),"",VLOOKUP($A138,[2]Table!$A$16:$O$2000,12,0)-C138) -> 0 | F138: =IF(OR(A138="",COUNTIF(A138," *")>0),"",VLOOKUP($A138,[2]Table!$A$16:$O$2000,13,0)-D138) -> 374000 | G138: =IF(OR(A138="",COUNTIF(A138," *")>0),"",VLOOKUP($A138,[2]Table!$A$16:$O$2000,14,0)) -> 0 | H138: =IF(OR(A138="",COUNTIF(A138," *")>0),"",VLOOKUP($A138,[2]Table!$A$16:$O$2000,15,0)) -> 374000 | I138: nie
E139: =IF(OR(A139="",COUNTIF(A139," *")>0),"",VLOOKUP($A139,[2]Table!$A$16:$O$2000,12,0)-C139) ->  | F139: =IF(OR(A139="",COUNTIF(A139," *")>0),"",VLOOKUP($A139,[2]Table!$A$16:$O$2000,13,0)-D139) ->  | G139: =IF(OR(A139="",COUNTIF(A139," *")>0),"",VLOOKUP($A139,[2]Table!$A$16:$O$2000,14,0)) ->  | H139: =IF(OR(A139="",COUNTIF(A139," *")>0),"",VLOOKUP($A139,[2]Table!$A$16:$O$2000,15,0)) ->  | I139: nie
B140: Dysponent: Wydział Nieruchomości | E140: =IF(OR(A140="",COUNTIF(A140," *")>0),"",VLOOKUP($A140,[2]Table!$A$16:$O$2000,12,0)-C140) ->  | F140: =IF(OR(A140="",COUNTIF(A140," *")>0),"",VLOOKUP($A140,[2]Table!$A$16:$O$2000,13,0)-D140) ->  | G140: =IF(OR(A140="",COUNTIF(A140," *")>0),"",VLOOKUP($A140,[2]Table!$A$16:$O$2000,14,0)) ->  | H140: =IF(OR(A140="",COUNTIF(A140," *")>0),"",VLOOKUP($A140,[2]Table!$A$16:$O$2000,15,0)) ->  | I140: nie
E141: =IF(OR(A141="",COUNTIF(A141," *")>0),"",VLOOKUP($A141,[2]Table!$A$16:$O$2000,12,0)-C141) ->  | F141: =IF(OR(A141="",COUNTIF(A141," *")>0),"",VLOOKUP($A141,[2]Table!$A$16:$O$2000,13,0)-D141) ->  | G141: =IF(OR(A141="",COUNTIF(A141," *")>0),"",VLOOKUP($A141,[2]Table!$A$16:$O$2000,14,0)) ->  | H141: =IF(OR(A141="",COUNTIF(A141," *")>0),"",VLOOKUP($A141,[2]Table!$A$16:$O$2000,15,0)) ->  | I141: nie
B142: Klasyfikacja: rozdział: 70005 | E142: =IF(OR(A142="",COUNTIF(A142," *")>0),"",VLOOKUP($A142,[2]Table!$A$16:$O$2000,12,0)-C142) ->  | F142: =IF(OR(A142="",COUNTIF(A142," *")>0),"",VLOOKUP($A142,[2]Table!$A$16:$O$2000,13,0)-D142) ->  | G142: =IF(OR(A142="",COUNTIF(A142," *")>0),"",VLOOKUP($A142,[2]Table!$A$16:$O$2000,14,0)) ->  | H142: =IF(OR(A142="",COUNTIF(A142," *")>0),"",VLOOKUP($A142,[2]Table!$A$16:$O$2000,15,0)) ->  | I142: nie
E143: =IF(OR(A143="",COUNTIF(A143," *")>0),"",VLOOKUP($A143,[2]Table!$A$16:$O$2000,12,0)-C143) ->  | F143: =IF(OR(A143="",COUNTIF(A143," *")>0),"",VLOOKUP($A143,[2]Table!$A$16:$O$2000,13,0)-D143) ->  | G143: =IF(OR(A143="",COUNTIF(A143," *")>0),"",VLOOKUP($A143,[2]Table!$A$16:$O$2000,14,0)) ->  | H143: =IF(OR(A143="",COUNTIF(A143," *")>0),"",VLOOKUP($A143,[2]Table!$A$16:$O$2000,15,0)) ->  | I143: nie
B144: OPIS | E144: =IF(OR(A144="",COUNTIF(A144," *")>0),"",VLOOKUP($A144,[2]Table!$A$16:$O$2000,12,0)-C144) ->  | F144: =IF(OR(A144="",COUNTIF(A144," *")>0),"",VLOOKUP($A144,[2]Table!$A$16:$O$2000,13,0)-D144) ->  | G144: =IF(OR(A144="",COUNTIF(A144," *")>0),"",VLOOKUP($A144,[2]Table!$A$16:$O$2000,14,0)) ->  | H144: =IF(OR(A144="",COUNTIF(A144," *")>0),"",VLOOKUP($A144,[2]Table!$A$16:$O$2000,15,0)) ->  | I144: =IF(OR(A144="",COUNTIF(A144," *")>0),OFFSET(I144,-1,0),IF(C144+D144>0,"tak","nie")) -> nie
E145: =IF(OR(A145="",COUNTIF(A145," *")>0),"",VLOOKUP($A145,[2]Table!$A$16:$O$2000,12,0)-C145) ->  | F145: =IF(OR(A145="",COUNTIF(A145," *")>0),"",VLOOKUP($A145,[2]Table!$A$16:$O$2000,13,0)-D145) ->  | G145: =IF(OR(A145="",COUNTIF(A145," *")>0),"",VLOOKUP($A145,[2]Table!$A$16:$O$2000,14,0)) ->  | H145: =IF(OR(A145="",COUNTIF(A145," *")>0),"",VLOOKUP($A145,[2]Table!$A$16:$O$2000,15,0)) ->  | I145: nie
A146: II/5 | B146: Pozostały zasób komunalny - program 5 | C146: =C148+C156 -> 0 | D146: =D148+D156 -> 0 | E146: =IF(OR(A146="",COUNTIF(A146," *")>0),"",VLOOKUP($A146,[2]Table!$A$16:$O$2000,12,0)-C146) -> 0 | F146: =IF(OR(A146="",COUNTIF(A146," *")>0),"",VLOOKUP($A146,[2]Table!$A$16:$O$2000,13,0)-D146) -> 794341 | G146: =IF(OR(A146="",COUNTIF(A146," *")>0),"",VLOOKUP($A146,[2]Table!$A$16:$O$2000,14,0)) -> 0 | H146: =IF(OR(A146="",COUNTIF(A146," *")>0),"",VLOOKUP($A146,[2]Table!$A$16:$O$2000,15,0)) -> 794341 | I146: nie
E147: =IF(OR(A147="",COUNTIF(A147," *")>0),"",VLOOKUP($A147,[2]Table!$A$16:$O$2000,12,0)-C147) ->  | F147: =IF(OR(A147="",COUNTIF(A147," *")>0),"",VLOOKUP($A147,[2]Table!$A$16:$O$2000,13,0)-D147) ->  | G147: =IF(OR(A147="",COUNTIF(A147," *")>0),"",VLOOKUP($A147,[2]Table!$A$16:$O$2000,14,0)) ->  | H147: =IF(OR(A147="",COUNTIF(A147," *")>0),"",VLOOKUP($A147,[2]Table!$A$16:$O$2000,15,0)) ->  | I147: nie
A148: B/II/5/1 | B148: Zarządzanie lokalami użytkowymi i ich eksploatacja - zadanie 1 | E148: =IF(OR(A148="",COUNTIF(A148," *")>0),"",VLOOKUP($A148,[2]Table!$A$16:$O$2000,12,0)-C148) -> 0 | F148: =IF(OR(A148="",COUNTIF(A148," *")>0),"",VLOOKUP($A148,[2]Table!$A$16:$O$2000,13,0)-D148) -> 217000 | G148: =IF(OR(A148="",COUNTIF(A148," *")>0),"",VLOOKUP($A148,[2]Table!$A$16:$O$2000,14,0)) -> 0 | H148: =IF(OR(A148="",COUNTIF(A148," *")>0),"",VLOOKUP($A148,[2]Table!$A$16:$O$2000,15,0)) -> 217000 | I148: nie
E149: =IF(OR(A149="",COUNTIF(A149," *")>0),"",VLOOKUP($A149,[2]Table!$A$16:$O$2000,12,0)-C149) ->  | F149: =IF(OR(A149="",COUNTIF(A149," *")>0),"",VLOOKUP($A149,[2]Table!$A$16:$O$2000,13,0)-D149) ->  | G149: =IF(OR(A149="",COUNTIF(A149," *")>0),"",VLOOKUP($A149,[2]Table!$A$16:$O$2000,14,0)) ->  | H149: =IF(OR(A149="",COUNTIF(A149," *")>0),"",VLOOKUP($A149,[2]Table!$A$16:$O$2000,15,0)) ->  | I149: nie
B150: Dysponent: Wydział Administracyjno-Gospodarczy | E150: =IF(OR(A150="",COUNTIF(A150," *")>0),"",VLOOKUP($A150,[2]Table!$A$16:$O$2000,12,0)-C150) ->  | F150: =IF(OR(A150="",COUNTIF(A150," *")>0),"",VLOOKUP($A150,[2]Table!$A$16:$O$2000,13,0)-D150) ->  | G150: =IF(OR(A150="",COUNTIF(A150," *")>0),"",VLOOKUP($A150,[2]Table!$A$16:$O$2000,14,0)) ->  | H150: =IF(OR(A150="",COUNTIF(A150," *")>0),"",VLOOKUP($A150,[2]Table!$A$16:$O$2000,15,0)) ->  | I150: nie
E151: =IF(OR(A151="",COUNTIF(A151," *")>0),"",VLOOKUP($A151,[2]Table!$A$16:$O$2000,12,0)-C151) ->  | F151: =IF(OR(A151="",COUNTIF(A151," *")>0),"",VLOOKUP($A151,[2]Table!$A$16:$O$2000,13,0)-D151) ->  | G151: =IF(OR(A151="",COUNTIF(A151," *")>0),"",VLOOKUP($A151,[2]Table!$A$16:$O$2000,14,0)) ->  | H151: =IF(OR(A151="",COUNTIF(A151," *")>0),"",VLOOKUP($A151,[2]Table!$A$16:$O$2000,15,0)) ->  | I151: nie
B152: Klasyfikacja: rozdział: 70005 | E152: =IF(OR(A152="",COUNTIF(A152," *")>0),"",VLOOKUP($A152,[2]Table!$A$16:$O$2000,12,0)-C152) ->  | F152: =IF(OR(A152="",COUNTIF(A152," *")>0),"",VLOOKUP($A152,[2]Table!$A$16:$O$2000,13,0)-D152) ->  | G152: =IF(OR(A152="",COUNTIF(A152," *")>0),"",VLOOKUP($A152,[2]Table!$A$16:$O$2000,14,0)) ->  | H152: =IF(OR(A152="",COUNTIF(A152," *")>0),"",VLOOKUP($A152,[2]Table!$A$16:$O$2000,15,0)) ->  | I152: nie
E153: =IF(OR(A153="",COUNTIF(A153," *")>0),"",VLOOKUP($A153,[2]Table!$A$16:$O$2000,12,0)-C153) ->  | F153: =IF(OR(A153="",COUNTIF(A153," *")>0),"",VLOOKUP($A153,[2]Table!$A$16:$O$2000,13,0)-D153) ->  | G153: =IF(OR(A153="",COUNTIF(A153," *")>0),"",VLOOKUP($A153,[2]Table!$A$16:$O$2000,14,0)) ->  | H153: =IF(OR(A153="",COUNTIF(A153," *")>0),"",VLOOKUP($A153,[2]Table!$A$16:$O$2000,15,0)) ->  | I153: nie
B154: OPIS | E154: =IF(OR(A154="",COUNTIF(A154," *")>0),"",VLOOKUP($A154,[2]Table!$A$16:$O$2000,12,0)-C154) ->  | F154: =IF(OR(A154="",COUNTIF(A154," *")>0),"",VLOOKUP($A154,[2]Table!$A$16:$O$2000,13,0)-D154) ->  | G154: =IF(OR(A154="",COUNTIF(A154," *")>0),"",VLOOKUP($A154,[2]Table!$A$16:$O$2000,14,0)) ->  | H154: =IF(OR(A154="",COUNTIF(A154," *")>0),"",VLOOKUP($A154,[2]Table!$A$16:$O$2000,15,0)) ->  | I154: nie
E155: =IF(OR(A155="",COUNTIF(A155," *")>0),"",VLOOKUP($A155,[2]Table!$A$16:$O$2000,12,0)-C155) ->  | F155: =IF(OR(A155="",COUNTIF(A155," *")>0),"",VLOOKUP($A155,[2]Table!$A$16:$O$2000,13,0)-D155) ->  | G155: =IF(OR(A155="",COUNTIF(A155," *")>0),"",VLOOKUP($A155,[2]Table!$A$16:$O$2000,14,0)) ->  | H155: =IF(OR(A155="",COUNTIF(A155," *")>0),"",VLOOKUP($A155,[2]Table!$A$16:$O$2000,15,0)) ->  | I155: nie
A156: B/II/5/6 | B156: Zarządzanie pozostałymi nieruchomościami - zadanie 6 | C156: =C158+C164+C170 -> 0 | D156: =D158+D164+D170 -> 0 | E156: =IF(OR(A156="",COUNTIF(A156," *")>0),"",VLOOKUP($A156,[2]Table!$A$16:$O$2000,12,0)-C156) -> 0 | F156: =IF(OR(A156="",COUNTIF(A156," *")>0),"",VLOOKUP($A156,[2]Table!$A$16:$O$2000,13,0)-D156) -> 577341 | G156: =IF(OR(A156="",COUNTIF(A156," *")>0),"",VLOOKUP($A156,[2]Table!$A$16:$O$2000,14,0)) -> 0 | H156: =IF(OR(A156="",COUNTIF(A156," *")>0),"",VLOOKUP($A156,[2]Table!$A$16:$O$2000,15,0)) -> 577341 | I156: nie
E157: =IF(OR(A157="",COUNTIF(A157," *")>0),"",VLOOKUP($A157,[2]Table!$A$16:$O$2000,12,0)-C157) ->  | F157: =IF(OR(A157="",COUNTIF(A157," *")>0),"",VLOOKUP($A157,[2]Table!$A$16:$O$2000,13,0)-D157) ->  | G157: =IF(OR(A157="",COUNTIF(A157," *")>0),"",VLOOKUP($A157,[2]Table!$A$16:$O$2000,14,0)) ->  | H157: =IF(OR(A157="",COUNTIF(A157," *")>0),"",VLOOKUP($A157,[2]Table!$A$16:$O$2000,15,0)) ->  | I157: nie
B158: Dysponent 1: Wydział Nieruchomości | E158: =IF(OR(A158="",COUNTIF(A158," *")>0),"",VLOOKUP($A158,[2]Table!$A$16:$O$2000,12,0)-C158) ->  | F158: =IF(OR(A158="",COUNTIF(A158," *")>0),"",VLOOKUP($A158,[2]Table!$A$16:$O$2000,13,0)-D158) ->  | G158: =IF(OR(A158="",COUNTIF(A158," *")>0),"",VLOOKUP($A158,[2]Table!$A$16:$O$2000,14,0)) ->  | H158: =IF(OR(A158="",COUNTIF(A158," *")>0),"",VLOOKUP($A158,[2]Table!$A$16:$O$2000,15,0)) ->  | I158: nie
E159: =IF(OR(A159="",COUNTIF(A159," *")>0),"",VLOOKUP($A159,[2]Table!$A$16:$O$2000,12,0)-C159) ->  | F159: =IF(OR(A159="",COUNTIF(A159," *")>0),"",VLOOKUP($A159,[2]Table!$A$16:$O$2000,13,0)-D159) ->  | G159: =IF(OR(A159="",COUNTIF(A159," *")>0),"",VLOOKUP($A159,[2]Table!$A$16:$O$2000,14,0)) ->  | H159: =IF(OR(A159="",COUNTIF(A159," *")>0),"",VLOOKUP($A159,[2]Table!$A$16:$O$2000,15,0)) ->  | I159: nie
B160: Klasyfikacja: rozdział: 70005 | E160: =IF(OR(A160="",COUNTIF(A160," *")>0),"",VLOOKUP($A160,[2]Table!$A$16:$O$2000,12,0)-C160) ->  | F160: =IF(OR(A160="",COUNTIF(A160," *")>0),"",VLOOKUP($A160,[2]Table!$A$16:$O$2000,13,0)-D160) ->  | G160: =IF(OR(A160="",COUNTIF(A160," *")>0),"",VLOOKUP($A160,[2]Table!$A$16:$O$2000,14,0)) ->  | H160: =IF(OR(A160="",COUNTIF(A160," *")>0),"",VLOOKUP($A160,[2]Table!$A$16:$O$2000,15,0)) ->  | I160: nie
E161: =IF(OR(A161="",COUNTIF(A161," *")>0),"",VLOOKUP($A161,[2]Table!$A$16:$O$2000,12,0)-C161) ->  | F161: =IF(OR(A161="",COUNTIF(A161," *")>0),"",VLOOKUP($A161,[2]Table!$A$16:$O$2000,13,0)-D161) ->  | G161: =IF(OR(A161="",COUNTIF(A161," *")>0),"",VLOOKUP($A161,[2]Table!$A$16:$O$2000,14,0)) ->  | H161: =IF(OR(A161="",COUNTIF(A161," *")>0),"",VLOOKUP($A161,[2]Table!$A$16:$O$2000,15,0)) ->  | I161: nie
B162: OPIS | E162: =IF(OR(A162="",COUNTIF(A162," *")>0),"",VLOOKUP($A162,[2]Table!$A$16:$O$2000,12,0)-C162) ->  | F162: =IF(OR(A162="",COUNTIF(A162," *")>0),"",VLOOKUP($A162,[2]Table!$A$16:$O$2000,13,0)-D162) ->  | G162: =IF(OR(A162="",COUNTIF(A162," *")>0),"",VLOOKUP($A162,[2]Table!$A$16:$O$2000,14,0)) ->  | H162: =IF(OR(A162="",COUNTIF(A162," *")>0),"",VLOOKUP($A162,[2]Table!$A$16:$O$2000,15,0)) ->  | I162: nie
E163: =IF(OR(A163="",COUNTIF(A163," *")>0),"",VLOOKUP($A163,[2]Table!$A$16:$O$2000,12,0)-C163) ->  | F163: =IF(OR(A163="",COUNTIF(A163," *")>0),"",VLOOKUP($A163,[2]Table!$A$16:$O$2000,13,0)-D163) ->  | G163: =IF(OR(A163="",COUNTIF(A163," *")>0),"",VLOOKUP($A163,[2]Table!$A$16:$O$2000,14,0)) ->  | H163: =IF(OR(A163="",COUNTIF(A163," *")>0),"",VLOOKUP($A163,[2]Table!$A$16:$O$2000,15,0)) ->  | I163: nie
B164: Dysponent 2: Wydział Prawny | E164: =IF(OR(A164="",COUNTIF(A164," *")>0),"",VLOOKUP($A164,[2]Table!$A$16:$O$2000,12,0)-C164) ->  | F164: =IF(OR(A164="",COUNTIF(A164," *")>0),"",VLOOKUP($A164,[2]Table!$A$16:$O$2000,13,0)-D164) ->  | G164: =IF(OR(A164="",COUNTIF(A164," *")>0),"",VLOOKUP($A164,[2]Table!$A$16:$O$2000,14,0)) ->  | H164: =IF(OR(A164="",COUNTIF(A164," *")>0),"",VLOOKUP($A164,[2]Table!$A$16:$O$2000,15,0)) ->  | I164: nie
E165: =IF(OR(A165="",COUNTIF(A165," *")>0),"",VLOOKUP($A165,[2]Table!$A$16:$O$2000,12,0)-C165) ->  | F165: =IF(OR(A165="",COUNTIF(A165," *")>0),"",VLOOKUP($A165,[2]Table!$A$16:$O$2000,13,0)-D165) ->  | G165: =IF(OR(A165="",COUNTIF(A165," *")>0),"",VLOOKUP($A165,[2]Table!$A$16:$O$2000,14,0)) ->  | H165: =IF(OR(A165="",COUNTIF(A165," *")>0),"",VLOOKUP($A165,[2]Table!$A$16:$O$2000,15,0)) ->  | I165: nie
B166: Klasyfikacja: rozdział: 70005 | E166: =IF(OR(A166="",COUNTIF(A166," *")>0),"",VLOOKUP($A166,[2]Table!$A$16:$O$2000,12,0)-C166) ->  | F166: =IF(OR(A166="",COUNTIF(A166," *")>0),"",VLOOKUP($A166,[2]Table!$A$16:$O$2000,13,0)-D166) ->  | G166: =IF(OR(A166="",COUNTIF(A166," *")>0),"",VLOOKUP($A166,[2]Table!$A$16:$O$2000,14,0)) ->  | H166: =IF(OR(A166="",COUNTIF(A166," *")>0),"",VLOOKUP($A166,[2]Table!$A$16:$O$2000,15,0)) ->  | I166: nie
E167: =IF(OR(A167="",COUNTIF(A167," *")>0),"",VLOOKUP($A167,[2]Table!$A$16:$O$2000,12,0)-C167) ->  | F167: =IF(OR(A167="",COUNTIF(A167," *")>0),"",VLOOKUP($A167,[2]Table!$A$16:$O$2000,13,0)-D167) ->  | G167: =IF(OR(A167="",COUNTIF(A167," *")>0),"",VLOOKUP($A167,[2]Table!$A$16:$O$2000,14,0)) ->  | H167: =IF(OR(A167="",COUNTIF(A167," *")>0),"",VLOOKUP($A167,[2]Table!$A$16:$O$2000,15,0)) ->  | I167: nie
B168: OPIS | E168: =IF(OR(A168="",COUNTIF(A168," *")>0),"",VLOOKUP($A168,[2]Table!$A$16:$O$2000,12,0)-C168) ->  | F168: =IF(OR(A168="",COUNTIF(A168," *")>0),"",VLOOKUP($A168,[2]Table!$A$16:$O$2000,13,0)-D168) ->  | G168: =IF(OR(A168="",COUNTIF(A168," *")>0),"",VLOOKUP($A168,[2]Table!$A$16:$O$2000,14,0)) ->  | H168: =IF(OR(A168="",COUNTIF(A168," *")>0),"",VLOOKUP($A168,[2]Table!$A$16:$O$2000,15,0)) ->  | I168: nie
E169: =IF(OR(A169="",COUNTIF(A169," *")>0),"",VLOOKUP($A169,[2]Table!$A$16:$O$2000,12,0)-C169) ->  | F169: =IF(OR(A169="",COUNTIF(A169," *")>0),"",VLOOKUP($A169,[2]Table!$A$16:$O$2000,13,0)-D169) ->  | G169: =IF(OR(A169="",COUNTIF(A169," *")>0),"",VLOOKUP($A169,[2]Table!$A$16:$O$2000,14,0)) ->  | H169: =IF(OR(A169="",COUNTIF(A169," *")>0),"",VLOOKUP($A169,[2]Table!$A$16:$O$2000,15,0)) ->  | I169: nie
B170: Dysponent 3: Wydział Inwestycji | E170: =IF(OR(A170="",COUNTIF(A170," *")>0),"",VLOOKUP($A170,[2]Table!$A$16:$O$2000,12,0)-C170) ->  | F170: =IF(OR(A170="",COUNTIF(A170," *")>0),"",VLOOKUP($A170,[2]Table!$A$16:$O$2000,13,0)-D170) ->  | G170: =IF(OR(A170="",COUNTIF(A170," *")>0),"",VLOOKUP($A170,[2]Table!$A$16:$O$2000,14,0)) ->  | H170: =IF(OR(A170="",COUNTIF(A170," *")>0),"",VLOOKUP($A170,[2]Table!$A$16:$O$2000,15,0)) ->  | I170: nie
E171: =IF(OR(A171="",COUNTIF(A171," *")>0),"",VLOOKUP($A171,[2]Table!$A$16:$O$2000,12,0)-C171) ->  | F171: =IF(OR(A171="",COUNTIF(A171," *")>0),"",VLOOKUP($A171,[2]Table!$A$16:$O$2000,13,0)-D171) ->  | G171: =IF(OR(A171="",COUNTIF(A171," *")>0),"",VLOOKUP($A171,[2]Table!$A$16:$O$2000,14,0)) ->  | H171: =IF(OR(A171="",COUNTIF(A171," *")>0),"",VLOOKUP($A171,[2]Table!$A$16:$O$2000,15,0)) ->  | I171: nie
B172: Klasyfikacja: rozdział: 70005 | E172: =IF(OR(A172="",COUNTIF(A172," *")>0),"",VLOOKUP($A172,[2]Table!$A$16:$O$2000,12,0)-C172) ->  | F172: =IF(OR(A172="",COUNTIF(A172," *")>0),"",VLOOKUP($A172,[2]Table!$A$16:$O$2000,13,0)-D172) ->  | G172: =IF(OR(A172="",COUNTIF(A172," *")>0),"",VLOOKUP($A172,[2]Table!$A$16:$O$2000,14,0)) ->  | H172: =IF(OR(A172="",COUNTIF(A172," *")>0),"",VLOOKUP($A172,[2]Table!$A$16:$O$2000,15,0)) ->  | I172: nie
E173: =IF(OR(A173="",COUNTIF(A173," *")>0),"",VLOOKUP($A173,[2]Table!$A$16:$O$2000,12,0)-C173) ->  | F173: =IF(OR(A173="",COUNTIF(A173," *")>0),"",VLOOKUP($A173,[2]Table!$A$16:$O$2000,13,0)-D173) ->  | G173: =IF(OR(A173="",COUNTIF(A173," *")>0),"",VLOOKUP($A173,[2]Table!$A$16:$O$2000,14,0)) ->  | H173: =IF(OR(A173="",COUNTIF(A173," *")>0),"",VLOOKUP($A173,[2]Table!$A$16:$O$2000,15,0)) ->  | I173: nie
B174: OPIS | E174: =IF(OR(A174="",COUNTIF(A174," *")>0),"",VLOOKUP($A174,[2]Table!$A$16:$O$2000,12,0)-C174) ->  | F174: =IF(OR(A174="",COUNTIF(A174," *")>0),"",VLOOKUP($A174,[2]Table!$A$16:$O$2000,13,0)-D174) ->  | G174: =IF(OR(A174="",COUNTIF(A174," *")>0),"",VLOOKUP($A174,[2]Table!$A$16:$O$2000,14,0)) ->  | H174: =IF(OR(A174="",COUNTIF(A174," *")>0),"",VLOOKUP($A174,[2]Table!$A$16:$O$2000,15,0)) ->  | I174: nie
E175: =IF(OR(A175="",COUNTIF(A175," *")>0),"",VLOOKUP($A175,[2]Table!$A$16:$O$2000,12,0)-C175) ->  | F175: =IF(OR(A175="",COUNTIF(A175," *")>0),"",VLOOKUP($A175,[2]Table!$A$16:$O$2000,13,0)-D175) ->  | G175: =IF(OR(A175="",COUNTIF(A175," *")>0),"",VLOOKUP($A175,[2]Table!$A$16:$O$2000,14,0)) ->  | H175: =IF(OR(A175="",COUNTIF(A175," *")>0),"",VLOOKUP($A175,[2]Table!$A$16:$O$2000,15,0)) ->  | I175: nie
A176: III | B176: 2.2.3. GOSPODARKA KOMUNALNA I OCHRONA ŚRODOWISKA | C176: =C178+C264+C296+C330 -> 0 | D176: =D178+D264+D296+D330 -> 0 | E176: =IF(OR(A176="",COUNTIF(A176," *")>0),"",VLOOKUP($A176,[2]Table!$A$16:$O$2000,12,0)-C176) -> 0 | F176: =IF(OR(A176="",COUNTIF(A176," *")>0),"",VLOOKUP($A176,[2]Table!$A$16:$O$2000,13,0)-D176) -> 9707126 | G176: =IF(OR(A176="",COUNTIF(A176," *")>0),"",VLOOKUP($A176,[2]Table!$A$16:$O$2000,14,0)) -> 0 | H176: =IF(OR(A176="",COUNTIF(A176," *")>0),"",VLOOKUP($A176,[2]Table!$A$16:$O$2000,15,0)) -> 9707126 | I176: nie
E177: =IF(OR(A177="",COUNTIF(A177," *")>0),"",VLOOKUP($A177,[2]Table!$A$16:$O$2000,12,0)-C177) ->  | F177: =IF(OR(A177="",COUNTIF(A177," *")>0),"",VLOOKUP($A177,[2]Table!$A$16:$O$2000,13,0)-D177) ->  | G177: =IF(OR(A177="",COUNTIF(A177," *")>0),"",VLOOKUP($A177,[2]Table!$A$16:$O$2000,14,0)) ->  | H177: =IF(OR(A177="",COUNTIF(A177," *")>0),"",VLOOKUP($A177,[2]Table!$A$16:$O$2000,15,0)) ->  | I177: nie
A178: III/1 | B178: Utrzymanie porządku i czystości - program 1 | C178: =C180+C206+C214+C222+C230+C240+C248+C256 -> 0 | D178: =D180+D206+D214+D222+D230+D240+D248+D256 -> 0 | E178: =IF(OR(A178="",COUNTIF(A178," *")>0),"",VLOOKUP($A178,[2]Table!$A$16:$O$2000,12,0)-C178) -> 0 | F178: =IF(OR(A178="",COUNTIF(A178," *")>0),"",VLOOKUP($A178,[2]Table!$A$16:$O$2000,13,0)-D178) -> 4643354 | G178: =IF(OR(A178="",COUNTIF(A178," *")>0),"",VLOOKUP($A178,[2]Table!$A$16:$O$2000,14,0)) -> 0 | H178: =IF(OR(A178="",COUNTIF(A178," *")>0),"",VLOOKUP($A178,[2]Table!$A$16:$O$2000,15,0)) -> 4643354 | I178: nie
E179: =IF(OR(A179="",COUNTIF(A179," *")>0),"",VLOOKUP($A179,[2]Table!$A$16:$O$2000,12,0)-C179) ->  | F179: =IF(OR(A179="",COUNTIF(A179," *")>0),"",VLOOKUP($A179,[2]Table!$A$16:$O$2000,13,0)-D179) ->  | G179: =IF(OR(A179="",COUNTIF(A179," *")>0),"",VLOOKUP($A179,[2]Table!$A$16:$O$2000,14,0)) ->  | H179: =IF(OR(A179="",COUNTIF(A179," *")>0),"",VLOOKUP($A179,[2]Table!$A$16:$O$2000,15,0)) ->  | I179: nie
A180: B/III/1/1 | B180: Oczyszczanie miasta - zadanie 1 | C180: =C182+C190+C198 -> 0 | D180: =D182+D190+D198 -> 0 | E180: =IF(OR(A180="",COUNTIF(A180," *")>0),"",VLOOKUP($A180,[2]Table!$A$16:$O$2000,12,0)-C180) -> 0 | F180: =IF(OR(A180="",COUNTIF(A180," *")>0),"",VLOOKUP($A180,[2]Table!$A$16:$O$2000,13,0)-D180) -> 3477708 | G180: =IF(OR(A180="",COUNTIF(A180," *")>0),"",VLOOKUP($A180,[2]Table!$A$16:$O$2000,14,0)) -> 0 | H180: =IF(OR(A180="",COUNTIF(A180," *")>0),"",VLOOKUP($A180,[2]Table!$A$16:$O$2000,15,0)) -> 3477708 | I180: nie
E181: =IF(OR(A181="",COUNTIF(A181," *")>0),"",VLOOKUP($A181,[2]Table!$A$16:$O$2000,12,0)-C181) ->  | F181: =IF(OR(A181="",COUNTIF(A181," *")>0),"",VLOOKUP($A181,[2]Table!$A$16:$O$2000,13,0)-D181) ->  | G181: =IF(OR(A181="",COUNTIF(A181," *")>0),"",VLOOKUP($A181,[2]Table!$A$16:$O$2000,14,0)) ->  | H181: =IF(OR(A181="",COUNTIF(A181," *")>0),"",VLOOKUP($A181,[2]Table!$A$16:$O$2000,15,0)) ->  | I181: nie
A182: B/III/1/1/1 | B182: Zimowe oczyszczanie ulic | E182: =IF(OR(A182="",COUNTIF(A182," *")>0),"",VLOOKUP($A182,[2]Table!$A$16:$O$2000,12,0)-C182) -> 0 | F182: =IF(OR(A182="",COUNTIF(A182," *")>0),"",VLOOKUP($A182,[2]Table!$A$16:$O$2000,13,0)-D182) -> 2800000 | G182: =IF(OR(A182="",COUNTIF(A182," *")>0),"",VLOOKUP($A182,[2]Table!$A$16:$O$2000,14,0)) -> 0 | H182: =IF(OR(A182="",COUNTIF(A182," *")>0),"",VLOOKUP($A182,[2]Table!$A$16:$O$2000,15,0)) -> 2800000 | I182: nie
E183: =IF(OR(A183="",COUNTIF(A183," *")>0),"",VLOOKUP($A183,[2]Table!$A$16:$O$2000,12,0)-C183) ->  | F183: =IF(OR(A183="",COUNTIF(A183," *")>0),"",VLOOKUP($A183,[2]Table!$A$16:$O$2000,13,0)-D183) ->  | G183: =IF(OR(A183="",COUNTIF(A183," *")>0),"",VLOOKUP($A183,[2]Table!$A$16:$O$2000,14,0)) ->  | H183: =IF(OR(A183="",COUNTIF(A183," *")>0),"",VLOOKUP($A183,[2]Table!$A$16:$O$2000,15,0)) ->  | I183: nie
B184: Dysponent: Wydział Infrastruktury | E184: =IF(OR(A184="",COUNTIF(A184," *")>0),"",VLOOKUP($A184,[2]Table!$A$16:$O$2000,12,0)-C184) ->  | F184: =IF(OR(A184="",COUNTIF(A184," *")>0),"",VLOOKUP($A184,[2]Table!$A$16:$O$2000,13,0)-D184) ->  | G184: =IF(OR(A184="",COUNTIF(A184," *")>0),"",VLOOKUP($A184,[2]Table!$A$16:$O$2000,14,0)) ->  | H184: =IF(OR(A184="",COUNTIF(A184," *")>0),"",VLOOKUP($A184,[2]Table!$A$16:$O$2000,15,0)) ->  | I184: nie
E185: =IF(OR(A185="",COUNTIF(A185," *")>0),"",VLOOKUP($A185,[2]Table!$A$16:$O$2000,12,0)-C185) ->  | F185: =IF(OR(A185="",COUNTIF(A185," *")>0),"",VLOOKUP($A185,[2]Table!$A$16:$O$2000,13,0)-D185) ->  | G185: =IF(OR(A185="",COUNTIF(A185," *")>0),"",VLOOKUP($A185,[2]Table!$A$16:$O$2000,14,0)) ->  | H185: =IF(OR(A185="",COUNTIF(A185," *")>0),"",VLOOKUP($A185,[2]Table!$A$16:$O$2000,15,0)) ->  | I185: nie
B186: Klasyfikacja: rozdział: 60016, 60017 | E186: =IF(OR(A186="",COUNTIF(A186," *")>0),"",VLOOKUP($A186,[2]Table!$A$16:$O$2000,12,0)-C186) ->  | F186: =IF(OR(A186="",COUNTIF(A186," *")>0),"",VLOOKUP($A186,[2]Table!$A$16:$O$2000,13,0)-D186) ->  | G186: =IF(OR(A186="",COUNTIF(A186," *")>0),"",VLOOKUP($A186,[2]Table!$A$16:$O$2000,14,0)) ->  | H186: =IF(OR(A186="",COUNTIF(A186," *")>0),"",VLOOKUP($A186,[2]Table!$A$16:$O$2000,15,0)) ->  | I186: nie
E187: =IF(OR(A187="",COUNTIF(A187," *")>0),"",VLOOKUP($A187,[2]Table!$A$16:$O$2000,12,0)-C187) ->  | F187: =IF(OR(A187="",COUNTIF(A187," *")>0),"",VLOOKUP($A187,[2]Table!$A$16:$O$2000,13,0)-D187) ->  | G187: =IF(OR(A187="",COUNTIF(A187," *")>0),"",VLOOKUP($A187,[2]Table!$A$16:$O$2000,14,0)) ->  | H187: =IF(OR(A187="",COUNTIF(A187," *")>0),"",VLOOKUP($A187,[2]Table!$A$16:$O$2000,15,0)) ->  | I187: nie
B188: OPIS | E188: =IF(OR(A188="",COUNTIF(A188," *")>0),"",VLOOKUP($A188,[2]Table!$A$16:$O$2000,12,0)-C188) ->  | F188: =IF(OR(A188="",COUNTIF(A188," *")>0),"",VLOOKUP($A188,[2]Table!$A$16:$O$2000,13,0)-D188) ->  | G188: =IF(OR(A188="",COUNTIF(A188," *")>0),"",VLOOKUP($A188,[2]Table!$A$16:$O$2000,14,0)) ->  | H188: =IF(OR(A188="",COUNTIF(A188," *")>0),"",VLOOKUP($A188,[2]Table!$A$16:$O$2000,15,0)) ->  | I188: nie
E189: =IF(OR(A189="",COUNTIF(A189," *")>0),"",VLOOKUP($A189,[2]Table!$A$16:$O$2000,12,0)-C189) ->  | F189: =IF(OR(A189="",COUNTIF(A189," *")>0),"",VLOOKUP($A189,[2]Table!$A$16:$O$2000,13,0)-D189) ->  | G189: =IF(OR(A189="",COUNTIF(A189," *")>0),"",VLOOKUP($A189,[2]Table!$A$16:$O$2000,14,0)) ->  | H189: =IF(OR(A189="",COUNTIF(A189," *")>0),"",VLOOKUP($A189,[2]Table!$A$16:$O$2000,15,0)) ->  | I189: nie
A190: B/III/1/1/2 | B190: Letnie oczyszczanie ulic | E190: =IF(OR(A190="",COUNTIF(A190," *")>0),"",VLOOKUP($A190,[2]Table!$A$16:$O$2000,12,0)-C190) -> 0 | F190: =IF(OR(A190="",COUNTIF(A190," *")>0),"",VLOOKUP($A190,[2]Table!$A$16:$O$2000,13,0)-D190) -> 668000 | G190: =IF(OR(A190="",COUNTIF(A190," *")>0),"",VLOOKUP($A190,[2]Table!$A$16:$O$2000,14,0)) -> 0 | H190: =IF(OR(A190="",COUNTIF(A190," *")>0),"",VLOOKUP($A190,[2]Table!$A$16:$O$2000,15,0)) -> 668000 | I190: nie
E191: =IF(OR(A191="",COUNTIF(A191," *")>0),"",VLOOKUP($A191,[2]Table!$A$16:$O$2000,12,0)-C191) ->  | F191: =IF(OR(A191="",COUNTIF(A191," *")>0),"",VLOOKUP($A191,[2]Table!$A$16:$O$2000,13,0)-D191) ->  | G191: =IF(OR(A191="",COUNTIF(A191," *")>0),"",VLOOKUP($A191,[2]Table!$A$16:$O$2000,14,0)) ->  | H191: =IF(OR(A191="",COUNTIF(A191," *")>0),"",VLOOKUP($A191,[2]Table!$A$16:$O$2000,15,0)) ->  | I191: nie
B192: Dysponent: Wydział Infrastruktury | E192: =IF(OR(A192="",COUNTIF(A192," *")>0),"",VLOOKUP($A192,[2]Table!$A$16:$O$2000,12,0)-C192) ->  | F192: =IF(OR(A192="",COUNTIF(A192," *")>0),"",VLOOKUP($A192,[2]Table!$A$16:$O$2000,13,0)-D192) ->  | G192: =IF(OR(A192="",COUNTIF(A192," *")>0),"",VLOOKUP($A192,[2]Table!$A$16:$O$2000,14,0)) ->  | H192: =IF(OR(A192="",COUNTIF(A192," *")>0),"",VLOOKUP($A192,[2]Table!$A$16:$O$2000,15,0)) ->  | I192: nie
E193: =IF(OR(A193="",COUNTIF(A193," *")>0),"",VLOOKUP($A193,[2]Table!$A$16:$O$2000,12,0)-C193) ->  | F193: =IF(OR(A193="",COUNTIF(A193," *")>0),"",VLOOKUP($A193,[2]Table!$A$16:$O$2000,13,0)-D193) ->  | G193: =IF(OR(A193="",COUNTIF(A193," *")>0),"",VLOOKUP($A193,[2]Table!$A$16:$O$2000,14,0)) ->  | H193: =IF(OR(A193="",COUNTIF(A193," *")>0),"",VLOOKUP($A193,[2]Table!$A$16:$O$2000,15,0)) ->  | I193: nie
B194: Klasyfikacja: rozdział: 60016, 60017 | E194: =IF(OR(A194="",COUNTIF(A194," *")>0),"",VLOOKUP($A194,[2]Table!$A$16:$O$2000,12,0)-C194) ->  | F194: =IF(OR(A194="",COUNTIF(A194," *")>0),"",VLOOKUP($A194,[2]Table!$A$16:$O$2000,13,0)-D194) ->  | G194: =IF(OR(A194="",COUNTIF(A194," *")>0),"",VLOOKUP($A194,[2]Table!$A$16:$O$2000,14,0)) ->  | H194: =IF(OR(A194="",COUNTIF(A194," *")>0),"",VLOOKUP($A194,[2]Table!$A$16:$O$2000,15,0)) ->  | I194: nie
E195: =IF(OR(A195="",COUNTIF(A195," *")>0),"",VLOOKUP($A195,[2]Table!$A$16:$O$2000,12,0)-C195) ->  | F195: =IF(OR(A195="",COUNTIF(A195," *")>0),"",VLOOKUP($A195,[2]Table!$A$16:$O$2000,13,0)-D195) ->  | G195: =IF(OR(A195="",COUNTIF(A195," *")>0),"",VLOOKUP($A195,[2]Table!$A$16:$O$2000,14,0)) ->  | H195: =IF(OR(A195="",COUNTIF(A195," *")>0),"",VLOOKUP($A195,[2]Table!$A$16:$O$2000,15,0)) ->  | I195: nie
B196: OPIS | E196: =IF(OR(A196="",COUNTIF(A196," *")>0),"",VLOOKUP($A196,[2]Table!$A$16:$O$2000,12,0)-C196) ->  | F196: =IF(OR(A196="",COUNTIF(A196," *")>0),"",VLOOKUP($A196,[2]Table!$A$16:$O$2000,13,0)-D196) ->  | G196: =IF(OR(A196="",COUNTIF(A196," *")>0),"",VLOOKUP($A196,[2]Table!$A$16:$O$2000,14,0)) ->  | H196: =IF(OR(A196="",COUNTIF(A196," *")>0),"",VLOOKUP($A196,[2]Table!$A$16:$O$2000,15,0)) ->  | I196: nie
E197: =IF(OR(A197="",COUNTIF(A197," *")>0),"",VLOOKUP($A197,[2]Table!$A$16:$O$2000,12,0)-C197) ->  | F197: =IF(OR(A197="",COUNTIF(A197," *")>0),"",VLOOKUP($A197,[2]Table!$A$16:$O$2000,13,0)-D197) ->  | G197: =IF(OR(A197="",COUNTIF(A197," *")>0),"",VLOOKUP($A197,[2]Table!$A$16:$O$2000,14,0)) ->  | H197: =IF(OR(A197="",COUNTIF(A197," *")>0),"",VLOOKUP($A197,[2]Table!$A$16:$O$2000,15,0)) ->  | I197: nie
A198: B/III/1/1/3 | B198: Oczyszczanie pozostałych terenów | E198: =IF(OR(A198="",COUNTIF(A198," *")>0),"",VLOOKUP($A198,[2]Table!$A$16:$O$2000,12,0)-C198) -> 0 | F198: =IF(OR(A198="",COUNTIF(A198," *")>0),"",VLOOKUP($A198,[2]Table!$A$16:$O$2000,13,0)-D198) -> 9708 | G198: =IF(OR(A198="",COUNTIF(A198," *")>0),"",VLOOKUP($A198,[2]Table!$A$16:$O$2000,14,0)) -> 0 | H198: =IF(OR(A198="",COUNTIF(A198," *")>0),"",VLOOKUP($A198,[2]Table!$A$16:$O$2000,15,0)) -> 9708 | I198: nie
E199: =IF(OR(A199="",COUNTIF(A199," *")>0),"",VLOOKUP($A199,[2]Table!$A$16:$O$2000,12,0)-C199) ->  | F199: =IF(OR(A199="",COUNTIF(A199," *")>0),"",VLOOKUP($A199,[2]Table!$A$16:$O$2000,13,0)-D199) ->  | G199: =IF(OR(A199="",COUNTIF(A199," *")>0),"",VLOOKUP($A199,[2]Table!$A$16:$O$2000,14,0)) ->  | H199: =IF(OR(A199="",COUNTIF(A199," *")>0),"",VLOOKUP($A199,[2]Table!$A$16:$O$2000,15,0)) ->  | I199: nie
B200: Dysponent: Wydział Ochrony Środowiska | E200: =IF(OR(A200="",COUNTIF(A200," *")>0),"",VLOOKUP($A200,[2]Table!$A$16:$O$2000,12,0)-C200) ->  | F200: =IF(OR(A200="",COUNTIF(A200," *")>0),"",VLOOKUP($A200,[2]Table!$A$16:$O$2000,13,0)-D200) ->  | G200: =IF(OR(A200="",COUNTIF(A200," *")>0),"",VLOOKUP($A200,[2]Table!$A$16:$O$2000,14,0)) ->  | H200: =IF(OR(A200="",COUNTIF(A200," *")>0),"",VLOOKUP($A200,[2]Table!$A$16:$O$2000,15,0)) ->  | I200: nie
E201: =IF(OR(A201="",COUNTIF(A201," *")>0),"",VLOOKUP($A201,[2]Table!$A$16:$O$2000,12,0)-C201) ->  | F201: =IF(OR(A201="",COUNTIF(A201," *")>0),"",VLOOKUP($A201,[2]Table!$A$16:$O$2000,13,0)-D201) ->  | G201: =IF(OR(A201="",COUNTIF(A201," *")>0),"",VLOOKUP($A201,[2]Table!$A$16:$O$2000,14,0)) ->  | H201: =IF(OR(A201="",COUNTIF(A201," *")>0),"",VLOOKUP($A201,[2]Table!$A$16:$O$2000,15,0)) ->  | I201: nie
... 764 more rows
